ORGANISATION_NAME,SERVICE_RESPONSIBLE,SUPPLIER_NAME,SUPPLIER_CODE,PAYMENT_DATE,TRANSACTION_REF,NET_AMOUNT_BY_LINE_ITEM,IRRECOVERABLE_VAT,PURPOSE_OF_SPEND,PROCUREMENT_CATEGORY_NAME,TRANSACTION_TYPE,PAYMENT_TYPE,CARD_TRANS,INVOICE_DATE,FINANCIAL_YEAR,FINANCIAL_PERIOD,SUPPLIERS_INVOICE_REFERENCE,COST_CENTRE_CODE,COST_CENTRE_DESC,ACCOUNT_CODE,ACCOUNT_DESC
GUILDFORD BOROUGH COUNCIL,HOMELESSNESS,TRAVELODGE GB0000,N/A,18-Jul-19,1034897,1101.21,0,ACCOMMODATION: EMERGENCY B&B,THIRD PARTY SUPPLIER,POINT OF SALE,CARD,GPC,18-Jul-19,2019,4,,C3316,EMERGENCY ACCOMMODATION,D4401,ACCOMMODATION: EMERGENCY B&B
GUILDFORD BOROUGH COUNCIL,CORP SERVICES,HAMPTON BY HILTON,N/A,09-Jul-19,1034897,198,0,CONFERENCES,THIRD PARTY SUPPLIER,POINT OF SALE,CARD,GPC,09-Jul-19,2019,4,,F1111,CORPORATE SERVICES,D6411,CONFERENCES
GUILDFORD BOROUGH COUNCIL,CORP SERVICES,TRAVELODGE GB0000,N/A,08-Jul-19,1034897,-109.25,0,CONFERENCES,THIRD PARTY SUPPLIER,POINT OF SALE,CARD,GPC,08-Jul-19,2019,4,,F1111,CORPORATE SERVICES,D6411,CONFERENCES
GUILDFORD BOROUGH COUNCIL,CORP SERVICES,OFFICE DEPOT UK LTD,N/A,05-Jul-19,1034897,35.89,0,STATIONERY & OFFICE SUPPLIES,THIRD PARTY SUPPLIER,POINT OF SALE,CARD,GPC,05-Jul-19,2019,4,8962019062,F1111,CORPORATE SERVICES,D3472,STATIONERY & OFFICE SUPPLIES
GUILDFORD BOROUGH COUNCIL,CORP SERVICES,OFFICE DEPOT UK LTD,N/A,18-Jul-19,1034897,30.6,0,STATIONERY & OFFICE SUPPLIES,THIRD PARTY SUPPLIER,POINT OF SALE,CARD,GPC,18-Jul-19,2019,4,8962019071,F1111,CORPORATE SERVICES,D3472,STATIONERY & OFFICE SUPPLIES
GUILDFORD BOROUGH COUNCIL,DEMOCRATIC REPRESENTATION,SURREYHILLSENTERPRISES,N/A,10-Jul-19,1034897,85,0,CONFERENCES,THIRD PARTY SUPPLIER,POINT OF SALE,CARD,GPC,10-Jul-19,2019,4,,F2121,COUNCILLOR SERVICES,D6411,CONFERENCES
GUILDFORD BOROUGH COUNCIL,WOKING ROAD DEPOT,SAINSBURY'S S/MKT,N/A,05-Jul-19,1034897,15.83,0,FOOD PURCHASES,THIRD PARTY SUPPLIER,POINT OF SALE,CARD,GPC,05-Jul-19,2019,4,,B4452,WOKING ROAD DEPOT,D1832,FOOD PURCHASES
GUILDFORD BOROUGH COUNCIL,WOKING ROAD DEPOT,SAINSBURYS S/MKTS,N/A,24-Jul-19,1034897,50.83,0,FOOD PURCHASES,THIRD PARTY SUPPLIER,POINT OF SALE,CARD,GPC,24-Jul-19,2019,4,,B4452,WOKING ROAD DEPOT,D1832,FOOD PURCHASES
GUILDFORD BOROUGH COUNCIL,WOKING ROAD DEPOT,DIRECTBLINDS CO UK,N/A,01-Jul-19,1034897,100.95,0,NEW / REPLACE EQUIP. & TOOLS;,THIRD PARTY SUPPLIER,POINT OF SALE,CARD,GPC,01-Jul-19,2019,4,,B4452,WOKING ROAD DEPOT,D1428,NEW / REPLACE EQUIP. & TOOLS;
GUILDFORD BOROUGH COUNCIL,WOKING ROAD DEPOT,PAYPAL *METALS4ULTD,N/A,01-Jul-19,1034897,81.83,0,NEW / REPLACE EQUIP. & TOOLS;,THIRD PARTY SUPPLIER,POINT OF SALE,CARD,GPC,01-Jul-19,2019,4,,B4452,WOKING ROAD DEPOT,D1428,NEW / REPLACE EQUIP. & TOOLS;
GUILDFORD BOROUGH COUNCIL,WOKING ROAD DEPOT,PAYPAL DIGITAL ID,N/A,05-Jul-19,1034897,154.49,0,GROUNDS - MISCELLANEOUS,THIRD PARTY SUPPLIER,POINT OF SALE,CARD,GPC,05-Jul-19,2019,4,,B4452,WOKING ROAD DEPOT,B1275,GROUNDS - MISCELLANEOUS
GUILDFORD BOROUGH COUNCIL,WOKING ROAD DEPOT,DIGITAL ID,N/A,05-Jul-19,1034897,698.59,0,GROUNDS - MISCELLANEOUS,THIRD PARTY SUPPLIER,POINT OF SALE,CARD,GPC,05-Jul-19,2019,4,,B4452,WOKING ROAD DEPOT,B1275,GROUNDS - MISCELLANEOUS
GUILDFORD BOROUGH COUNCIL,WOKING ROAD DEPOT,PAYPAL SHOWERDOC,N/A,24-Jul-19,1034897,27.07,0,R&M - GENERAL,THIRD PARTY SUPPLIER,POINT OF SALE,CARD,GPC,24-Jul-19,2019,4,,B4452,WOKING ROAD DEPOT,B1231,R&M - GENERAL
GUILDFORD BOROUGH COUNCIL,WOKING ROAD DEPOT,PAYPAL TOOLSTATION,N/A,24-Jul-19,1034897,110.17,0,R&M - GENERAL,THIRD PARTY SUPPLIER,POINT OF SALE,CARD,GPC,24-Jul-19,2019,4,,B4452,WOKING ROAD DEPOT,B1231,R&M - GENERAL
GUILDFORD BOROUGH COUNCIL,WOKING ROAD DEPOT,PAYPAL *ROSPA,N/A,02-Jul-19,1034897,360,0,TRAINING,THIRD PARTY SUPPLIER,POINT OF SALE,CARD,GPC,02-Jul-19,2019,4,,B4452,WOKING ROAD DEPOT,A7161,TRAINING
GUILDFORD BOROUGH COUNCIL,REFUSE AND RECYCLING,PAYPAL LATCO SUMMIT 2,N/A,05-Jul-19,1034897,105,0,MISCELLANEOUS EXPENSES,THIRD PARTY SUPPLIER,POINT OF SALE,CARD,GPC,05-Jul-19,2019,4,,B7711,RECYCLING ADMINISTRATION,D9483,MISCELLANEOUS EXPENSES
GUILDFORD BOROUGH COUNCIL,REFUSE AND RECYCLING,HOMEBASE LTD 305,N/A,24-Jul-19,1034897,233.33,0,NEW / REPLACE EQUIP. & TOOLS;,THIRD PARTY SUPPLIER,POINT OF SALE,CARD,GPC,24-Jul-19,2019,4,,B7711,RECYCLING ADMINISTRATION,D1428,NEW / REPLACE EQUIP. & TOOLS;
GUILDFORD BOROUGH COUNCIL,CARELINE SERVICE,OFFICE DEPOT UK LTD,N/A,28-Jun-19,1034897,62.19,0,STATIONERY & OFFICE SUPPLIES,THIRD PARTY SUPPLIER,POINT OF SALE,CARD,GPC,28-Jun-19,2019,4,2172019062,C2511,CARELINE,D3472,STATIONERY & OFFICE SUPPLIES
GUILDFORD BOROUGH COUNCIL,COMMUNITY MEALS & TPT,BRAUNABILITY UK LTD,N/A,18-Jul-19,1034897,106,0,MISCELLANEOUS EXPENSES,THIRD PARTY SUPPLIER,POINT OF SALE,CARD,GPC,18-Jul-19,2019,4,,C3115,COMMUNITY TRANSPORT SCHEME,D9483,MISCELLANEOUS EXPENSES
GUILDFORD BOROUGH COUNCIL,HOMELESSNESS,WWW.ANYVAN.COM,N/A,03-Jul-19,1034897,98.45,0,TENANTS REMOVAL EXPENSES,THIRD PARTY SUPPLIER,POINT OF SALE,CARD,GPC,03-Jul-19,2019,4,,C3311,HOMELESSNESS ADMINISTRATION,D9495,TENANTS REMOVAL EXPENSES
GUILDFORD BOROUGH COUNCIL,HOMELESSNESS,WWW.ANYVAN.COM,N/A,02-Jul-19,1034897,130.83,0,TENANTS REMOVAL EXPENSES,THIRD PARTY SUPPLIER,POINT OF SALE,CARD,GPC,02-Jul-19,2019,4,,C3311,HOMELESSNESS ADMINISTRATION,D9495,TENANTS REMOVAL EXPENSES
GUILDFORD BOROUGH COUNCIL,HOMELESSNESS,WWW.ANYVAN.COM,N/A,02-Jul-19,1034897,63.33,0,TENANTS REMOVAL EXPENSES,THIRD PARTY SUPPLIER,POINT OF SALE,CARD,GPC,02-Jul-19,2019,4,,C3311,HOMELESSNESS ADMINISTRATION,D9495,TENANTS REMOVAL EXPENSES
GUILDFORD BOROUGH COUNCIL,HOMELESSNESS,WWW.ANYVAN.COM,N/A,03-Jul-19,1034897,50,0,TENANTS REMOVAL EXPENSES,THIRD PARTY SUPPLIER,POINT OF SALE,CARD,GPC,03-Jul-19,2019,4,,C3311,HOMELESSNESS ADMINISTRATION,D9495,TENANTS REMOVAL EXPENSES
GUILDFORD BOROUGH COUNCIL,HOMELESSNESS,WWW.ANYVAN.COM,N/A,22-Jul-19,1034897,83.33,0,TENANTS REMOVAL EXPENSES,THIRD PARTY SUPPLIER,POINT OF SALE,CARD,GPC,22-Jul-19,2019,4,,C3311,HOMELESSNESS ADMINISTRATION,D9495,TENANTS REMOVAL EXPENSES
GUILDFORD BOROUGH COUNCIL,HOMELESSNESS,WWW.ANYVAN.COM,N/A,19-Jul-19,1034897,955,0,TENANTS REMOVAL EXPENSES,THIRD PARTY SUPPLIER,POINT OF SALE,CARD,GPC,19-Jul-19,2019,4,,C3311,HOMELESSNESS ADMINISTRATION,D9495,TENANTS REMOVAL EXPENSES
GUILDFORD BOROUGH COUNCIL,HOMELESSNESS,FURNITURELINK,N/A,04-Jul-19,1034897,300,0,TENANTS REMOVAL EXPENSES,THIRD PARTY SUPPLIER,POINT OF SALE,CARD,GPC,04-Jul-19,2019,4,,C3311,HOMELESSNESS ADMINISTRATION,D9495,TENANTS REMOVAL EXPENSES
GUILDFORD BOROUGH COUNCIL,HOMELESSNESS,TAPICARPETS AND FL,N/A,17-Jul-19,1034897,250,0,MISCELLANEOUS EXPENSES,THIRD PARTY SUPPLIER,POINT OF SALE,CARD,GPC,17-Jul-19,2019,4,,C3316,EMERGENCY ACCOMMODATION,D9483,MISCELLANEOUS EXPENSES
GUILDFORD BOROUGH COUNCIL,HOMELESSNESS,TRAVELODGE GB0000,N/A,25-Jul-19,1034897,772.67,0,ACCOMMODATION: EMERGENCY B&B,THIRD PARTY SUPPLIER,POINT OF SALE,CARD,GPC,25-Jul-19,2019,4,,C3316,EMERGENCY ACCOMMODATION,D4401,ACCOMMODATION: EMERGENCY B&B
GUILDFORD BOROUGH COUNCIL,HOMELESSNESS,TRAVELODGE GB0000,N/A,17-Jul-19,1034897,290.54,0,ACCOMMODATION: EMERGENCY B&B,THIRD PARTY SUPPLIER,POINT OF SALE,CARD,GPC,17-Jul-19,2019,4,,C3316,EMERGENCY ACCOMMODATION,D4401,ACCOMMODATION: EMERGENCY B&B
GUILDFORD BOROUGH COUNCIL,HOMELESSNESS,TRAVELODGE GB0000,N/A,24-Jul-19,1034897,72.04,0,ACCOMMODATION: EMERGENCY B&B,THIRD PARTY SUPPLIER,POINT OF SALE,CARD,GPC,24-Jul-19,2019,4,,C3316,EMERGENCY ACCOMMODATION,D4401,ACCOMMODATION: EMERGENCY B&B
GUILDFORD BOROUGH COUNCIL,GUILDHALL,SAINSBURYS S/MKTS,N/A,04-Jul-19,1034897,3.7,0,FOOD PURCHASES,THIRD PARTY SUPPLIER,POINT OF SALE,CARD,GPC,04-Jul-19,2019,4,,F3311,GUILDHALL,D1832,FOOD PURCHASES
GUILDFORD BOROUGH COUNCIL,GUILDHALL,SAINSBURY'S S/MKT,N/A,06-Jul-19,1034897,12.6,0,FOOD PURCHASES,THIRD PARTY SUPPLIER,POINT OF SALE,CARD,GPC,06-Jul-19,2019,4,,F3311,GUILDHALL,D1832,FOOD PURCHASES
GUILDFORD BOROUGH COUNCIL,GUILDHALL,SAINSBURYS S/MKTS,N/A,08-Jul-19,1034897,1.8,0,FOOD PURCHASES,THIRD PARTY SUPPLIER,POINT OF SALE,CARD,GPC,08-Jul-19,2019,4,,F3311,GUILDHALL,D1832,FOOD PURCHASES
GUILDFORD BOROUGH COUNCIL,GUILDHALL,SAINSBURY'S S/MKT,N/A,19-Jul-19,1034897,13.75,0,FOOD PURCHASES,THIRD PARTY SUPPLIER,POINT OF SALE,CARD,GPC,19-Jul-19,2019,4,,F3311,GUILDHALL,D1832,FOOD PURCHASES
GUILDFORD BOROUGH COUNCIL,GUILDHALL,SAINSBURYS S/MKTS,N/A,16-Jul-19,1034897,3.3,0,FOOD PURCHASES,THIRD PARTY SUPPLIER,POINT OF SALE,CARD,GPC,16-Jul-19,2019,4,,F3311,GUILDHALL,D1832,FOOD PURCHASES
GUILDFORD BOROUGH COUNCIL,GUILDHALL,B  Q 1029,N/A,15-Jul-19,1034897,26.65,0,EQUIP. & TOOLS REPAIRS,THIRD PARTY SUPPLIER,POINT OF SALE,CARD,GPC,15-Jul-19,2019,4,,F3311,GUILDHALL,D1429,EQUIP. & TOOLS REPAIRS
GUILDFORD BOROUGH COUNCIL,PUBLIC RELATIONS,FACEBK RY6MMK6XA2,N/A,01-Jul-19,1034897,12,0,CORPORATE PROMOTIONS,THIRD PARTY SUPPLIER,POINT OF SALE,CARD,GPC,01-Jul-19,2019,4,,F5551,PUBLIC RELATIONS & MARKETING,D9492,CORPORATE PROMOTIONS
GUILDFORD BOROUGH COUNCIL,COMMUNITY WELLBEING,PAYPAL DDLTD,N/A,08-Jul-19,1034897,73.8,0,COMMUNITY ISSUES,THIRD PARTY SUPPLIER,POINT OF SALE,CARD,GPC,08-Jul-19,2019,4,,F5713,COMMUNITY WELLBEING,D9512,COMMUNITY ISSUES
GUILDFORD BOROUGH COUNCIL,COMMUNITY WELLBEING,PAYPAL DDLTD,N/A,18-Jul-19,1034897,38.2,0,COMMUNITY ISSUES,THIRD PARTY SUPPLIER,POINT OF SALE,CARD,GPC,18-Jul-19,2019,4,,F5713,COMMUNITY WELLBEING,D9512,COMMUNITY ISSUES
GUILDFORD BOROUGH COUNCIL,COMMUNITY WELLBEING,WWW.HOBBYCRAFT.CO.UK,N/A,17-Jul-19,1034897,23,0,COMMUNITY ISSUES,THIRD PARTY SUPPLIER,POINT OF SALE,CARD,GPC,17-Jul-19,2019,4,,F5713,COMMUNITY WELLBEING,D9512,COMMUNITY ISSUES
GUILDFORD BOROUGH COUNCIL,DEBTORS,OFFICE DEPOT UK LTD,N/A,16-Jul-19,1034897,15,0,STATIONERY & OFFICE SUPPLIES,THIRD PARTY SUPPLIER,POINT OF SALE,CARD,GPC,16-Jul-19,2019,4,4372019070,G3555,DEBTORS,D3472,STATIONERY & OFFICE SUPPLIES
GUILDFORD BOROUGH COUNCIL,ACCOUNTANCY,THE FINANCIAL TIMES,N/A,28-Jun-19,1034897,48,0,GENERAL SUBSCRIPTIONS,THIRD PARTY SUPPLIER,POINT OF SALE,CARD,GPC,28-Jun-19,2019,4,,G3565,ACCOUNTANCY SERVICES,D7497,GENERAL SUBSCRIPTIONS
GUILDFORD BOROUGH COUNCIL,ACCOUNTANCY,OFFICE DEPOT UK LTD,N/A,16-Jul-19,1034897,31.77,0,STATIONERY & OFFICE SUPPLIES,THIRD PARTY SUPPLIER,POINT OF SALE,CARD,GPC,16-Jul-19,2019,4,4372019070,G3565,ACCOUNTANCY SERVICES,D3472,STATIONERY & OFFICE SUPPLIES
GUILDFORD BOROUGH COUNCIL,LEGAL SERVICES,OFFICE DEPOT UK LTD,N/A,22-Jul-19,1034897,4.29,0,STATIONERY & OFFICE SUPPLIES,THIRD PARTY SUPPLIER,POINT OF SALE,CARD,GPC,22-Jul-19,2019,4,8892019061,G4525,LEGAL SERVICES,D3472,STATIONERY & OFFICE SUPPLIES
GUILDFORD BOROUGH COUNCIL,LEGAL SERVICES,TRAVELODGE GB0000,N/A,19-Jul-19,1034897,81.46,0,SUBSISTENCE - OFFICERS,THIRD PARTY SUPPLIER,POINT OF SALE,CARD,GPC,19-Jul-19,2019,4,,G4525,LEGAL SERVICES,A7179,SUBSISTENCE - OFFICERS
GUILDFORD BOROUGH COUNCIL,CORPORATE PROPERTY SERVICES,WWW BUILDING CO UK SUBSC,N/A,23-Jul-19,1034897,173.51,0,BOOKS AND PUBLICATIONS,THIRD PARTY SUPPLIER,POINT OF SALE,CARD,GPC,23-Jul-19,2019,4,,G4575,CORPORATE PROPERTY SERVICES,D3411,BOOKS AND PUBLICATIONS
GUILDFORD BOROUGH COUNCIL,OFFICE SERVICES TEAM,SUPERDRUG STORES PLC,N/A,28-Jun-19,1034897,57.66,0,FIRST AID,THIRD PARTY SUPPLIER,POINT OF SALE,CARD,GPC,28-Jun-19,2019,4,,G7511,MILLMEAD HOUSE,D1538,FIRST AID
GUILDFORD BOROUGH COUNCIL,OPERATIONAL SERVS OVERHEAD AC,OFFICE DEPOT UK LTD,N/A,24-Jul-19,1034897,96.45,0,STATIONERY & OFFICE SUPPLIES,THIRD PARTY SUPPLIER,POINT OF SALE,CARD,GPC,24-Jul-19,2019,4,2612019072,K1519,OPERATIONAL SERVS OVERHEAD AC,D3472,STATIONERY & OFFICE SUPPLIES
GUILDFORD BOROUGH COUNCIL,OPERATIONAL SERVS OVERHEAD AC,WWW.OFFICEFURNITUREONL,N/A,24-Jul-19,1034897,498,0,OFFICE EQUIP. - PURCHASE,THIRD PARTY SUPPLIER,POINT OF SALE,CARD,GPC,24-Jul-19,2019,4,2579532431,K1519,OPERATIONAL SERVS OVERHEAD AC,D3448,OFFICE EQUIP. - PURCHASE
GUILDFORD BOROUGH COUNCIL,OPERATIONAL SERVS OVERHEAD AC,WWW.SOUTHWESTTRAINS.CO,N/A,05-Jul-19,1034897,35.42,0,USE OF PUB TRANSP; OFFICERS,THIRD PARTY SUPPLIER,POINT OF SALE,CARD,GPC,05-Jul-19,2019,4,,K1519,OPERATIONAL SERVS OVERHEAD AC,C5343,USE OF PUB TRANSP; OFFICERS
GUILDFORD BOROUGH COUNCIL,OPERATIONAL SERVS OVERHEAD AC,WWW.W-P.CO.UK,N/A,04-Jul-19,1034897,63.52,0,CLEANING MATERIALS,THIRD PARTY SUPPLIER,POINT OF SALE,CARD,GPC,04-Jul-19,2019,4,SIN234086V,K1519,OPERATIONAL SERVS OVERHEAD AC,B6231,CLEANING MATERIALS
GUILDFORD BOROUGH COUNCIL,PARKS & COUNTRYSIDE,B  Q 1029,N/A,28-Jun-19,1034897,22.48,0,MATERIALS,THIRD PARTY SUPPLIER,POINT OF SALE,CARD,GPC,28-Jun-19,2019,4,,A1300,TREES & COUNTRYSIDE,D1545,MATERIALS
GUILDFORD BOROUGH COUNCIL,PARKS & COUNTRYSIDE,WWW.SURE-GREEN.COM,N/A,15-Jul-19,1034897,122.5,0,MATERIALS,THIRD PARTY SUPPLIER,POINT OF SALE,CARD,GPC,15-Jul-19,2019,4,,A1300,TREES & COUNTRYSIDE,D1545,MATERIALS
GUILDFORD BOROUGH COUNCIL,PARKS & COUNTRYSIDE,MATS GRIDS - VT,N/A,08-Jul-19,1034897,99.92,0,MATERIALS,THIRD PARTY SUPPLIER,POINT OF SALE,CARD,GPC,08-Jul-19,2019,4,,A1300,TREES & COUNTRYSIDE,D1545,MATERIALS
GUILDFORD BOROUGH COUNCIL,PARKS & COUNTRYSIDE,SAINSBURY'S S/MKT,N/A,24-Jul-19,1034897,13.25,0,EQUIP. & TOOLS REPAIRS,THIRD PARTY SUPPLIER,POINT OF SALE,CARD,GPC,24-Jul-19,2019,4,,A1300,TREES & COUNTRYSIDE,D1429,EQUIP. & TOOLS REPAIRS
GUILDFORD BOROUGH COUNCIL,PARKS & COUNTRYSIDE,HONEY BROTHERS LTD,N/A,16-Jul-19,1034897,42.39,0,EQUIP. & TOOLS REPAIRS,THIRD PARTY SUPPLIER,POINT OF SALE,CARD,GPC,16-Jul-19,2019,4,,A1300,TREES & COUNTRYSIDE,D1429,EQUIP. & TOOLS REPAIRS
GUILDFORD BOROUGH COUNCIL,PARKS & COUNTRYSIDE,HONEY BROTHERS LTD,N/A,15-Jul-19,1034897,38.2,0,EQUIP. & TOOLS REPAIRS,THIRD PARTY SUPPLIER,POINT OF SALE,CARD,GPC,15-Jul-19,2019,4,,A1300,TREES & COUNTRYSIDE,D1429,EQUIP. & TOOLS REPAIRS
GUILDFORD BOROUGH COUNCIL,CREMATORIUM,OFFICE DEPOT UK LTD,N/A,17-Jul-19,1034897,82.77,0,STATIONERY & OFFICE SUPPLIES,THIRD PARTY SUPPLIER,POINT OF SALE,CARD,GPC,17-Jul-19,2019,4,2222019071,A1500,GUILDFORD CREMATORIUM,D3472,STATIONERY & OFFICE SUPPLIES
GUILDFORD BOROUGH COUNCIL,PARKS & COUNTRYSIDE,WWW.W-P.CO.UK,N/A,10-Jul-19,1034897,32.15,0,CLEANING MATERIALS,THIRD PARTY SUPPLIER,POINT OF SALE,CARD,GPC,10-Jul-19,2019,4,SIN234925V,A1600,STOKE NURSERY DEPOT,B6231,CLEANING MATERIALS
GUILDFORD BOROUGH COUNCIL,PARKS & COUNTRYSIDE,OFFICE DEPOT UK LTD,N/A,16-Jul-19,1034897,36.74,0,STATIONERY & OFFICE SUPPLIES,THIRD PARTY SUPPLIER,POINT OF SALE,CARD,GPC,16-Jul-19,2019,4,2692019070,A1900,PARKS MANAGEMENT AND ADMIN,D3472,STATIONERY & OFFICE SUPPLIES
GUILDFORD BOROUGH COUNCIL,PARKS & COUNTRYSIDE,OFFICE DEPOT UK LTD,N/A,16-Jul-19,1034897,0.5,0,STATIONERY & OFFICE SUPPLIES,THIRD PARTY SUPPLIER,POINT OF SALE,CARD,GPC,16-Jul-19,2019,4,2692019070,A1900,PARKS MANAGEMENT AND ADMIN,D3472,STATIONERY & OFFICE SUPPLIES
GUILDFORD BOROUGH COUNCIL,GUILDFORD HOUSE,GUILDFORD LOCK AND SAF,N/A,11-Jul-19,1034897,22.9,0,KEY CUTTING,THIRD PARTY SUPPLIER,POINT OF SALE,CARD,GPC,11-Jul-19,2019,4,,A4511,GUILDFORD HOUSE ADMINISTRATION,D1460,KEY CUTTING
GUILDFORD BOROUGH COUNCIL,GUILDFORD HOUSE,WWW.W-P.CO.UK,N/A,28-Jun-19,1034897,-24.18,0,JANITORIAL SUPPLIES,THIRD PARTY SUPPLIER,POINT OF SALE,CARD,GPC,28-Jun-19,2019,4,SIN233326V,A4511,GUILDFORD HOUSE ADMINISTRATION,B6259,JANITORIAL SUPPLIES
GUILDFORD BOROUGH COUNCIL,GUILDFORD HOUSE,WWW.W-P.CO.UK,N/A,18-Jul-19,1034897,81.17,0,JANITORIAL SUPPLIES,THIRD PARTY SUPPLIER,POINT OF SALE,CARD,GPC,18-Jul-19,2019,4,SIN236097V,A4511,GUILDFORD HOUSE ADMINISTRATION,B6259,JANITORIAL SUPPLIES
GUILDFORD BOROUGH COUNCIL,GUILDFORD HOUSE,WWW.W-P.CO.UK,N/A,01-Jul-19,1034897,24.18,0,JANITORIAL SUPPLIES,THIRD PARTY SUPPLIER,POINT OF SALE,CARD,GPC,01-Jul-19,2019,4,SIN233364V,A4511,GUILDFORD HOUSE ADMINISTRATION,B6259,JANITORIAL SUPPLIES
GUILDFORD BOROUGH COUNCIL,MUSEUM,CRAFTERS COMPANION,N/A,18-Jul-19,1034897,24.99,0,EXHIBITS; PURCH & PRESENTAT'N,THIRD PARTY SUPPLIER,POINT OF SALE,CARD,GPC,18-Jul-19,2019,4,,A5511,MUSEUM,D1534,EXHIBITS; PURCH & PRESENTAT'N
GUILDFORD BOROUGH COUNCIL,LEISURE PLAY DEVELOPMENT,WWW.MUDDYFACES.CO.UK,N/A,12-Jul-19,1034897,65.93,0,PLAY RANGERS,THIRD PARTY SUPPLIER,POINT OF SALE,CARD,GPC,12-Jul-19,2019,4,153433992,A7211,PLAY DEVELOPMENT,D4526,PLAY RANGERS
GUILDFORD BOROUGH COUNCIL,LEISURE PLAY DEVELOPMENT,WOKING BOROUGH COUNCIL,N/A,05-Jul-19,1034897,5.75,0,PLAY RANGERS,THIRD PARTY SUPPLIER,POINT OF SALE,CARD,GPC,05-Jul-19,2019,4,,A7211,PLAY DEVELOPMENT,D4526,PLAY RANGERS
GUILDFORD BOROUGH COUNCIL,LEISURE PLAY DEVELOPMENT,WWW.W-P.CO.UK,N/A,08-Jul-19,1034897,76.49,0,PLAY RANGERS,THIRD PARTY SUPPLIER,POINT OF SALE,CARD,GPC,08-Jul-19,2019,4,SIN234468V,A7211,PLAY DEVELOPMENT,D4526,PLAY RANGERS
GUILDFORD BOROUGH COUNCIL,LEISURE SPORT DEVELOPMENT,WOKING BOROUGH COUNCIL,N/A,23-Jul-19,1034897,1.25,0,SURREY YOUTH GAMES,THIRD PARTY SUPPLIER,POINT OF SALE,CARD,GPC,23-Jul-19,2019,4,,A7311,SPORTS DEVELOPMENT OFFICER,D9598,SURREY YOUTH GAMES
GUILDFORD BOROUGH COUNCIL,LEISURE SPORT DEVELOPMENT,OFFICE DEPOT UK LTD,N/A,24-Jul-19,1034897,32.52,0,STATIONERY & OFFICE SUPPLIES,THIRD PARTY SUPPLIER,POINT OF SALE,CARD,GPC,24-Jul-19,2019,4,2202019072,A7311,SPORTS DEVELOPMENT OFFICER,D3472,STATIONERY & OFFICE SUPPLIES
GUILDFORD BOROUGH COUNCIL,OFF STREET PARKING,WWW.W-P.CO.UK,N/A,19-Jul-19,1034897,491.52,0,CLEANING MATERIALS,THIRD PARTY SUPPLIER,POINT OF SALE,CARD,GPC,19-Jul-19,2019,4,SIN236350V,B2216,GENERAL UPKEEP- URBAN CAR PKS,B6231,CLEANING MATERIALS
GUILDFORD BOROUGH COUNCIL,OFF STREET PARKING,WWW.W-P.CO.UK,N/A,09-Jul-19,1034897,42.7,0,CLEANING MATERIALS,THIRD PARTY SUPPLIER,POINT OF SALE,CARD,GPC,09-Jul-19,2019,4,SIN234597V,B2216,GENERAL UPKEEP- URBAN CAR PKS,B6231,CLEANING MATERIALS
GUILDFORD BOROUGH COUNCIL,OFF STREET PARKING,WWW.W-P.CO.UK,N/A,01-Jul-19,1034897,55.18,0,CLEANING MATERIALS,THIRD PARTY SUPPLIER,POINT OF SALE,CARD,GPC,01-Jul-19,2019,4,SIN233490V,B2216,GENERAL UPKEEP- URBAN CAR PKS,B6231,CLEANING MATERIALS
GUILDFORD BOROUGH COUNCIL,ON STREET PARKING,OFFICE DEPOT UK LTD,N/A,24-Jul-19,1034897,94.61,0,STATIONERY & OFFICE SUPPLIES,THIRD PARTY SUPPLIER,POINT OF SALE,CARD,GPC,24-Jul-19,2019,4,2642019051,B2217,GUILDFORD ON-STREET,D3472,STATIONERY & OFFICE SUPPLIES
GUILDFORD BOROUGH COUNCIL,GOVERNMENT ST DEBTORS,PC CARD VAT,N/A,28-Jul-19,1034897,18.79,0,VAT INPUT TAX,THIRD PARTY SUPPLIER,POINT OF SALE,CARD,GPC,28-Jul-19,2019,4,Z,J02040,VAT,2736,VAT INPUT TAX
GUILDFORD BOROUGH COUNCIL,GOVERNMENT ST DEBTORS,PC CARD VAT,N/A,28-Jul-19,1034897,4.85,0,VAT INPUT TAX,THIRD PARTY SUPPLIER,POINT OF SALE,CARD,GPC,28-Jul-19,2019,4,,J02040,VAT,2736,VAT INPUT TAX
GUILDFORD BOROUGH COUNCIL,GOVERNMENT ST DEBTORS,PC CARD VAT,N/A,28-Jul-19,1034897,12.79,0,VAT INPUT TAX,THIRD PARTY SUPPLIER,POINT OF SALE,CARD,GPC,28-Jul-19,2019,4,O,J02040,VAT,2736,VAT INPUT TAX
GUILDFORD BOROUGH COUNCIL,GOVERNMENT ST DEBTORS,PC CARD VAT,N/A,28-Jul-19,1034897,1923.76,0,VAT INPUT TAX,THIRD PARTY SUPPLIER,POINT OF SALE,CARD,GPC,28-Jul-19,2019,4,20,J02040,VAT,2736,VAT INPUT TAX
GUILDFORD BOROUGH COUNCIL,MOT BAY,DVSA,N/A,17-Jul-19,1034897,410,0,PURCHASE OF MOT SLOTS,THIRD PARTY SUPPLIER,POINT OF SALE,CARD,GPC,17-Jul-19,2019,4,,V8598,MOT STATION,D1554,PURCHASE OF MOT SLOTS
GUILDFORD BOROUGH COUNCIL,REFUSE AND RECYCLING,SCREWFIX DIRECT,N/A,01-Jul-19,1034897,166.64,0,NEW / REPLACE EQUIP. & TOOLS;,THIRD PARTY SUPPLIER,POINT OF SALE,CARD,GPC,01-Jul-19,2019,4,,K3551,REFUSE COLLECTION,D1428,NEW / REPLACE EQUIP. & TOOLS;
GUILDFORD BOROUGH COUNCIL,REFUSE AND RECYCLING,U-MARQ LTD,N/A,09-Jul-19,1034897,27.5,0,NEW / REPLACE EQUIP. & TOOLS;,THIRD PARTY SUPPLIER,POINT OF SALE,CARD,GPC,09-Jul-19,2019,4,,K3551,REFUSE COLLECTION,D1428,NEW / REPLACE EQUIP. & TOOLS;
GUILDFORD BOROUGH COUNCIL,REFUSE AND RECYCLING,PAYPAL WICKESBUILD,N/A,25-Jul-19,1034897,45,0,NEW / REPLACE EQUIP. & TOOLS;,THIRD PARTY SUPPLIER,POINT OF SALE,CARD,GPC,25-Jul-19,2019,4,,K3551,REFUSE COLLECTION,D1428,NEW / REPLACE EQUIP. & TOOLS;
GUILDFORD BOROUGH COUNCIL,REFUSE AND RECYCLING,PAYPAL SWIFTDIRECT,N/A,02-Jul-19,1034897,71.94,0,NEW / REPLACE EQUIP. & TOOLS;,THIRD PARTY SUPPLIER,POINT OF SALE,CARD,GPC,02-Jul-19,2019,4,,K3551,REFUSE COLLECTION,D1428,NEW / REPLACE EQUIP. & TOOLS;
GUILDFORD BOROUGH COUNCIL,REFUSE AND RECYCLING,ARCO LTD,N/A,04-Jul-19,1034897,54,0,NEW / REPLACE EQUIP. & TOOLS;,THIRD PARTY SUPPLIER,POINT OF SALE,CARD,GPC,04-Jul-19,2019,4,Paul Benne,K3551,REFUSE COLLECTION,D1428,NEW / REPLACE EQUIP. & TOOLS;
GUILDFORD BOROUGH COUNCIL,STREET CLEANSING,ARCO LTD,N/A,01-Jul-19,1034897,58.02,0,NEW / REPLACE EQUIP. & TOOLS;,THIRD PARTY SUPPLIER,POINT OF SALE,CARD,GPC,01-Jul-19,2019,4,Alexander,K4551,STREET CLEANSING,D1428,NEW / REPLACE EQUIP. & TOOLS;
GUILDFORD BOROUGH COUNCIL,VEHICLE MAINTENANCE,CRADLEY HEATH KAWASAKI,N/A,03-Jul-19,1034897,123.6,0,SPARES FOR VEHICLES,THIRD PARTY SUPPLIER,POINT OF SALE,CARD,GPC,03-Jul-19,2019,4,,K5551,VEHICLE MAINTENANCE,D1589,SPARES FOR VEHICLES
GUILDFORD BOROUGH COUNCIL,VEHICLE MAINTENANCE,ARGOS BURPHAM,N/A,10-Jul-19,1034897,123.31,0,NEW / REPLACE EQUIP. & TOOLS;,THIRD PARTY SUPPLIER,POINT OF SALE,CARD,GPC,10-Jul-19,2019,4,,K5551,VEHICLE MAINTENANCE,D1428,NEW / REPLACE EQUIP. & TOOLS;
GUILDFORD BOROUGH COUNCIL,VEHICLE MAINTENANCE,ARCO LTD,N/A,02-Jul-19,1034897,89.47,0,NEW / REPLACE EQUIP. & TOOLS;,THIRD PARTY SUPPLIER,POINT OF SALE,CARD,GPC,02-Jul-19,2019,4,Alexander,K5551,VEHICLE MAINTENANCE,D1428,NEW / REPLACE EQUIP. & TOOLS;
GUILDFORD BOROUGH COUNCIL,VEHICLE MAINTENANCE,WWW.DEMARVAN.CO.UK,N/A,16-Jul-19,1034897,421,0,NEW / REPLACE EQUIP. & TOOLS;,THIRD PARTY SUPPLIER,POINT OF SALE,CARD,GPC,16-Jul-19,2019,4,155560756,K5551,VEHICLE MAINTENANCE,D1428,NEW / REPLACE EQUIP. & TOOLS;
GUILDFORD BOROUGH COUNCIL,SHELTERED HOUSING,WWW.W-P.CO.UK,N/A,23-Jul-19,1034897,77.38,0,FIRST AID,THIRD PARTY SUPPLIER,POINT OF SALE,CARD,GPC,23-Jul-19,2019,4,SIN236700V,M1515,SHELTERED ACCOMODATION,D1538,FIRST AID
GUILDFORD BOROUGH COUNCIL,SHELTERED HOUSING,WWW.W-P.CO.UK,N/A,19-Jul-19,1034897,49.8,0,CLEANING MATERIALS,THIRD PARTY SUPPLIER,POINT OF SALE,CARD,GPC,19-Jul-19,2019,4,SIN236336V,M1515,SHELTERED ACCOMODATION,B6231,CLEANING MATERIALS
GUILDFORD BOROUGH COUNCIL,SHELTERED HOUSING,WWW.W-P.CO.UK,N/A,19-Jul-19,1034897,49.8,0,CLEANING MATERIALS,THIRD PARTY SUPPLIER,POINT OF SALE,CARD,GPC,19-Jul-19,2019,4,SIN236335V,M1515,SHELTERED ACCOMODATION,B6231,CLEANING MATERIALS
GUILDFORD BOROUGH COUNCIL,SHELTERED HOUSING,WWW.W-P.CO.UK,N/A,15-Jul-19,1034897,29.3,0,CLEANING MATERIALS,THIRD PARTY SUPPLIER,POINT OF SALE,CARD,GPC,15-Jul-19,2019,4,SIN235597V,M1515,SHELTERED ACCOMODATION,B6231,CLEANING MATERIALS
GUILDFORD BOROUGH COUNCIL,SHELTERED HOUSING,WWW.W-P.CO.UK,N/A,08-Jul-19,1034897,133.72,0,CLEANING MATERIALS,THIRD PARTY SUPPLIER,POINT OF SALE,CARD,GPC,08-Jul-19,2019,4,SIN234469V,M1515,SHELTERED ACCOMODATION,B6231,CLEANING MATERIALS
GUILDFORD BOROUGH COUNCIL,OTHER ST CREDITORS,WWW.GUILDFORD-SHAKESPEAR,N/A,04-Jul-19,1034897,55.5,0,CURRENT YEARS EXPENDITURE,THIRD PARTY SUPPLIER,POINT OF SALE,CARD,GPC,04-Jul-19,2019,4,,L02133,MAYORS ALLOWANCE,2239,CURRENT YEARS EXPENDITURE
GUILDFORD BOROUGH COUNCIL,LEISURE PLAY DEVELOPMENT,AMZNMKTPLACE,N/A,13-Jul-19,1034897,22.72,0,NEW / REPLACE EQUIP. & TOOLS;,THIRD PARTY SUPPLIER,POINT OF SALE,CARD,GPC,13-Jul-19,2019,4,204-083744,A4126,FISH,D1428,NEW / REPLACE EQUIP. & TOOLS;
GUILDFORD BOROUGH COUNCIL,LEISURE PLAY DEVELOPMENT,JS ONLINE GROCERY,N/A,25-Jul-19,1034897,78.96,0,NEW / REPLACE EQUIP. & TOOLS;,THIRD PARTY SUPPLIER,POINT OF SALE,CARD,GPC,25-Jul-19,2019,4,,A4126,FISH,D1428,NEW / REPLACE EQUIP. & TOOLS;
GUILDFORD BOROUGH COUNCIL,LEISURE PLAY DEVELOPMENT,AMZNMKTPLACE,N/A,13-Jul-19,1034897,17.74,0,NEW / REPLACE EQUIP. & TOOLS;,THIRD PARTY SUPPLIER,POINT OF SALE,CARD,GPC,13-Jul-19,2019,4,203-561071,A4126,FISH,D1428,NEW / REPLACE EQUIP. & TOOLS;
GUILDFORD BOROUGH COUNCIL,LEISURE PLAY DEVELOPMENT,WWW.TOOLSTATION.COM,N/A,22-Jul-19,1034897,49.3,0,NEW / REPLACE EQUIP. & TOOLS;,THIRD PARTY SUPPLIER,POINT OF SALE,CARD,GPC,22-Jul-19,2019,4,,A4126,FISH,D1428,NEW / REPLACE EQUIP. & TOOLS;
GUILDFORD BOROUGH COUNCIL,LEISURE PLAY DEVELOPMENT,CLUSKEYS CCP LTD,N/A,04-Jul-19,1034897,119.63,0,NEW / REPLACE EQUIP. & TOOLS;,THIRD PARTY SUPPLIER,POINT OF SALE,CARD,GPC,04-Jul-19,2019,4,,A4126,FISH,D1428,NEW / REPLACE EQUIP. & TOOLS;
GUILDFORD BOROUGH COUNCIL,LEISURE PLAY DEVELOPMENT,JS ONLINE GROCERY,N/A,19-Jul-19,1034897,37.9,0,NEW / REPLACE EQUIP. & TOOLS;,THIRD PARTY SUPPLIER,POINT OF SALE,CARD,GPC,19-Jul-19,2019,4,,A4126,FISH,D1428,NEW / REPLACE EQUIP. & TOOLS;
GUILDFORD BOROUGH COUNCIL,LEISURE PLAY DEVELOPMENT,FINDEL EDUCATION,N/A,09-Jul-19,1034897,117.3,0,NEW / REPLACE EQUIP. & TOOLS;,THIRD PARTY SUPPLIER,POINT OF SALE,CARD,GPC,09-Jul-19,2019,4,,A4126,FISH,D1428,NEW / REPLACE EQUIP. & TOOLS;
GUILDFORD BOROUGH COUNCIL,LEISURE PLAY DEVELOPMENT,AMZNMKTPLACE,N/A,11-Jul-19,1034897,23.32,0,NEW / REPLACE EQUIP. & TOOLS;,THIRD PARTY SUPPLIER,POINT OF SALE,CARD,GPC,11-Jul-19,2019,4,203-561071,A4126,FISH,D1428,NEW / REPLACE EQUIP. & TOOLS;
GUILDFORD BOROUGH COUNCIL,LEISURE PLAY DEVELOPMENT,BAKER ROSS,N/A,12-Jul-19,1034897,52.55,0,NEW / REPLACE EQUIP. & TOOLS;,THIRD PARTY SUPPLIER,POINT OF SALE,CARD,GPC,12-Jul-19,2019,4,,A4126,FISH,D1428,NEW / REPLACE EQUIP. & TOOLS;
GUILDFORD BOROUGH COUNCIL,OTHER ST CREDITORS,PC CARD CONTRA,N/A,28-Jul-19,1034897,-27541.53,0,T/FR TO REVENUE,THIRD PARTY SUPPLIER,POINT OF SALE,CARD,GPC,28-Jul-19,2019,4,,L02006,GOVT PROCUREMENT CARDS,2940,T/FR TO REVENUE
GUILDFORD BOROUGH COUNCIL,PRIVATE SECTOR HOUSING,TOOLSTATION LTD,N/A,28-Jun-19,1034897,32.9,0,MATERIALS,THIRD PARTY SUPPLIER,POINT OF SALE,CARD,GPC,28-Jun-19,2019,4,,C5136,HANDYPERSON SERVICE,D1545,MATERIALS
GUILDFORD BOROUGH COUNCIL,PRIVATE SECTOR HOUSING,TP GUILDFORD,N/A,28-Jun-19,1034897,44.81,0,MATERIALS,THIRD PARTY SUPPLIER,POINT OF SALE,CARD,GPC,28-Jun-19,2019,4,None,C5136,HANDYPERSON SERVICE,D1545,MATERIALS
GUILDFORD BOROUGH COUNCIL,PRIVATE SECTOR HOUSING,TP WOKING,N/A,01-Jul-19,1034897,47.62,0,MATERIALS,THIRD PARTY SUPPLIER,POINT OF SALE,CARD,GPC,01-Jul-19,2019,4,None,C5136,HANDYPERSON SERVICE,D1545,MATERIALS
GUILDFORD BOROUGH COUNCIL,PRIVATE SECTOR HOUSING,TP GUILDFORD,N/A,02-Jul-19,1034897,32.67,0,MATERIALS,THIRD PARTY SUPPLIER,POINT OF SALE,CARD,GPC,02-Jul-19,2019,4,None,C5136,HANDYPERSON SERVICE,D1545,MATERIALS
GUILDFORD BOROUGH COUNCIL,PRIVATE SECTOR HOUSING,WILLIAMS TRADE SUP GUILD,N/A,03-Jul-19,1034897,44.33,0,MATERIALS,THIRD PARTY SUPPLIER,POINT OF SALE,CARD,GPC,03-Jul-19,2019,4,,C5136,HANDYPERSON SERVICE,D1545,MATERIALS
GUILDFORD BOROUGH COUNCIL,PRIVATE SECTOR HOUSING,JEWSON LTD,N/A,05-Jul-19,1034897,27.43,0,MATERIALS,THIRD PARTY SUPPLIER,POINT OF SALE,CARD,GPC,05-Jul-19,2019,4,2287734,C5136,HANDYPERSON SERVICE,D1545,MATERIALS
GUILDFORD BOROUGH COUNCIL,PRIVATE SECTOR HOUSING,SELCO BUILDERS,N/A,11-Jul-19,1034897,19.86,0,MATERIALS,THIRD PARTY SUPPLIER,POINT OF SALE,CARD,GPC,11-Jul-19,2019,4,,C5136,HANDYPERSON SERVICE,D1545,MATERIALS
GUILDFORD BOROUGH COUNCIL,PRIVATE SECTOR HOUSING,TP GUILDFORD,N/A,16-Jul-19,1034897,59.62,0,MATERIALS,THIRD PARTY SUPPLIER,POINT OF SALE,CARD,GPC,16-Jul-19,2019,4,None,C5136,HANDYPERSON SERVICE,D1545,MATERIALS
GUILDFORD BOROUGH COUNCIL,PRIVATE SECTOR HOUSING,COVERS ALDERSHOT12,N/A,18-Jul-19,1034897,50.53,0,MATERIALS,THIRD PARTY SUPPLIER,POINT OF SALE,CARD,GPC,18-Jul-19,2019,4,,C5136,HANDYPERSON SERVICE,D1545,MATERIALS
GUILDFORD BOROUGH COUNCIL,PRIVATE SECTOR HOUSING,GUILDFORD1125,N/A,24-Jul-19,1034897,24.99,0,MATERIALS,THIRD PARTY SUPPLIER,POINT OF SALE,CARD,GPC,24-Jul-19,2019,4,,C5136,HANDYPERSON SERVICE,D1545,MATERIALS
GUILDFORD BOROUGH COUNCIL,PRIVATE SECTOR HOUSING,JEWSON LTD,N/A,24-Jul-19,1034897,57.94,0,MATERIALS,THIRD PARTY SUPPLIER,POINT OF SALE,CARD,GPC,24-Jul-19,2019,4,2551461,C5136,HANDYPERSON SERVICE,D1545,MATERIALS
GUILDFORD BOROUGH COUNCIL,PRIVATE SECTOR HOUSING,SELCO BUILDERS,N/A,23-Jul-19,1034897,33.6,0,MATERIALS,THIRD PARTY SUPPLIER,POINT OF SALE,CARD,GPC,23-Jul-19,2019,4,,C5136,HANDYPERSON SERVICE,D1545,MATERIALS
GUILDFORD BOROUGH COUNCIL,PRIVATE SECTOR HOUSING,TP GUILDFORD,N/A,22-Jul-19,1034897,89.17,0,MATERIALS,THIRD PARTY SUPPLIER,POINT OF SALE,CARD,GPC,22-Jul-19,2019,4,None,C5136,HANDYPERSON SERVICE,D1545,MATERIALS
GUILDFORD BOROUGH COUNCIL,PRIVATE SECTOR HOUSING,LLOYDS PHARMACY,N/A,23-Jul-19,1034897,7,0,MATERIALS,THIRD PARTY SUPPLIER,POINT OF SALE,CARD,GPC,23-Jul-19,2019,4,,C5136,HANDYPERSON SERVICE,D1545,MATERIALS
GUILDFORD BOROUGH COUNCIL,OFFICE SERVICES TEAM,WWW.W-P.CO.UK,N/A,22-Jul-19,1034897,83.75,0,CLEANING MATERIALS,THIRD PARTY SUPPLIER,POINT OF SALE,CARD,GPC,22-Jul-19,2019,4,SIN236549V,G7510,OFFICE CLEANING,B6231,CLEANING MATERIALS
GUILDFORD BOROUGH COUNCIL,OFFICE SERVICES TEAM,WWW.W-P.CO.UK,N/A,18-Jul-19,1034897,639.54,0,CLEANING MATERIALS,THIRD PARTY SUPPLIER,POINT OF SALE,CARD,GPC,18-Jul-19,2019,4,SIN236164V,G7510,OFFICE CLEANING,B6231,CLEANING MATERIALS
GUILDFORD BOROUGH COUNCIL,OFFICE SERVICES TEAM,WWW.W-P.CO.UK,N/A,08-Jul-19,1034897,547.99,0,CLEANING MATERIALS,THIRD PARTY SUPPLIER,POINT OF SALE,CARD,GPC,08-Jul-19,2019,4,SIN234467V,G7510,OFFICE CLEANING,B6231,CLEANING MATERIALS
GUILDFORD BOROUGH COUNCIL,OFFICE SERVICES TEAM,WWW.W-P.CO.UK,N/A,04-Jul-19,1034897,123.25,0,CLEANING MATERIALS,THIRD PARTY SUPPLIER,POINT OF SALE,CARD,GPC,04-Jul-19,2019,4,SIN234085V,G7510,OFFICE CLEANING,B6231,CLEANING MATERIALS
GUILDFORD BOROUGH COUNCIL,STREET CLEANSING,TIMPSON LTD,N/A,24-Jul-19,1034897,26.67,0,NEW / REPLACE EQUIP. & TOOLS;,THIRD PARTY SUPPLIER,POINT OF SALE,CARD,GPC,24-Jul-19,2019,4,,B8512,ENVIRONMENTAL AND DOG CONTROL,D1428,NEW / REPLACE EQUIP. & TOOLS;
GUILDFORD BOROUGH COUNCIL,STREET CLEANSING,AMAZON.CO.UKM66D532O4,N/A,04-Jul-19,1034897,74.76,0,NEW / REPLACE EQUIP. & TOOLS;,THIRD PARTY SUPPLIER,POINT OF SALE,CARD,GPC,04-Jul-19,2019,4,204-119460,B8512,ENVIRONMENTAL AND DOG CONTROL,D1428,NEW / REPLACE EQUIP. & TOOLS;
GUILDFORD BOROUGH COUNCIL,DAY SERVICES,WWW.W-P.CO.UK,N/A,05-Jul-19,1034897,240.47,0,CLEANING MATERIALS,THIRD PARTY SUPPLIER,POINT OF SALE,CARD,GPC,05-Jul-19,2019,4,SIN234322V,C8189,CENTRAL HUB PARK BARN,B6231,CLEANING MATERIALS
GUILDFORD BOROUGH COUNCIL,DAY SERVICES,AMAZON.CO.UKMH58D9CX4,N/A,14-Jul-19,1034897,20.75,0,TRAINING,THIRD PARTY SUPPLIER,POINT OF SALE,CARD,GPC,14-Jul-19,2019,4,206-100388,C8189,CENTRAL HUB PARK BARN,A7161,TRAINING
GUILDFORD BOROUGH COUNCIL,FLEET MANAGEMENT,DVLA VEHICLE TAX,N/A,12-Jul-19,1034897,262.5,0,LICENCES - VEHICLES,THIRD PARTY SUPPLIER,POINT OF SALE,CARD,GPC,12-Jul-19,2019,4,,VV480,FORD TRANSIT RJ08 OTN,C1326,LICENCES - VEHICLES
GUILDFORD BOROUGH COUNCIL,DEVELOPMENT CONTROL,OFFICE DEPOT UK LTD,N/A,01-Jul-19,1034897,11.82,0,STATIONERY & OFFICE SUPPLIES,THIRD PARTY SUPPLIER,POINT OF SALE,CARD,GPC,01-Jul-19,2019,4,8882019042,D5100,DEVELOPMENT CONTROL - FEE EARN,D3472,STATIONERY & OFFICE SUPPLIES
GUILDFORD BOROUGH COUNCIL,POLICY,OFFICE DEPOT UK LTD,N/A,28-Jun-19,1034897,56.03,0,STATIONERY & OFFICE SUPPLIES,THIRD PARTY SUPPLIER,POINT OF SALE,CARD,GPC,28-Jun-19,2019,4,8882019062,D5300,POLICY,D3472,STATIONERY & OFFICE SUPPLIES
GUILDFORD BOROUGH COUNCIL,POLICY,OFFICE DEPOT UK LTD,N/A,02-Jul-19,1034897,11.82,0,STATIONERY & OFFICE SUPPLIES,THIRD PARTY SUPPLIER,POINT OF SALE,CARD,GPC,02-Jul-19,2019,4,8882019062,D5300,POLICY,D3472,STATIONERY & OFFICE SUPPLIES
GUILDFORD BOROUGH COUNCIL,OTHER ST DEBTORS,SPICERHAART RESIDENTIAL,N/A,22-Jul-19,1034897,850,0,CASH PAID,THIRD PARTY SUPPLIER,POINT OF SALE,CARD,GPC,22-Jul-19,2019,4,,J01064,HOUSING H4U SCHEME,2175,CASH PAID
GUILDFORD BOROUGH COUNCIL,POLICY,AMAZON.CO.UKM64SB9R04 AM,N/A,10-Jul-19,1034897,49.99,0,COMPUTER HARDWARE,THIRD PARTY SUPPLIER,POINT OF SALE,CARD,GPC,10-Jul-19,2019,4,P77302,D5400,LOCAL PLAN 2013,D5427,COMPUTER HARDWARE
GUILDFORD BOROUGH COUNCIL,ON STREET PARKING,OFFICE DEPOT UK LTD,N/A,05-Jul-19,1034897,140,0,STATIONERY & OFFICE SUPPLIES,THIRD PARTY SUPPLIER,POINT OF SALE,CARD,GPC,05-Jul-19,2019,4,2642019054,B2215,WAVERLEY ON-STREET,D3472,STATIONERY & OFFICE SUPPLIES
GUILDFORD BOROUGH COUNCIL,ENGINEERING AND TRANS SERVICES,AMAZON.CO.UKM615V7734 AM,N/A,05-Jul-19,1034897,149.5,0,BOOKS AND PUBLICATIONS,THIRD PARTY SUPPLIER,POINT OF SALE,CARD,GPC,05-Jul-19,2019,4,204-323380,G5538,ENGINEERING AND TRANS SERVICES,D3411,BOOKS AND PUBLICATIONS
GUILDFORD BOROUGH COUNCIL,LEISURE MANAGEMENT CONTRACT,FREEDOM LEISURE,N/A,23-Jul-19,1034897,7.21,0,MISCELLANEOUS EXPENSES,THIRD PARTY SUPPLIER,POINT OF SALE,CARD,GPC,23-Jul-19,2019,4,,A7540,SPECTRUM CLIENT,D9483,MISCELLANEOUS EXPENSES
GUILDFORD BOROUGH COUNCIL,CREMATORIUM,AO RETAIL LIMITED,N/A,11-Jul-19,1034897,1064,0,MISCELLANEOUS EXPENSES,THIRD PARTY SUPPLIER,POINT OF SALE,CARD,GPC,11-Jul-19,2019,4,,P05009,REFURBISH/REBUILD CREMATORIUM,1444,MISCELLANEOUS EXPENSES
GUILDFORD BOROUGH COUNCIL,PUBLIC HEALTH,WOKING COUNCIL PARKING,N/A,17-Jul-19,1034897,6.5,0,CONSULTANTS (PROJECTS),THIRD PARTY SUPPLIER,POINT OF SALE,CARD,GPC,17-Jul-19,2019,4,,C1210,PUBLIC HEALTH,D4511,CONSULTANTS (PROJECTS)
GUILDFORD BOROUGH COUNCIL,PUBLIC HEALTH,MARKSSPENCER PLC,N/A,23-Jul-19,1034897,25,0,CONSULTANTS (PROJECTS),THIRD PARTY SUPPLIER,POINT OF SALE,CARD,GPC,23-Jul-19,2019,4,,C1210,PUBLIC HEALTH,D4511,CONSULTANTS (PROJECTS)
GUILDFORD BOROUGH COUNCIL,PUBLIC HEALTH,SAINSBURY'S S/MKT,N/A,03-Jul-19,1034897,25,0,CONSULTANTS (PROJECTS),THIRD PARTY SUPPLIER,POINT OF SALE,CARD,GPC,03-Jul-19,2019,4,,C1210,PUBLIC HEALTH,D4511,CONSULTANTS (PROJECTS)
GUILDFORD BOROUGH COUNCIL,FLEET MANAGEMENT,A AND M MOT SERVICES LIMI,N/A,17-Jul-19,1034897,55,0,LICENCES - VEHICLES,THIRD PARTY SUPPLIER,POINT OF SALE,CARD,GPC,17-Jul-19,2019,4,,VRR10,DENNIS EAGLE 18T GX63 GHH,C1326,LICENCES - VEHICLES
GUILDFORD BOROUGH COUNCIL,FLEET MANAGEMENT,DVLA VEHICLE TAX,N/A,12-Jul-19,1034897,262.5,0,LICENCES - VEHICLES,THIRD PARTY SUPPLIER,POINT OF SALE,CARD,GPC,12-Jul-19,2019,4,,VW132,MULE - HX11 HZR,C1326,LICENCES - VEHICLES
GUILDFORD BOROUGH COUNCIL,SURREY FAMILY SUPPORT PROG,WWW.ARGOS.CO.UK,N/A,02-Jul-19,1034897,172.94,0,OTHER GRANTS,THIRD PARTY SUPPLIER,POINT OF SALE,CARD,GPC,02-Jul-19,2019,4,,C3320,SURREY FAMILY SUPPORT PROG,K2901,OTHER GRANTS
GUILDFORD BOROUGH COUNCIL,SURREY FAMILY SUPPORT PROG,WAVERLEY BOROUGH COUNC,N/A,15-Jul-19,1034897,3.89,0,MISCELLANEOUS EXPENSES,THIRD PARTY SUPPLIER,POINT OF SALE,CARD,GPC,15-Jul-19,2019,4,,C3320,SURREY FAMILY SUPPORT PROG,D9483,MISCELLANEOUS EXPENSES
GUILDFORD BOROUGH COUNCIL,SURREY FAMILY SUPPORT PROG,RINGGO PARKING 8,N/A,24-Jul-19,1034897,3.72,0,MISCELLANEOUS EXPENSES,THIRD PARTY SUPPLIER,POINT OF SALE,CARD,GPC,24-Jul-19,2019,4,,C3320,SURREY FAMILY SUPPORT PROG,D9483,MISCELLANEOUS EXPENSES
GUILDFORD BOROUGH COUNCIL,SURREY FAMILY SUPPORT PROG,WAVERLEY BOROUGH COUNC,N/A,23-Jul-19,1034897,3.89,0,MISCELLANEOUS EXPENSES,THIRD PARTY SUPPLIER,POINT OF SALE,CARD,GPC,23-Jul-19,2019,4,,C3320,SURREY FAMILY SUPPORT PROG,D9483,MISCELLANEOUS EXPENSES
GUILDFORD BOROUGH COUNCIL,LA ST CREDITORS,AWS EMEA,N/A,04-Jul-19,1034897,168.99,0,PAYMENTS,THIRD PARTY SUPPLIER,POINT OF SALE,CARD,GPC,04-Jul-19,2019,4,248060217,L12105,SURREY GIS FORUM,2489,PAYMENTS
GUILDFORD BOROUGH COUNCIL,FLEET MANAGEMENT,DVLA VEHICLE TAX,N/A,12-Jul-19,1034897,617.5,0,LICENCES - VEHICLES,THIRD PARTY SUPPLIER,POINT OF SALE,CARD,GPC,12-Jul-19,2019,4,,VRR24,MERCEDES ECONIC 26T GD16 CWJ,C1326,LICENCES - VEHICLES
GUILDFORD BOROUGH COUNCIL,FLEET MANAGEMENT,DVLA VEHICLE TAX,N/A,12-Jul-19,1034897,617.5,0,LICENCES - VEHICLES,THIRD PARTY SUPPLIER,POINT OF SALE,CARD,GPC,12-Jul-19,2019,4,,VRR25,MERCEDES ECONIC 26T GD16 CWk,C1326,LICENCES - VEHICLES
GUILDFORD BOROUGH COUNCIL,FLEET MANAGEMENT,DVLA VEHICLE TAX,N/A,12-Jul-19,1034897,617.5,0,LICENCES - VEHICLES,THIRD PARTY SUPPLIER,POINT OF SALE,CARD,GPC,12-Jul-19,2019,4,,VRR26,MERCEDES ECONIC 26T GD16 CWL,C1326,LICENCES - VEHICLES
GUILDFORD BOROUGH COUNCIL,FLEET MANAGEMENT,DVLA VEHICLE TAX,N/A,08-Jul-19,1034897,262.5,0,LICENCES - VEHICLES,THIRD PARTY SUPPLIER,POINT OF SALE,CARD,GPC,08-Jul-19,2019,4,,VV207,PEUGOT BOXER LWB VAN AK16 ZSF,C1326,LICENCES - VEHICLES
GUILDFORD BOROUGH COUNCIL,FLEET MANAGEMENT,DVLA VEHICLE TAX,N/A,12-Jul-19,1034897,617.5,0,LICENCES - VEHICLES,THIRD PARTY SUPPLIER,POINT OF SALE,CARD,GPC,12-Jul-19,2019,4,,VRR27,MERC REFUSE FREIGHTER GX16 OBD,C1326,LICENCES - VEHICLES
GUILDFORD BOROUGH COUNCIL,MAJOR PROJECTS,WWW.CSKILLS.ORG,N/A,02-Jul-19,1034897,90,0,TRAINING,THIRD PARTY SUPPLIER,POINT OF SALE,CARD,GPC,02-Jul-19,2019,4,,F5530,MAJOR PROJECTS,A7161,TRAINING
GUILDFORD BOROUGH COUNCIL,FLEET MANAGEMENT,DVLA VEHICLE TAX,N/A,12-Jul-19,1034897,617.5,0,LICENCES - VEHICLES,THIRD PARTY SUPPLIER,POINT OF SALE,CARD,GPC,12-Jul-19,2019,4,,VRR28,MERC REFUSE FREIGHTER GX16 OBS,C1326,LICENCES - VEHICLES
GUILDFORD BOROUGH COUNCIL,FLEET MANAGEMENT,DVLA VEHICLE TAX,N/A,12-Jul-19,1034897,617.5,0,LICENCES - VEHICLES,THIRD PARTY SUPPLIER,POINT OF SALE,CARD,GPC,12-Jul-19,2019,4,,VRR29,MERC REFUSE FREIGHTER GX16 OBT,C1326,LICENCES - VEHICLES
GUILDFORD BOROUGH COUNCIL,FLEET MANAGEMENT,DVLA VEHICLE TAX,N/A,12-Jul-19,1034897,617.5,0,LICENCES - VEHICLES,THIRD PARTY SUPPLIER,POINT OF SALE,CARD,GPC,12-Jul-19,2019,4,,VRR30,MERC REFUSE FREIGHTER GX16 OBU,C1326,LICENCES - VEHICLES
GUILDFORD BOROUGH COUNCIL,FLEET MANAGEMENT,POST OFFICE COUNTER,N/A,01-Jul-19,1034897,617.5,0,LICENCES - VEHICLES,THIRD PARTY SUPPLIER,POINT OF SALE,CARD,GPC,01-Jul-19,2019,4,,VRR23,MERC REFUSE 26 TONNE GD16 CWF,C1326,LICENCES - VEHICLES
GUILDFORD BOROUGH COUNCIL,FLEET MANAGEMENT,DVLA VEHICLE TAX,N/A,12-Jul-19,1034897,327.5,0,LICENCES - VEHICLES,THIRD PARTY SUPPLIER,POINT OF SALE,CARD,GPC,12-Jul-19,2019,4,,VB056,AY15 ZJO MERCEDES SPRINTER,C1326,LICENCES - VEHICLES
GUILDFORD BOROUGH COUNCIL,FLEET MANAGEMENT,DVLA VEHICLE TAX,N/A,12-Jul-19,1034897,167.5,0,LICENCES - VEHICLES,THIRD PARTY SUPPLIER,POINT OF SALE,CARD,GPC,12-Jul-19,2019,4,,VB058,AY15 NXA MERCEDES SPRINTER,C1326,LICENCES - VEHICLES
GUILDFORD BOROUGH COUNCIL,FLEET MANAGEMENT,DVLA VEHICLE TAX,N/A,12-Jul-19,1034897,167.5,0,LICENCES - VEHICLES,THIRD PARTY SUPPLIER,POINT OF SALE,CARD,GPC,12-Jul-19,2019,4,,VB058,AY15 NXA MERCEDES SPRINTER,C1326,LICENCES - VEHICLES
GUILDFORD BOROUGH COUNCIL,FLEET MANAGEMENT,DVLA VEHICLE TAX,N/A,12-Jul-19,1034897,167.5,0,LICENCES - VEHICLES,THIRD PARTY SUPPLIER,POINT OF SALE,CARD,GPC,12-Jul-19,2019,4,,VB059,AY15 NXB MERCEDES SPRINTER,C1326,LICENCES - VEHICLES
GUILDFORD BOROUGH COUNCIL,FLEET MANAGEMENT,DVLA VEHICLE TAX,N/A,01-Jul-19,1034897,327.5,0,LICENCES - VEHICLES,THIRD PARTY SUPPLIER,POINT OF SALE,CARD,GPC,01-Jul-19,2019,4,,VB060,AY15 ZJK MERCEDES SPRINTER,C1326,LICENCES - VEHICLES
GUILDFORD BOROUGH COUNCIL,FLEET MANAGEMENT,DVLA VEHICLE TAX,N/A,12-Jul-19,1034897,327.5,0,LICENCES - VEHICLES,THIRD PARTY SUPPLIER,POINT OF SALE,CARD,GPC,12-Jul-19,2019,4,,VB061,AY15 NXD MERCEDES SPRINTER,C1326,LICENCES - VEHICLES
GUILDFORD BOROUGH COUNCIL,FLEET MANAGEMENT,DVLA VEHICLE TAX,N/A,12-Jul-19,1034897,327.5,0,LICENCES - VEHICLES,THIRD PARTY SUPPLIER,POINT OF SALE,CARD,GPC,12-Jul-19,2019,4,,VB062,MERCEDES SPRINTER AY15 NXF,C1326,LICENCES - VEHICLES
GUILDFORD BOROUGH COUNCIL,IT RENEWALS,MSFT E02008KOH6,N/A,23-Jul-19,1034897,442.3,0,SOFTWARE,THIRD PARTY SUPPLIER,POINT OF SALE,CARD,GPC,23-Jul-19,2019,4,,P81034,ICT INFRASTRUCTURE IMPROVEMENT,1296,SOFTWARE
GUILDFORD BOROUGH COUNCIL,IT RENEWALS,AMAZON.CO.UKMH40Q1LU4,N/A,17-Jul-19,1034897,119.7,0,HARDWARE,THIRD PARTY SUPPLIER,POINT OF SALE,CARD,GPC,17-Jul-19,2019,4,206-576439,P81034,ICT INFRASTRUCTURE IMPROVEMENT,1295,HARDWARE
GUILDFORD BOROUGH COUNCIL,IT RENEWALS,AMZNMKTPLACE AMAZON.CO.UK,N/A,17-Jul-19,1034897,168.64,0,HARDWARE,THIRD PARTY SUPPLIER,POINT OF SALE,CARD,GPC,17-Jul-19,2019,4,206-736709,P81034,ICT INFRASTRUCTURE IMPROVEMENT,1295,HARDWARE
GUILDFORD BOROUGH COUNCIL,RENOVATIONS,DART-CHARGE,N/A,15-Jul-19,1034897,5,0,MISCELLANEOUS EXPENSES,THIRD PARTY SUPPLIER,POINT OF SALE,CARD,GPC,15-Jul-19,2019,4,,N40268,ELCTRICAL DIST BOARD ST MARTHA,1444,MISCELLANEOUS EXPENSES
GUILDFORD BOROUGH COUNCIL,OPERATIONS TECHNICAL SERVICES,HALFORDS 0763,N/A,17-Jul-19,1034897,12.5,0,NEW / REPLACE EQUIP. & TOOLS;,THIRD PARTY SUPPLIER,POINT OF SALE,CARD,GPC,17-Jul-19,2019,4,,G3548,ICT TECHNICAL & INFRASTRUCTURE,D1428,NEW / REPLACE EQUIP. & TOOLS;
GUILDFORD BOROUGH COUNCIL,OPERATIONS TECHNICAL SERVICES,AMAZON.CO.UKM64EM17I4 AM,N/A,06-Jul-19,1034897,13.98,0,NEW / REPLACE EQUIP. & TOOLS;,THIRD PARTY SUPPLIER,POINT OF SALE,CARD,GPC,06-Jul-19,2019,4,206-541450,G3548,ICT TECHNICAL & INFRASTRUCTURE,D1428,NEW / REPLACE EQUIP. & TOOLS;
GUILDFORD BOROUGH COUNCIL,OPERATIONS TECHNICAL SERVICES,AMZNMKTPLACE AMAZON.CO.UK,N/A,01-Jul-19,1034897,4.92,0,NEW / REPLACE EQUIP. & TOOLS;,THIRD PARTY SUPPLIER,POINT OF SALE,CARD,GPC,01-Jul-19,2019,4,206-849859,G3548,ICT TECHNICAL & INFRASTRUCTURE,D1428,NEW / REPLACE EQUIP. & TOOLS;
GUILDFORD BOROUGH COUNCIL,OPERATIONS TECHNICAL SERVICES,AMZNMKTPLACE AMAZON.CO.UK,N/A,08-Jul-19,1034897,13.84,0,NEW / REPLACE EQUIP. & TOOLS;,THIRD PARTY SUPPLIER,POINT OF SALE,CARD,GPC,08-Jul-19,2019,4,206-408306,G3548,ICT TECHNICAL & INFRASTRUCTURE,D1428,NEW / REPLACE EQUIP. & TOOLS;
GUILDFORD BOROUGH COUNCIL,OPERATIONS TECHNICAL SERVICES,AMZNMKTPLACE,N/A,11-Jul-19,1034897,143.74,0,NEW / REPLACE EQUIP. & TOOLS;,THIRD PARTY SUPPLIER,POINT OF SALE,CARD,GPC,11-Jul-19,2019,4,206-863358,G3548,ICT TECHNICAL & INFRASTRUCTURE,D1428,NEW / REPLACE EQUIP. & TOOLS;
GUILDFORD BOROUGH COUNCIL,OPERATIONS TECHNICAL SERVICES,AMZNMKTPLACE AMAZON.CO.UK,N/A,11-Jul-19,1034897,13.32,0,NEW / REPLACE EQUIP. & TOOLS;,THIRD PARTY SUPPLIER,POINT OF SALE,CARD,GPC,11-Jul-19,2019,4,206-670196,G3548,ICT TECHNICAL & INFRASTRUCTURE,D1428,NEW / REPLACE EQUIP. & TOOLS;
GUILDFORD BOROUGH COUNCIL,OPERATIONS TECHNICAL SERVICES,AMZNMKTPLACE AMAZON.CO.UK,N/A,30-Jun-19,1034897,4.57,0,NEW / REPLACE EQUIP. & TOOLS;,THIRD PARTY SUPPLIER,POINT OF SALE,CARD,GPC,30-Jun-19,2019,4,206-318399,G3548,ICT TECHNICAL & INFRASTRUCTURE,D1428,NEW / REPLACE EQUIP. & TOOLS;
GUILDFORD BOROUGH COUNCIL,OPERATIONS TECHNICAL SERVICES,AMZNMKTPLACE AMAZON.CO.UK,N/A,05-Jul-19,1034897,36.56,0,NEW / REPLACE EQUIP. & TOOLS;,THIRD PARTY SUPPLIER,POINT OF SALE,CARD,GPC,05-Jul-19,2019,4,206-214029,G3548,ICT TECHNICAL & INFRASTRUCTURE,D1428,NEW / REPLACE EQUIP. & TOOLS;
GUILDFORD BOROUGH COUNCIL,FUTURE GUILDFORD,OFFICE DEPOT UK LTD,N/A,05-Jul-19,1034897,-38.1,0,OFFICE EQUIP. - PURCHASE,THIRD PARTY SUPPLIER,POINT OF SALE,CARD,GPC,05-Jul-19,2019,4,4142019062,G3531,FUTURE GUILDFORD,D3448,OFFICE EQUIP. - PURCHASE
GUILDFORD BOROUGH COUNCIL,FUTURE GUILDFORD,AMAZON.CO.UKM66ZQ4SM4,N/A,01-Jul-19,1034897,56.31,0,OFFICE EQUIP. - PURCHASE,THIRD PARTY SUPPLIER,POINT OF SALE,CARD,GPC,01-Jul-19,2019,4,202-178017,G3531,FUTURE GUILDFORD,D3448,OFFICE EQUIP. - PURCHASE
GUILDFORD BOROUGH COUNCIL,HOUSING BENEFITS,OFFICE DEPOT UK LTD,N/A,01-Aug-19,1035100,16.33,0,STATIONERY & OFFICE SUPPLIES,THIRD PARTY SUPPLIER,POINT OF SALE,CARD,GPC,01-Aug-19,2019,5,5782019073,C4511,HOUSING BENEFITS ADMIN.,D3472,STATIONERY & OFFICE SUPPLIES
GUILDFORD BOROUGH COUNCIL,PRIVATE SECTOR HOUSING,PAYPAL DLF,N/A,09-Aug-19,1035100,504,0,TRAINING,THIRD PARTY SUPPLIER,POINT OF SALE,CARD,GPC,09-Aug-19,2019,5,,C5132,CARE & REPAIR (DETR),A7161,TRAINING
GUILDFORD BOROUGH COUNCIL,PRIVATE SECTOR HOUSING,PAYPAL DLF,N/A,09-Aug-19,1035100,504,0,TRAINING,THIRD PARTY SUPPLIER,POINT OF SALE,CARD,GPC,09-Aug-19,2019,5,,C5132,CARE & REPAIR (DETR),A7161,TRAINING
GUILDFORD BOROUGH COUNCIL,PRIVATE SECTOR HOUSING,HEALTH  CARE PROFESSI,N/A,21-Aug-19,1035100,180,0,PROFESSIONAL SUBSCRIPTIONS,THIRD PARTY SUPPLIER,POINT OF SALE,CARD,GPC,21-Aug-19,2019,5,2781768957,C5132,CARE & REPAIR (DETR),A7136,PROFESSIONAL SUBSCRIPTIONS
GUILDFORD BOROUGH COUNCIL,WEBSITE,GUILDFORD BOROUGH CNCL,N/A,09-Aug-19,1035100,-58.33,0,PRIVATE MEDICAL SCHEME,THIRD PARTY SUPPLIER,POINT OF SALE,CARD,GPC,09-Aug-19,2019,5,169979886,F1141,INTERNET SITE ACCESS,A7139,PRIVATE MEDICAL SCHEME
GUILDFORD BOROUGH COUNCIL,WEBSITE,GUILDFORD BOROUGH CNCL,N/A,08-Aug-19,1035100,58.33,0,PRIVATE MEDICAL SCHEME,THIRD PARTY SUPPLIER,POINT OF SALE,CARD,GPC,08-Aug-19,2019,5,169494394,F1141,INTERNET SITE ACCESS,A7139,PRIVATE MEDICAL SCHEME
GUILDFORD BOROUGH COUNCIL,CIVIC EXPENSES,THE IVY COLLECTION,N/A,15-Aug-19,1035100,416.67,0,BOROUGH PROMOTIONAL EXPENSES,THIRD PARTY SUPPLIER,POINT OF SALE,CARD,GPC,15-Aug-19,2019,5,,F2131,CIVIC EXPENSES,D9421,BOROUGH PROMOTIONAL EXPENSES
GUILDFORD BOROUGH COUNCIL,CIVIC EXPENSES,OFFICE DEPOT UK LTD,N/A,02-Aug-19,1035100,19.02,0,STATIONERY & OFFICE SUPPLIES,THIRD PARTY SUPPLIER,POINT OF SALE,CARD,GPC,02-Aug-19,2019,5,8892019073,F2131,CIVIC EXPENSES,D3472,STATIONERY & OFFICE SUPPLIES
GUILDFORD BOROUGH COUNCIL,ELECTORAL REGISTRATION,OFFICE DEPOT UK LTD,N/A,02-Aug-19,1035100,17.6,0,STATIONERY & OFFICE SUPPLIES,THIRD PARTY SUPPLIER,POINT OF SALE,CARD,GPC,02-Aug-19,2019,5,8892019073,F2511,ELECTORAL REGISTRATION,D3472,STATIONERY & OFFICE SUPPLIES
GUILDFORD BOROUGH COUNCIL,GUILDHALL,SAINSBURYS S/MKTS,N/A,08-Aug-19,1035100,3.5,0,FOOD PURCHASES,THIRD PARTY SUPPLIER,POINT OF SALE,CARD,GPC,08-Aug-19,2019,5,,F3311,GUILDHALL,D1832,FOOD PURCHASES
GUILDFORD BOROUGH COUNCIL,WOKING ROAD DEPOT,WWW.ELITEINDUSTRIAL.CO,N/A,06-Aug-19,1035100,148.99,0,CLOTHING & UNIFORM,THIRD PARTY SUPPLIER,POINT OF SALE,CARD,GPC,06-Aug-19,2019,5,168176081,B4452,WOKING ROAD DEPOT,D2421,CLOTHING & UNIFORM
GUILDFORD BOROUGH COUNCIL,WOKING ROAD DEPOT,BP MERROW CONVENIENCE STO,N/A,14-Aug-19,1035100,24.32,0,FOOD PURCHASES,THIRD PARTY SUPPLIER,POINT OF SALE,CARD,GPC,14-Aug-19,2019,5,,B4452,WOKING ROAD DEPOT,D1832,FOOD PURCHASES
GUILDFORD BOROUGH COUNCIL,WOKING ROAD DEPOT,WWW.TOOLSTATION.COM,N/A,06-Aug-19,1035100,12.91,0,NEW / REPLACE EQUIP. & TOOLS;,THIRD PARTY SUPPLIER,POINT OF SALE,CARD,GPC,06-Aug-19,2019,5,,B4452,WOKING ROAD DEPOT,D1428,NEW / REPLACE EQUIP. & TOOLS;
GUILDFORD BOROUGH COUNCIL,WOKING ROAD DEPOT,SCREWFIX DIRECT,N/A,04-Aug-19,1035100,82.96,0,NEW / REPLACE EQUIP. & TOOLS;,THIRD PARTY SUPPLIER,POINT OF SALE,CARD,GPC,04-Aug-19,2019,5,,B4452,WOKING ROAD DEPOT,D1428,NEW / REPLACE EQUIP. & TOOLS;
GUILDFORD BOROUGH COUNCIL,WOKING ROAD DEPOT,B  Q 1029,N/A,02-Aug-19,1035100,38.29,0,NEW / REPLACE EQUIP. & TOOLS;,THIRD PARTY SUPPLIER,POINT OF SALE,CARD,GPC,02-Aug-19,2019,5,SG092465,B4452,WOKING ROAD DEPOT,D1428,NEW / REPLACE EQUIP. & TOOLS;
GUILDFORD BOROUGH COUNCIL,WOKING ROAD DEPOT,PAYPAL *TLCSOUTHERN,N/A,01-Aug-19,1035100,188,0,NEW / REPLACE EQUIP. & TOOLS;,THIRD PARTY SUPPLIER,POINT OF SALE,CARD,GPC,01-Aug-19,2019,5,,B4452,WOKING ROAD DEPOT,D1428,NEW / REPLACE EQUIP. & TOOLS;
GUILDFORD BOROUGH COUNCIL,WOKING ROAD DEPOT,KICK PLATE DIRECT,N/A,01-Aug-19,1035100,304.29,0,NEW / REPLACE EQUIP. & TOOLS;,THIRD PARTY SUPPLIER,POINT OF SALE,CARD,GPC,01-Aug-19,2019,5,,B4452,WOKING ROAD DEPOT,D1428,NEW / REPLACE EQUIP. & TOOLS;
GUILDFORD BOROUGH COUNCIL,WOKING ROAD DEPOT,SCREWFIX DIRECT,N/A,30-Jul-19,1035100,129.95,0,NEW / REPLACE EQUIP. & TOOLS;,THIRD PARTY SUPPLIER,POINT OF SALE,CARD,GPC,30-Jul-19,2019,5,,B4452,WOKING ROAD DEPOT,D1428,NEW / REPLACE EQUIP. & TOOLS;
GUILDFORD BOROUGH COUNCIL,WOKING ROAD DEPOT,GUILDFORD LOCK AND SAF,N/A,26-Jul-19,1035100,58.08,0,NEW / REPLACE EQUIP. & TOOLS;,THIRD PARTY SUPPLIER,POINT OF SALE,CARD,GPC,26-Jul-19,2019,5,,B4452,WOKING ROAD DEPOT,D1428,NEW / REPLACE EQUIP. & TOOLS;
GUILDFORD BOROUGH COUNCIL,WOKING ROAD DEPOT,LITTLE MANOR SVS STN,N/A,07-Aug-19,1035100,81.11,0,FUEL & OIL,THIRD PARTY SUPPLIER,POINT OF SALE,CARD,GPC,07-Aug-19,2019,5,,B4452,WOKING ROAD DEPOT,C1321,FUEL & OIL
GUILDFORD BOROUGH COUNCIL,WOKING ROAD DEPOT,WWW.EXCALIBUR-HYGEINE.,N/A,30-Jul-19,1035100,615.65,0,JANITORIAL SUPPLIES,THIRD PARTY SUPPLIER,POINT OF SALE,CARD,GPC,30-Jul-19,2019,5,2081158173,B4452,WOKING ROAD DEPOT,B6259,JANITORIAL SUPPLIES
GUILDFORD BOROUGH COUNCIL,REFUSE AND RECYCLING,POST OFFICE COUNTER,N/A,14-Aug-19,1035100,7.25,0,POSTAGE DIRECT USAGE,THIRD PARTY SUPPLIER,POINT OF SALE,CARD,GPC,14-Aug-19,2019,5,,B7711,RECYCLING ADMINISTRATION,D5466,POSTAGE DIRECT USAGE
GUILDFORD BOROUGH COUNCIL,REFUSE AND RECYCLING,PAYPAL ADOBESYSTEM,N/A,01-Aug-19,1035100,150.92,0,NEW / REPLACE EQUIP. & TOOLS;,THIRD PARTY SUPPLIER,POINT OF SALE,CARD,GPC,01-Aug-19,2019,5,,B7711,RECYCLING ADMINISTRATION,D1428,NEW / REPLACE EQUIP. & TOOLS;
GUILDFORD BOROUGH COUNCIL,ENVIRONMENTAL CONTROL,MICROSOFTSTORE,N/A,09-Aug-19,1035100,208.74,0,NEW / REPLACE EQUIP. & TOOLS;,THIRD PARTY SUPPLIER,POINT OF SALE,CARD,GPC,09-Aug-19,2019,5,,C1113,ENVIRONMENTAL CONTROL,D1428,NEW / REPLACE EQUIP. & TOOLS;
GUILDFORD BOROUGH COUNCIL,HOMELESSNESS,TRAVELODGE GB0000,N/A,09-Aug-19,1035100,606.42,0,ACCOMMODATION: EMERGENCY B&B,THIRD PARTY SUPPLIER,POINT OF SALE,CARD,GPC,09-Aug-19,2019,5,,C3316,EMERGENCY ACCOMMODATION,D4401,ACCOMMODATION: EMERGENCY B&B
GUILDFORD BOROUGH COUNCIL,HOMELESSNESS,TRAVELODGE GB0000,N/A,02-Aug-19,1035100,598.5,0,ACCOMMODATION: EMERGENCY B&B,THIRD PARTY SUPPLIER,POINT OF SALE,CARD,GPC,02-Aug-19,2019,5,,C3316,EMERGENCY ACCOMMODATION,D4401,ACCOMMODATION: EMERGENCY B&B
GUILDFORD BOROUGH COUNCIL,HOMELESSNESS,TRAVELODGE GB0000,N/A,21-Aug-19,1035100,242.25,0,ACCOMMODATION: EMERGENCY B&B,THIRD PARTY SUPPLIER,POINT OF SALE,CARD,GPC,21-Aug-19,2019,5,,C3316,EMERGENCY ACCOMMODATION,D4401,ACCOMMODATION: EMERGENCY B&B
GUILDFORD BOROUGH COUNCIL,HOMELESSNESS,TRAVELODGE GB0000,N/A,16-Aug-19,1035100,977.71,0,ACCOMMODATION: EMERGENCY B&B,THIRD PARTY SUPPLIER,POINT OF SALE,CARD,GPC,16-Aug-19,2019,5,,C3316,EMERGENCY ACCOMMODATION,D4401,ACCOMMODATION: EMERGENCY B&B
GUILDFORD BOROUGH COUNCIL,HOMELESSNESS,TRAVELODGE GB0000,N/A,27-Aug-19,1035100,319.11,0,ACCOMMODATION: EMERGENCY B&B,THIRD PARTY SUPPLIER,POINT OF SALE,CARD,GPC,27-Aug-19,2019,5,,C3316,EMERGENCY ACCOMMODATION,D4401,ACCOMMODATION: EMERGENCY B&B
GUILDFORD BOROUGH COUNCIL,GUILDHALL,CLUSKEYS CCP LTD,N/A,20-Aug-19,1035100,34.64,0,NEW / REPLACE EQUIP. & TOOLS;,THIRD PARTY SUPPLIER,POINT OF SALE,CARD,GPC,20-Aug-19,2019,5,,F3311,GUILDHALL,D1428,NEW / REPLACE EQUIP. & TOOLS;
GUILDFORD BOROUGH COUNCIL,GUILDHALL,WWW.W-P.CO.UK,N/A,19-Aug-19,1035100,48.98,0,JANITORIAL SUPPLIES,THIRD PARTY SUPPLIER,POINT OF SALE,CARD,GPC,19-Aug-19,2019,5,SIN239922V,F3311,GUILDHALL,B6259,JANITORIAL SUPPLIES
GUILDFORD BOROUGH COUNCIL,GUILDHALL,WWW.W-P.CO.UK,N/A,02-Aug-19,1035100,85.84,0,JANITORIAL SUPPLIES,THIRD PARTY SUPPLIER,POINT OF SALE,CARD,GPC,02-Aug-19,2019,5,SIN238078V,F3311,GUILDHALL,B6259,JANITORIAL SUPPLIES
GUILDFORD BOROUGH COUNCIL,COMMUNITY WELLBEING,OFFICE DEPOT UK LTD,N/A,15-Aug-19,1035100,2.7,0,STATIONERY & OFFICE SUPPLIES,THIRD PARTY SUPPLIER,POINT OF SALE,CARD,GPC,15-Aug-19,2019,5,2232019081,F5713,COMMUNITY WELLBEING,D3472,STATIONERY & OFFICE SUPPLIES
GUILDFORD BOROUGH COUNCIL,COUNCIL TAX,OFFICE DEPOT UK LTD,N/A,01-Aug-19,1035100,65.32,0,STATIONERY & OFFICE SUPPLIES,THIRD PARTY SUPPLIER,POINT OF SALE,CARD,GPC,01-Aug-19,2019,5,5782019073,F6141,COUNCIL TAX COLLECTN EXPENSES,D3472,STATIONERY & OFFICE SUPPLIES
GUILDFORD BOROUGH COUNCIL,BUSINESS RATES,OFFICE DEPOT UK LTD,N/A,01-Aug-19,1035100,81.65,0,STATIONERY & OFFICE SUPPLIES,THIRD PARTY SUPPLIER,POINT OF SALE,CARD,GPC,01-Aug-19,2019,5,5782019073,F6151,BUSINESS RATES COLLECTION EXPS,D3472,STATIONERY & OFFICE SUPPLIES
GUILDFORD BOROUGH COUNCIL,DEBTORS,OFFICE DEPOT UK LTD,N/A,09-Aug-19,1035100,15,0,STATIONERY & OFFICE SUPPLIES,THIRD PARTY SUPPLIER,POINT OF SALE,CARD,GPC,09-Aug-19,2019,5,4372019080,G3555,DEBTORS,D3472,STATIONERY & OFFICE SUPPLIES
GUILDFORD BOROUGH COUNCIL,DEBTORS,OFFICE DEPOT UK LTD,N/A,27-Aug-19,1035100,10.46,0,STATIONERY & OFFICE SUPPLIES,THIRD PARTY SUPPLIER,POINT OF SALE,CARD,GPC,27-Aug-19,2019,5,4372019082,G3555,DEBTORS,D3472,STATIONERY & OFFICE SUPPLIES
GUILDFORD BOROUGH COUNCIL,ACCOUNTANCY,THE FINANCIAL TIMES,N/A,28-Jul-19,1035100,48,0,GENERAL SUBSCRIPTIONS,THIRD PARTY SUPPLIER,POINT OF SALE,CARD,GPC,28-Jul-19,2019,5,,G3565,ACCOUNTANCY SERVICES,D7497,GENERAL SUBSCRIPTIONS
GUILDFORD BOROUGH COUNCIL,ACCOUNTANCY,OFFICE DEPOT UK LTD,N/A,09-Aug-19,1035100,15.83,0,STATIONERY & OFFICE SUPPLIES,THIRD PARTY SUPPLIER,POINT OF SALE,CARD,GPC,09-Aug-19,2019,5,4372019080,G3565,ACCOUNTANCY SERVICES,D3472,STATIONERY & OFFICE SUPPLIES
GUILDFORD BOROUGH COUNCIL,ACCOUNTANCY,OFFICE DEPOT UK LTD,N/A,27-Aug-19,1035100,20,0,STATIONERY & OFFICE SUPPLIES,THIRD PARTY SUPPLIER,POINT OF SALE,CARD,GPC,27-Aug-19,2019,5,4372019082,G3565,ACCOUNTANCY SERVICES,D3472,STATIONERY & OFFICE SUPPLIES
GUILDFORD BOROUGH COUNCIL,LEGAL SERVICES,OFFICE DEPOT UK LTD,N/A,02-Aug-19,1035100,30.63,0,STATIONERY & OFFICE SUPPLIES,THIRD PARTY SUPPLIER,POINT OF SALE,CARD,GPC,02-Aug-19,2019,5,8892019073,G4525,LEGAL SERVICES,D3472,STATIONERY & OFFICE SUPPLIES
GUILDFORD BOROUGH COUNCIL,LEGAL SERVICES,OFFICE DEPOT UK LTD,N/A,03-Aug-19,1035100,122.26,0,STATIONERY & OFFICE SUPPLIES,THIRD PARTY SUPPLIER,POINT OF SALE,CARD,GPC,03-Aug-19,2019,5,8892019080,G4525,LEGAL SERVICES,D3472,STATIONERY & OFFICE SUPPLIES
GUILDFORD BOROUGH COUNCIL,OFFICE SERVICES TEAM,OFFICE DEPOT UK LTD,N/A,03-Aug-19,1035100,32.55,0,STATIONERY & OFFICE SUPPLIES,THIRD PARTY SUPPLIER,POINT OF SALE,CARD,GPC,03-Aug-19,2019,5,8952019080,G4585,OFFICE SERVICES,D3472,STATIONERY & OFFICE SUPPLIES
GUILDFORD BOROUGH COUNCIL,OFFICE SERVICES TEAM,OFFICE DEPOT UK LTD,N/A,31-Jul-19,1035100,106.64,0,STATIONERY & OFFICE SUPPLIES,THIRD PARTY SUPPLIER,POINT OF SALE,CARD,GPC,31-Jul-19,2019,5,8952019072,G4585,OFFICE SERVICES,D3472,STATIONERY & OFFICE SUPPLIES
GUILDFORD BOROUGH COUNCIL,OFFICE SERVICES TEAM,OFFICE DEPOT UK LTD,N/A,22-Aug-19,1035100,32.68,0,STATIONERY & OFFICE SUPPLIES,THIRD PARTY SUPPLIER,POINT OF SALE,CARD,GPC,22-Aug-19,2019,5,8952019082,G4585,OFFICE SERVICES,D3472,STATIONERY & OFFICE SUPPLIES
GUILDFORD BOROUGH COUNCIL,OFFICE SERVICES TEAM,OFFICE DEPOT UK LTD,N/A,22-Aug-19,1035100,32.15,0,STATIONERY & OFFICE SUPPLIES,THIRD PARTY SUPPLIER,POINT OF SALE,CARD,GPC,22-Aug-19,2019,5,8952019081,G4585,OFFICE SERVICES,D3472,STATIONERY & OFFICE SUPPLIES
GUILDFORD BOROUGH COUNCIL,OFFICE SERVICES TEAM,WWW.W-P.CO.UK,N/A,26-Jul-19,1035100,129.24,0,CONSUMABLES,THIRD PARTY SUPPLIER,POINT OF SALE,CARD,GPC,26-Jul-19,2019,5,SIN237329V,G4585,OFFICE SERVICES,D1587,CONSUMABLES
GUILDFORD BOROUGH COUNCIL,HOUSING SURVEYING SERVICES,TRADE SKILLS 4 U LTD,N/A,22-Aug-19,1035100,95,0,TRAINING,THIRD PARTY SUPPLIER,POINT OF SALE,CARD,GPC,22-Aug-19,2019,5,,G6525,HOUSING SURVEYING SERVICES,A7161,TRAINING
GUILDFORD BOROUGH COUNCIL,HOUSING SURVEYING SERVICES,WWW.TRADESKILLS4U.CO.U,N/A,22-Aug-19,1035100,415.83,0,TRAINING,THIRD PARTY SUPPLIER,POINT OF SALE,CARD,GPC,22-Aug-19,2019,5,177617784,G6525,HOUSING SURVEYING SERVICES,A7161,TRAINING
GUILDFORD BOROUGH COUNCIL,OPERATIONAL SERVS OVERHEAD AC,OFFICE DEPOT UK LTD,N/A,31-Jul-19,1035100,59.64,0,STATIONERY & OFFICE SUPPLIES,THIRD PARTY SUPPLIER,POINT OF SALE,CARD,GPC,31-Jul-19,2019,5,2412019072,K1519,OPERATIONAL SERVS OVERHEAD AC,D3472,STATIONERY & OFFICE SUPPLIES
GUILDFORD BOROUGH COUNCIL,OPERATIONAL SERVS OVERHEAD AC,OFFICE DEPOT UK LTD,N/A,22-Aug-19,1035100,145.11,0,STATIONERY & OFFICE SUPPLIES,THIRD PARTY SUPPLIER,POINT OF SALE,CARD,GPC,22-Aug-19,2019,5,2612019081,K1519,OPERATIONAL SERVS OVERHEAD AC,D3472,STATIONERY & OFFICE SUPPLIES
GUILDFORD BOROUGH COUNCIL,OPERATIONAL SERVS OVERHEAD AC,OFFICE DEPOT UK LTD,N/A,08-Aug-19,1035100,46.33,0,STATIONERY & OFFICE SUPPLIES,THIRD PARTY SUPPLIER,POINT OF SALE,CARD,GPC,08-Aug-19,2019,5,2612019080,K1519,OPERATIONAL SERVS OVERHEAD AC,D3472,STATIONERY & OFFICE SUPPLIES
GUILDFORD BOROUGH COUNCIL,PARKS & COUNTRYSIDE,FULCRUMAPP.COM,N/A,27-Aug-19,1035100,911.42,0,COMPUTER SOFTWARE LICENCE COST,THIRD PARTY SUPPLIER,POINT OF SALE,CARD,GPC,27-Aug-19,2019,5,,A1300,TREES & COUNTRYSIDE,D5445,COMPUTER SOFTWARE LICENCE COST
GUILDFORD BOROUGH COUNCIL,PARKS & COUNTRYSIDE,THAMES WATER WEB,N/A,29-Jul-19,1035100,170,0,NEW / REPLACE EQUIP. & TOOLS;,THIRD PARTY SUPPLIER,POINT OF SALE,CARD,GPC,29-Jul-19,2019,5,,A1300,TREES & COUNTRYSIDE,D1428,NEW / REPLACE EQUIP. & TOOLS;
GUILDFORD BOROUGH COUNCIL,PARKS & COUNTRYSIDE,HALFORDS 0763,N/A,06-Aug-19,1035100,42.5,0,NEW / REPLACE EQUIP. & TOOLS;,THIRD PARTY SUPPLIER,POINT OF SALE,CARD,GPC,06-Aug-19,2019,5,,A1300,TREES & COUNTRYSIDE,D1428,NEW / REPLACE EQUIP. & TOOLS;
GUILDFORD BOROUGH COUNCIL,PARKS & COUNTRYSIDE,HALFORDS 0763,N/A,06-Aug-19,1035100,40.83,0,NEW / REPLACE EQUIP. & TOOLS;,THIRD PARTY SUPPLIER,POINT OF SALE,CARD,GPC,06-Aug-19,2019,5,,A1300,TREES & COUNTRYSIDE,D1428,NEW / REPLACE EQUIP. & TOOLS;
GUILDFORD BOROUGH COUNCIL,PARKS & COUNTRYSIDE,WICKES GUILDFORD,N/A,06-Aug-19,1035100,15.75,0,NEW / REPLACE EQUIP. & TOOLS;,THIRD PARTY SUPPLIER,POINT OF SALE,CARD,GPC,06-Aug-19,2019,5,,A1300,TREES & COUNTRYSIDE,D1428,NEW / REPLACE EQUIP. & TOOLS;
GUILDFORD BOROUGH COUNCIL,PARKS & COUNTRYSIDE,AVS FENCING SUPPLIES,N/A,27-Aug-19,1035100,219.95,0,NEW / REPLACE EQUIP. & TOOLS;,THIRD PARTY SUPPLIER,POINT OF SALE,CARD,GPC,27-Aug-19,2019,5,,A1300,TREES & COUNTRYSIDE,D1428,NEW / REPLACE EQUIP. & TOOLS;
GUILDFORD BOROUGH COUNCIL,PARKS & COUNTRYSIDE,WICKES GUILDFORD,N/A,15-Aug-19,1035100,19.17,0,NEW / REPLACE EQUIP. & TOOLS;,THIRD PARTY SUPPLIER,POINT OF SALE,CARD,GPC,15-Aug-19,2019,5,,A1300,TREES & COUNTRYSIDE,D1428,NEW / REPLACE EQUIP. & TOOLS;
GUILDFORD BOROUGH COUNCIL,PARKS & COUNTRYSIDE,ROKERS LTD,N/A,19-Aug-19,1035100,7.37,0,NEW / REPLACE EQUIP. & TOOLS;,THIRD PARTY SUPPLIER,POINT OF SALE,CARD,GPC,19-Aug-19,2019,5,,A1300,TREES & COUNTRYSIDE,D1428,NEW / REPLACE EQUIP. & TOOLS;
GUILDFORD BOROUGH COUNCIL,CREMATORIUM,OFFICE DEPOT UK LTD,N/A,08-Aug-19,1035100,282.17,0,STATIONERY & OFFICE SUPPLIES,THIRD PARTY SUPPLIER,POINT OF SALE,CARD,GPC,08-Aug-19,2019,5,2222019080,A1500,GUILDFORD CREMATORIUM,D3472,STATIONERY & OFFICE SUPPLIES
GUILDFORD BOROUGH COUNCIL,PARKS & COUNTRYSIDE,WWW.W-P.CO.UK,N/A,02-Aug-19,1035100,319.55,0,FIRST AID,THIRD PARTY SUPPLIER,POINT OF SALE,CARD,GPC,02-Aug-19,2019,5,SIN238077V,A1600,STOKE NURSERY DEPOT,D1538,FIRST AID
GUILDFORD BOROUGH COUNCIL,LEISURE RANGERS,WORLDOFCAMPING.CO.,N/A,06-Aug-19,1035100,44.37,0,EQUIP. & TOOLS REPAIRS,THIRD PARTY SUPPLIER,POINT OF SALE,CARD,GPC,06-Aug-19,2019,5,,A1700,PARKS RANGER SERVICE,D1429,EQUIP. & TOOLS REPAIRS
GUILDFORD BOROUGH COUNCIL,PARKS & COUNTRYSIDE,AMZNMKTPLACE,N/A,27-Aug-19,1035100,18.39,0,MISCELLANEOUS EXPENSES,THIRD PARTY SUPPLIER,POINT OF SALE,CARD,GPC,27-Aug-19,2019,5,205-665068,A1850,PARKS EVENTS AND BOOKINGS,D9483,MISCELLANEOUS EXPENSES
GUILDFORD BOROUGH COUNCIL,PARKS & COUNTRYSIDE,AMZNMKTPLACE,N/A,24-Aug-19,1035100,4.16,0,MISCELLANEOUS EXPENSES,THIRD PARTY SUPPLIER,POINT OF SALE,CARD,GPC,24-Aug-19,2019,5,205-665068,A1850,PARKS EVENTS AND BOOKINGS,D9483,MISCELLANEOUS EXPENSES
GUILDFORD BOROUGH COUNCIL,PARKS & COUNTRYSIDE,DERWENTLASERCRAFTS,N/A,16-Aug-19,1035100,276,0,MATERIALS,THIRD PARTY SUPPLIER,POINT OF SALE,CARD,GPC,16-Aug-19,2019,5,,A1850,PARKS EVENTS AND BOOKINGS,D1545,MATERIALS
GUILDFORD BOROUGH COUNCIL,PARKS & COUNTRYSIDE,OFFICE DEPOT UK LTD,N/A,01-Aug-19,1035100,39.94,0,STATIONERY & OFFICE SUPPLIES,THIRD PARTY SUPPLIER,POINT OF SALE,CARD,GPC,01-Aug-19,2019,5,2692019073,A1900,PARKS MANAGEMENT AND ADMIN,D3472,STATIONERY & OFFICE SUPPLIES
GUILDFORD BOROUGH COUNCIL,PARKS & COUNTRYSIDE,OFFICE DEPOT UK LTD,N/A,31-Jul-19,1035100,0.25,0,STATIONERY & OFFICE SUPPLIES,THIRD PARTY SUPPLIER,POINT OF SALE,CARD,GPC,31-Jul-19,2019,5,2692019073,A1900,PARKS MANAGEMENT AND ADMIN,D3472,STATIONERY & OFFICE SUPPLIES
GUILDFORD BOROUGH COUNCIL,PARKS & COUNTRYSIDE,OFFICE DEPOT UK LTD,N/A,01-Aug-19,1035100,2.58,0,STATIONERY & OFFICE SUPPLIES,THIRD PARTY SUPPLIER,POINT OF SALE,CARD,GPC,01-Aug-19,2019,5,2692019073,A1900,PARKS MANAGEMENT AND ADMIN,D3472,STATIONERY & OFFICE SUPPLIES
GUILDFORD BOROUGH COUNCIL,GUILDFORD HOUSE,GUILDFORD COBBLERS,N/A,02-Aug-19,1035100,3.99,0,EQUIP. & TOOLS REPAIRS,THIRD PARTY SUPPLIER,POINT OF SALE,CARD,GPC,02-Aug-19,2019,5,,A4511,GUILDFORD HOUSE ADMINISTRATION,D1429,EQUIP. & TOOLS REPAIRS
GUILDFORD BOROUGH COUNCIL,GUILDFORD HOUSE,POUNDLAND LTD 1518,N/A,02-Aug-19,1035100,14.21,0,EQUIP. & TOOLS REPAIRS,THIRD PARTY SUPPLIER,POINT OF SALE,CARD,GPC,02-Aug-19,2019,5,,A4511,GUILDFORD HOUSE ADMINISTRATION,D1429,EQUIP. & TOOLS REPAIRS
GUILDFORD BOROUGH COUNCIL,GUILDFORD HOUSE,RYMAN 1138,N/A,01-Aug-19,1035100,26.23,0,NEW / REPLACE EQUIP. & TOOLS;,THIRD PARTY SUPPLIER,POINT OF SALE,CARD,GPC,01-Aug-19,2019,5,,A4511,GUILDFORD HOUSE ADMINISTRATION,D1428,NEW / REPLACE EQUIP. & TOOLS;
GUILDFORD BOROUGH COUNCIL,GUILDFORD HOUSE,B  Q 1029,N/A,01-Aug-19,1035100,20.84,0,NEW / REPLACE EQUIP. & TOOLS;,THIRD PARTY SUPPLIER,POINT OF SALE,CARD,GPC,01-Aug-19,2019,5,,A4511,GUILDFORD HOUSE ADMINISTRATION,D1428,NEW / REPLACE EQUIP. & TOOLS;
GUILDFORD BOROUGH COUNCIL,MUSEUM,SAINSBURY'S S/MKT,N/A,02-Aug-19,1035100,10.15,0,EVENT COSTS,THIRD PARTY SUPPLIER,POINT OF SALE,CARD,GPC,02-Aug-19,2019,5,,A5511,MUSEUM,D9553,EVENT COSTS
GUILDFORD BOROUGH COUNCIL,MUSEUM,AMZNMKTPLACE AMAZON.CO.UK,N/A,11-Aug-19,1035100,5.72,0,EVENT COSTS,THIRD PARTY SUPPLIER,POINT OF SALE,CARD,GPC,11-Aug-19,2019,5,206-321468,A5511,MUSEUM,D9553,EVENT COSTS
GUILDFORD BOROUGH COUNCIL,MUSEUM,AMZNMKTPLACE AMAZON.CO.UK,N/A,12-Aug-19,1035100,2.49,0,EVENT COSTS,THIRD PARTY SUPPLIER,POINT OF SALE,CARD,GPC,12-Aug-19,2019,5,206-100199,A5511,MUSEUM,D9553,EVENT COSTS
GUILDFORD BOROUGH COUNCIL,MUSEUM,AMZNMKTPLACE AMAZON.CO.UK,N/A,12-Aug-19,1035100,2.19,0,EVENT COSTS,THIRD PARTY SUPPLIER,POINT OF SALE,CARD,GPC,12-Aug-19,2019,5,206-794120,A5511,MUSEUM,D9553,EVENT COSTS
GUILDFORD BOROUGH COUNCIL,MUSEUM,OFFICE DEPOT UK LTD,N/A,09-Aug-19,1035100,15.07,0,STATIONERY & OFFICE SUPPLIES,THIRD PARTY SUPPLIER,POINT OF SALE,CARD,GPC,09-Aug-19,2019,5,2362019080,A5511,MUSEUM,D3472,STATIONERY & OFFICE SUPPLIES
GUILDFORD BOROUGH COUNCIL,LEISURE SPORT DEVELOPMENT,ISTOCK.COM,N/A,15-Aug-19,1035100,69,0,INITIATIVES,THIRD PARTY SUPPLIER,POINT OF SALE,CARD,GPC,15-Aug-19,2019,5,,A7311,SPORTS DEVELOPMENT OFFICER,D9478,INITIATIVES
GUILDFORD BOROUGH COUNCIL,GOVERNMENT ST DEBTORS,PC CARD VAT,N/A,28-Aug-19,1035100,0,0,VAT INPUT TAX,THIRD PARTY SUPPLIER,POINT OF SALE,CARD,GPC,28-Aug-19,2019,5,E ,J02040,VAT,2736,VAT INPUT TAX
GUILDFORD BOROUGH COUNCIL,GOVERNMENT ST DEBTORS,PC CARD VAT,N/A,28-Aug-19,1035100,39.53,0,VAT INPUT TAX,THIRD PARTY SUPPLIER,POINT OF SALE,CARD,GPC,28-Aug-19,2019,5,,J02040,VAT,2736,VAT INPUT TAX
GUILDFORD BOROUGH COUNCIL,GOVERNMENT ST DEBTORS,PC CARD VAT,N/A,28-Aug-19,1035100,1932.8,0,VAT INPUT TAX,THIRD PARTY SUPPLIER,POINT OF SALE,CARD,GPC,28-Aug-19,2019,5,20,J02040,VAT,2736,VAT INPUT TAX
GUILDFORD BOROUGH COUNCIL,GOVERNMENT ST DEBTORS,PC CARD VAT,N/A,28-Aug-19,1035100,0.2,0,VAT INPUT TAX,THIRD PARTY SUPPLIER,POINT OF SALE,CARD,GPC,28-Aug-19,2019,5,Z ,J02040,VAT,2736,VAT INPUT TAX
GUILDFORD BOROUGH COUNCIL,GOVERNMENT ST DEBTORS,PC CARD VAT,N/A,28-Aug-19,1035100,0,0,VAT INPUT TAX,THIRD PARTY SUPPLIER,POINT OF SALE,CARD,GPC,28-Aug-19,2019,5,O ,J02040,VAT,2736,VAT INPUT TAX
GUILDFORD BOROUGH COUNCIL,SUPPORTED HOUSING MANAGEMENT,WWW.W-P.CO.UK,N/A,19-Aug-19,1035100,208.55,0,CLEANING MATERIALS,THIRD PARTY SUPPLIER,POINT OF SALE,CARD,GPC,19-Aug-19,2019,5,SIN239924V,M3690,SUPPORTED HSG-GENERAL (SHS),B6231,CLEANING MATERIALS
GUILDFORD BOROUGH COUNCIL,RESPONSIVE & PLANNED MAINTENAN,OFFICE DEPOT UK LTD,N/A,21-Aug-19,1035100,30.2,0,STATIONERY & OFFICE SUPPLIES,THIRD PARTY SUPPLIER,POINT OF SALE,CARD,GPC,21-Aug-19,2019,5,2232019082,M5111,REPAIRS-ADMIN (BHS),D3472,STATIONERY & OFFICE SUPPLIES
GUILDFORD BOROUGH COUNCIL,RESPONSIVE & PLANNED MAINTENAN,OFFICE DEPOT UK LTD,N/A,21-Aug-19,1035100,43.33,0,STATIONERY & OFFICE SUPPLIES,THIRD PARTY SUPPLIER,POINT OF SALE,CARD,GPC,21-Aug-19,2019,5,2232019081,M5111,REPAIRS-ADMIN (BHS),D3472,STATIONERY & OFFICE SUPPLIES
GUILDFORD BOROUGH COUNCIL,REFUSE AND RECYCLING,WWW.EPTRAINING.CO.UK,N/A,31-Jul-19,1035100,77.29,0,PAYMENT TO CONTRACTORS,THIRD PARTY SUPPLIER,POINT OF SALE,CARD,GPC,31-Jul-19,2019,5,2279686752,K3551,REFUSE COLLECTION,D4468,PAYMENT TO CONTRACTORS
GUILDFORD BOROUGH COUNCIL,STREET CLEANSING,FULCRUMAPP.COM,N/A,27-Aug-19,1035100,303.81,0,COMPUTER SOFTWARE LICENCE COST,THIRD PARTY SUPPLIER,POINT OF SALE,CARD,GPC,27-Aug-19,2019,5,,K4551,STREET CLEANSING,D5445,COMPUTER SOFTWARE LICENCE COST
GUILDFORD BOROUGH COUNCIL,STREET CLEANSING,PAYPAL *SUPERDRUGST,N/A,26-Jul-19,1035100,74.46,0,NEW / REPLACE EQUIP. & TOOLS;,THIRD PARTY SUPPLIER,POINT OF SALE,CARD,GPC,26-Jul-19,2019,5,,K4551,STREET CLEANSING,D1428,NEW / REPLACE EQUIP. & TOOLS;
GUILDFORD BOROUGH COUNCIL,VEHICLE MAINTENANCE,CRADLEY HEATH KAWASAKI,N/A,05-Aug-19,1035100,55.24,0,SPARES FOR VEHICLES,THIRD PARTY SUPPLIER,POINT OF SALE,CARD,GPC,05-Aug-19,2019,5,,K5551,VEHICLE MAINTENANCE,D1589,SPARES FOR VEHICLES
GUILDFORD BOROUGH COUNCIL,VEHICLE MAINTENANCE,PAYPAL ELEC DEALS,N/A,31-Jul-19,1035100,94.4,0,NEW / REPLACE EQUIP. & TOOLS;,THIRD PARTY SUPPLIER,POINT OF SALE,CARD,GPC,31-Jul-19,2019,5,,K5551,VEHICLE MAINTENANCE,D1428,NEW / REPLACE EQUIP. & TOOLS;
GUILDFORD BOROUGH COUNCIL,INCOME COLLECTION,OFFICE DEPOT UK LTD,N/A,21-Aug-19,1035100,43.32,0,STATIONERY & OFFICE SUPPLIES,THIRD PARTY SUPPLIER,POINT OF SALE,CARD,GPC,21-Aug-19,2019,5,2232019081,M1121,INCOME COLLECTION (BHS),D3472,STATIONERY & OFFICE SUPPLIES
GUILDFORD BOROUGH COUNCIL,TENANT SELECTION,GOVERNMENT EVENTS,N/A,07-Aug-19,1035100,966.45,0,TRAINING,THIRD PARTY SUPPLIER,POINT OF SALE,CARD,GPC,07-Aug-19,2019,5,,M1131,"ADVICE,REGS,TENANT SELECT(SHS)",A7161,TRAINING
GUILDFORD BOROUGH COUNCIL,TENANTS' SERVICES,OFFICE DEPOT UK LTD,N/A,21-Aug-19,1035100,43.32,0,STATIONERY & OFFICE SUPPLIES,THIRD PARTY SUPPLIER,POINT OF SALE,CARD,GPC,21-Aug-19,2019,5,2232019081,M1151,TENANTS SERVICES (BHS),D3472,STATIONERY & OFFICE SUPPLIES
GUILDFORD BOROUGH COUNCIL,SHELTERED HOUSING,WWW.W-P.CO.UK,N/A,29-Jul-19,1035100,50.84,0,EQUIP. & TOOLS REPAIRS,THIRD PARTY SUPPLIER,POINT OF SALE,CARD,GPC,29-Jul-19,2019,5,SIN237366V,M1515,SHELTERED ACCOMODATION,D1429,EQUIP. & TOOLS REPAIRS
GUILDFORD BOROUGH COUNCIL,SHELTERED HOUSING,WWW.W-P.CO.UK,N/A,02-Aug-19,1035100,31.5,0,EQUIP. & TOOLS REPAIRS,THIRD PARTY SUPPLIER,POINT OF SALE,CARD,GPC,02-Aug-19,2019,5,SIN238035V,M1515,SHELTERED ACCOMODATION,D1429,EQUIP. & TOOLS REPAIRS
GUILDFORD BOROUGH COUNCIL,SHELTERED HOUSING,WWW.W-P.CO.UK,N/A,19-Aug-19,1035100,134.69,0,CLEANING MATERIALS,THIRD PARTY SUPPLIER,POINT OF SALE,CARD,GPC,19-Aug-19,2019,5,SIN239923V,M1515,SHELTERED ACCOMODATION,B6231,CLEANING MATERIALS
GUILDFORD BOROUGH COUNCIL,SHELTERED HOUSING,WWW.W-P.CO.UK,N/A,12-Aug-19,1035100,83.54,0,CLEANING MATERIALS,THIRD PARTY SUPPLIER,POINT OF SALE,CARD,GPC,12-Aug-19,2019,5,SIN239045V,M1515,SHELTERED ACCOMODATION,B6231,CLEANING MATERIALS
GUILDFORD BOROUGH COUNCIL,OTHER ST CREDITORS,SURREY CC CARD PAY,N/A,09-Aug-19,1035100,80,0,PAYMENTS,THIRD PARTY SUPPLIER,POINT OF SALE,CARD,GPC,09-Aug-19,2019,5,,L02088,CARE & REPAIR CLIENT FUND,2489,PAYMENTS
GUILDFORD BOROUGH COUNCIL,OFF STREET PARKING,WWW.W-P.CO.UK,N/A,23-Aug-19,1035100,480.04,0,CLEANING MATERIALS,THIRD PARTY SUPPLIER,POINT OF SALE,CARD,GPC,23-Aug-19,2019,5,SIN240558V,B2115,PARKING OFFICE ACCOMM COSTS,B6231,CLEANING MATERIALS
GUILDFORD BOROUGH COUNCIL,LEISURE PLAY DEVELOPMENT,ADBAND,N/A,29-Jul-19,1035100,180,0,CLOTHING & UNIFORM,THIRD PARTY SUPPLIER,POINT OF SALE,CARD,GPC,29-Jul-19,2019,5,,A4126,FISH,D2421,CLOTHING & UNIFORM
GUILDFORD BOROUGH COUNCIL,LEISURE PLAY DEVELOPMENT,AMZNMKTPLACE,N/A,09-Aug-19,1035100,15.99,0,NEW / REPLACE EQUIP. & TOOLS;,THIRD PARTY SUPPLIER,POINT OF SALE,CARD,GPC,09-Aug-19,2019,5,026-015664,A4126,FISH,D1428,NEW / REPLACE EQUIP. & TOOLS;
GUILDFORD BOROUGH COUNCIL,LEISURE PLAY DEVELOPMENT,AMZNMKTPLACE,N/A,07-Aug-19,1035100,9.48,0,NEW / REPLACE EQUIP. & TOOLS;,THIRD PARTY SUPPLIER,POINT OF SALE,CARD,GPC,07-Aug-19,2019,5,026-137523,A4126,FISH,D1428,NEW / REPLACE EQUIP. & TOOLS;
GUILDFORD BOROUGH COUNCIL,LEISURE PLAY DEVELOPMENT,JS ONLINE GROCERY,N/A,05-Aug-19,1035100,-9,0,NEW / REPLACE EQUIP. & TOOLS;,THIRD PARTY SUPPLIER,POINT OF SALE,CARD,GPC,05-Aug-19,2019,5,,A4126,FISH,D1428,NEW / REPLACE EQUIP. & TOOLS;
GUILDFORD BOROUGH COUNCIL,LEISURE PLAY DEVELOPMENT,JS ONLINE GROCERY,N/A,05-Aug-19,1035100,89.05,0,NEW / REPLACE EQUIP. & TOOLS;,THIRD PARTY SUPPLIER,POINT OF SALE,CARD,GPC,05-Aug-19,2019,5,,A4126,FISH,D1428,NEW / REPLACE EQUIP. & TOOLS;
GUILDFORD BOROUGH COUNCIL,LEISURE PLAY DEVELOPMENT,SAINSBURYS S/MKTS,N/A,04-Aug-19,1035100,2.2,0,NEW / REPLACE EQUIP. & TOOLS;,THIRD PARTY SUPPLIER,POINT OF SALE,CARD,GPC,04-Aug-19,2019,5,,A4126,FISH,D1428,NEW / REPLACE EQUIP. & TOOLS;
GUILDFORD BOROUGH COUNCIL,LEISURE PLAY DEVELOPMENT,BAKER ROSS,N/A,02-Aug-19,1035100,29.11,0,NEW / REPLACE EQUIP. & TOOLS;,THIRD PARTY SUPPLIER,POINT OF SALE,CARD,GPC,02-Aug-19,2019,5,,A4126,FISH,D1428,NEW / REPLACE EQUIP. & TOOLS;
GUILDFORD BOROUGH COUNCIL,LEISURE PLAY DEVELOPMENT,ROBERT DYAS HOLDNG LTD,N/A,28-Jul-19,1035100,116.66,0,NEW / REPLACE EQUIP. & TOOLS;,THIRD PARTY SUPPLIER,POINT OF SALE,CARD,GPC,28-Jul-19,2019,5,,A4126,FISH,D1428,NEW / REPLACE EQUIP. & TOOLS;
GUILDFORD BOROUGH COUNCIL,LEISURE PLAY DEVELOPMENT,WWW.TOOLSTATION.COM,N/A,26-Jul-19,1035100,33.3,0,NEW / REPLACE EQUIP. & TOOLS;,THIRD PARTY SUPPLIER,POINT OF SALE,CARD,GPC,26-Jul-19,2019,5,,A4126,FISH,D1428,NEW / REPLACE EQUIP. & TOOLS;
GUILDFORD BOROUGH COUNCIL,LEISURE PLAY DEVELOPMENT,AMZNMKTPLACE,N/A,09-Aug-19,1035100,15.66,0,NEW / REPLACE EQUIP. & TOOLS;,THIRD PARTY SUPPLIER,POINT OF SALE,CARD,GPC,09-Aug-19,2019,5,204-127995,A4126,FISH,D1428,NEW / REPLACE EQUIP. & TOOLS;
GUILDFORD BOROUGH COUNCIL,OTHER ST CREDITORS,PC CARD CONTRA,N/A,28-Aug-19,1035100,-30822.33,0,T/FR TO REVENUE,THIRD PARTY SUPPLIER,POINT OF SALE,CARD,GPC,28-Aug-19,2019,5,,L02006,GOVT PROCUREMENT CARDS,2940,T/FR TO REVENUE
GUILDFORD BOROUGH COUNCIL,PRIVATE SECTOR HOUSING,TP GUILDFORD,N/A,27-Aug-19,1035100,43.48,0,MATERIALS,THIRD PARTY SUPPLIER,POINT OF SALE,CARD,GPC,27-Aug-19,2019,5,None,C5136,HANDYPERSON SERVICE,D1545,MATERIALS
GUILDFORD BOROUGH COUNCIL,PRIVATE SECTOR HOUSING,SELCO BUILDERS,N/A,27-Aug-19,1035100,9.35,0,MATERIALS,THIRD PARTY SUPPLIER,POINT OF SALE,CARD,GPC,27-Aug-19,2019,5,,C5136,HANDYPERSON SERVICE,D1545,MATERIALS
GUILDFORD BOROUGH COUNCIL,PRIVATE SECTOR HOUSING,SELCO BUILDERS,N/A,27-Aug-19,1035100,36.66,0,MATERIALS,THIRD PARTY SUPPLIER,POINT OF SALE,CARD,GPC,27-Aug-19,2019,5,,C5136,HANDYPERSON SERVICE,D1545,MATERIALS
GUILDFORD BOROUGH COUNCIL,PRIVATE SECTOR HOUSING,GUILDFORD1125,N/A,16-Aug-19,1035100,19.54,0,MATERIALS,THIRD PARTY SUPPLIER,POINT OF SALE,CARD,GPC,16-Aug-19,2019,5,,C5136,HANDYPERSON SERVICE,D1545,MATERIALS
GUILDFORD BOROUGH COUNCIL,PRIVATE SECTOR HOUSING,TP GUILDFORD,N/A,16-Aug-19,1035100,39,0,MATERIALS,THIRD PARTY SUPPLIER,POINT OF SALE,CARD,GPC,16-Aug-19,2019,5,None,C5136,HANDYPERSON SERVICE,D1545,MATERIALS
GUILDFORD BOROUGH COUNCIL,PRIVATE SECTOR HOUSING,GUILDFORD1125,N/A,15-Aug-19,1035100,141.11,0,MATERIALS,THIRD PARTY SUPPLIER,POINT OF SALE,CARD,GPC,15-Aug-19,2019,5,,C5136,HANDYPERSON SERVICE,D1545,MATERIALS
GUILDFORD BOROUGH COUNCIL,PRIVATE SECTOR HOUSING,JEWSON LTD,N/A,15-Aug-19,1035100,50.2,0,MATERIALS,THIRD PARTY SUPPLIER,POINT OF SALE,CARD,GPC,15-Aug-19,2019,5,2801527,C5136,HANDYPERSON SERVICE,D1545,MATERIALS
GUILDFORD BOROUGH COUNCIL,PRIVATE SECTOR HOUSING,B  Q 1029,N/A,13-Aug-19,1035100,14.75,0,MATERIALS,THIRD PARTY SUPPLIER,POINT OF SALE,CARD,GPC,13-Aug-19,2019,5,0,C5136,HANDYPERSON SERVICE,D1545,MATERIALS
GUILDFORD BOROUGH COUNCIL,PRIVATE SECTOR HOUSING,JEWSON LTD,N/A,12-Aug-19,1035100,21.23,0,MATERIALS,THIRD PARTY SUPPLIER,POINT OF SALE,CARD,GPC,12-Aug-19,2019,5,2756611,C5136,HANDYPERSON SERVICE,D1545,MATERIALS
GUILDFORD BOROUGH COUNCIL,PRIVATE SECTOR HOUSING,SELCO BUILDERS,N/A,09-Aug-19,1035100,10.19,0,MATERIALS,THIRD PARTY SUPPLIER,POINT OF SALE,CARD,GPC,09-Aug-19,2019,5,,C5136,HANDYPERSON SERVICE,D1545,MATERIALS
GUILDFORD BOROUGH COUNCIL,PRIVATE SECTOR HOUSING,JEWSON LTD,N/A,09-Aug-19,1035100,34.62,0,MATERIALS,THIRD PARTY SUPPLIER,POINT OF SALE,CARD,GPC,09-Aug-19,2019,5,2737944,C5136,HANDYPERSON SERVICE,D1545,MATERIALS
GUILDFORD BOROUGH COUNCIL,PRIVATE SECTOR HOUSING,TP GUILDFORD,N/A,07-Aug-19,1035100,59.68,0,MATERIALS,THIRD PARTY SUPPLIER,POINT OF SALE,CARD,GPC,07-Aug-19,2019,5,None,C5136,HANDYPERSON SERVICE,D1545,MATERIALS
GUILDFORD BOROUGH COUNCIL,PRIVATE SECTOR HOUSING,JEWSON LTD,N/A,01-Aug-19,1035100,93.95,0,MATERIALS,THIRD PARTY SUPPLIER,POINT OF SALE,CARD,GPC,01-Aug-19,2019,5,2636758,C5136,HANDYPERSON SERVICE,D1545,MATERIALS
GUILDFORD BOROUGH COUNCIL,PRIVATE SECTOR HOUSING,JEWSON LTD,N/A,01-Aug-19,1035100,12.38,0,MATERIALS,THIRD PARTY SUPPLIER,POINT OF SALE,CARD,GPC,01-Aug-19,2019,5,2639681,C5136,HANDYPERSON SERVICE,D1545,MATERIALS
GUILDFORD BOROUGH COUNCIL,PRIVATE SECTOR HOUSING,SELCO BUILDERS,N/A,30-Jul-19,1035100,18.85,0,MATERIALS,THIRD PARTY SUPPLIER,POINT OF SALE,CARD,GPC,30-Jul-19,2019,5,,C5136,HANDYPERSON SERVICE,D1545,MATERIALS
GUILDFORD BOROUGH COUNCIL,PRIVATE SECTOR HOUSING,JEWSON LTD,N/A,29-Jul-19,1035100,55.26,0,MATERIALS,THIRD PARTY SUPPLIER,POINT OF SALE,CARD,GPC,29-Jul-19,2019,5,2590773,C5136,HANDYPERSON SERVICE,D1545,MATERIALS
GUILDFORD BOROUGH COUNCIL,PRIVATE SECTOR HOUSING,GUILDFORD1125,N/A,26-Jul-19,1035100,15,0,MATERIALS,THIRD PARTY SUPPLIER,POINT OF SALE,CARD,GPC,26-Jul-19,2019,5,,C5136,HANDYPERSON SERVICE,D1545,MATERIALS
GUILDFORD BOROUGH COUNCIL,OFFICE SERVICES TEAM,WWW.W-P.CO.UK,N/A,23-Aug-19,1035100,275.4,0,CLEANING MATERIALS,THIRD PARTY SUPPLIER,POINT OF SALE,CARD,GPC,23-Aug-19,2019,5,SIN240559V,G7510,OFFICE CLEANING,B6231,CLEANING MATERIALS
GUILDFORD BOROUGH COUNCIL,OFFICE SERVICES TEAM,WWW.W-P.CO.UK,N/A,09-Aug-19,1035100,439.82,0,CLEANING MATERIALS,THIRD PARTY SUPPLIER,POINT OF SALE,CARD,GPC,09-Aug-19,2019,5,SIN238930V,G7510,OFFICE CLEANING,B6231,CLEANING MATERIALS
GUILDFORD BOROUGH COUNCIL,MUSEUM,OFFICE DEPOT UK LTD,N/A,09-Aug-19,1035100,15.07,0,STATIONERY & OFFICE SUPPLIES,THIRD PARTY SUPPLIER,POINT OF SALE,CARD,GPC,09-Aug-19,2019,5,2362019080,A5571,CASTLE KEEP,D3472,STATIONERY & OFFICE SUPPLIES
GUILDFORD BOROUGH COUNCIL,DAY SERVICES,OFFICE DEPOT UK LTD,N/A,08-Aug-19,1035100,31.61,0,STATIONERY & OFFICE SUPPLIES,THIRD PARTY SUPPLIER,POINT OF SALE,CARD,GPC,08-Aug-19,2019,5,2412019080,C8188,WEST HUB SHAWFIELD,D3472,STATIONERY & OFFICE SUPPLIES
GUILDFORD BOROUGH COUNCIL,DAY SERVICES,OFFICE DEPOT UK LTD,N/A,13-Aug-19,1035100,246.33,0,NEW / REPLACE EQUIP. & TOOLS;,THIRD PARTY SUPPLIER,POINT OF SALE,CARD,GPC,13-Aug-19,2019,5,2412019080,C8188,WEST HUB SHAWFIELD,D1428,NEW / REPLACE EQUIP. & TOOLS;
GUILDFORD BOROUGH COUNCIL,DAY SERVICES,WWW.W-P.CO.UK,N/A,02-Aug-19,1035100,231.7,0,CLEANING MATERIALS,THIRD PARTY SUPPLIER,POINT OF SALE,CARD,GPC,02-Aug-19,2019,5,SIN238079V,C8188,WEST HUB SHAWFIELD,B6231,CLEANING MATERIALS
GUILDFORD BOROUGH COUNCIL,DAY SERVICES,ELC-INTERNET,N/A,19-Aug-19,1035100,48,0,MISCELLANEOUS EXPENSES,THIRD PARTY SUPPLIER,POINT OF SALE,CARD,GPC,19-Aug-19,2019,5,,C8189,CENTRAL HUB PARK BARN,D9483,MISCELLANEOUS EXPENSES
GUILDFORD BOROUGH COUNCIL,DAY SERVICES,ELC-INTERNET,N/A,16-Aug-19,1035100,39.99,0,MISCELLANEOUS EXPENSES,THIRD PARTY SUPPLIER,POINT OF SALE,CARD,GPC,16-Aug-19,2019,5,,C8189,CENTRAL HUB PARK BARN,D9483,MISCELLANEOUS EXPENSES
GUILDFORD BOROUGH COUNCIL,DAY SERVICES,ELC-INTERNET,N/A,16-Aug-19,1035100,4,0,MISCELLANEOUS EXPENSES,THIRD PARTY SUPPLIER,POINT OF SALE,CARD,GPC,16-Aug-19,2019,5,,C8189,CENTRAL HUB PARK BARN,D9483,MISCELLANEOUS EXPENSES
GUILDFORD BOROUGH COUNCIL,DAY SERVICES,ELC-INTERNET,N/A,16-Aug-19,1035100,4,0,MISCELLANEOUS EXPENSES,THIRD PARTY SUPPLIER,POINT OF SALE,CARD,GPC,16-Aug-19,2019,5,,C8189,CENTRAL HUB PARK BARN,D9483,MISCELLANEOUS EXPENSES
GUILDFORD BOROUGH COUNCIL,DAY SERVICES,ELC-INTERNET,N/A,16-Aug-19,1035100,4,0,MISCELLANEOUS EXPENSES,THIRD PARTY SUPPLIER,POINT OF SALE,CARD,GPC,16-Aug-19,2019,5,,C8189,CENTRAL HUB PARK BARN,D9483,MISCELLANEOUS EXPENSES
GUILDFORD BOROUGH COUNCIL,DAY SERVICES,ELC-INTERNET,N/A,15-Aug-19,1035100,4,0,MISCELLANEOUS EXPENSES,THIRD PARTY SUPPLIER,POINT OF SALE,CARD,GPC,15-Aug-19,2019,5,,C8189,CENTRAL HUB PARK BARN,D9483,MISCELLANEOUS EXPENSES
GUILDFORD BOROUGH COUNCIL,DAY SERVICES,WWW.STICKERSCAPE.C,N/A,16-Aug-19,1035100,45.49,0,MISCELLANEOUS EXPENSES,THIRD PARTY SUPPLIER,POINT OF SALE,CARD,GPC,16-Aug-19,2019,5,,C8189,CENTRAL HUB PARK BARN,D9483,MISCELLANEOUS EXPENSES
GUILDFORD BOROUGH COUNCIL,DAY SERVICES,OFFICE DEPOT UK LTD,N/A,08-Aug-19,1035100,47.97,0,STATIONERY & OFFICE SUPPLIES,THIRD PARTY SUPPLIER,POINT OF SALE,CARD,GPC,08-Aug-19,2019,5,3602019080,C8189,CENTRAL HUB PARK BARN,D3472,STATIONERY & OFFICE SUPPLIES
GUILDFORD BOROUGH COUNCIL,DAY SERVICES,WWW.W-P.CO.UK,N/A,08-Aug-19,1035100,195.97,0,CLEANING MATERIALS,THIRD PARTY SUPPLIER,POINT OF SALE,CARD,GPC,08-Aug-19,2019,5,SIN238701V,C8189,CENTRAL HUB PARK BARN,B6231,CLEANING MATERIALS
GUILDFORD BOROUGH COUNCIL,DAY SERVICES,AMZKW-COMMERCE,N/A,26-Jul-19,1035100,-56.4,0,R&M - GENERAL,THIRD PARTY SUPPLIER,POINT OF SALE,CARD,GPC,26-Jul-19,2019,5,206-550211,C8189,CENTRAL HUB PARK BARN,B1231,R&M - GENERAL
GUILDFORD BOROUGH COUNCIL,PARKS & COUNTRYSIDE,TVLICENSING.CO.UK,N/A,21-Aug-19,1035100,128.75,0,TV LICENSES,THIRD PARTY SUPPLIER,POINT OF SALE,CARD,GPC,21-Aug-19,2019,5,,A1601,STOKE NURSERY OFFICES,D9468,TV LICENSES
GUILDFORD BOROUGH COUNCIL,DEVELOPMENT CONTROL,OFFICE DEPOT UK LTD,N/A,31-Jul-19,1035100,35.4,0,STATIONERY & OFFICE SUPPLIES,THIRD PARTY SUPPLIER,POINT OF SALE,CARD,GPC,31-Jul-19,2019,5,8882019072,D5100,DEVELOPMENT CONTROL - FEE EARN,D3472,STATIONERY & OFFICE SUPPLIES
GUILDFORD BOROUGH COUNCIL,DEVELOPMENT CONTROL,OFFICE DEPOT UK LTD,N/A,31-Jul-19,1035100,27.4,0,STATIONERY & OFFICE SUPPLIES,THIRD PARTY SUPPLIER,POINT OF SALE,CARD,GPC,31-Jul-19,2019,5,8882019072,D5100,DEVELOPMENT CONTROL - FEE EARN,D3472,STATIONERY & OFFICE SUPPLIES
GUILDFORD BOROUGH COUNCIL,POLICY,OFFICE DEPOT UK LTD,N/A,31-Jul-19,1035100,20,0,STATIONERY & OFFICE SUPPLIES,THIRD PARTY SUPPLIER,POINT OF SALE,CARD,GPC,31-Jul-19,2019,5,8882019072,D5300,POLICY,D3472,STATIONERY & OFFICE SUPPLIES
GUILDFORD BOROUGH COUNCIL,OTHER ST DEBTORS,REEDS RAINS LTD,N/A,26-Jul-19,1035100,3071.54,0,CASH PAID,THIRD PARTY SUPPLIER,POINT OF SALE,CARD,GPC,26-Jul-19,2019,5,,J01064,HOUSING H4U SCHEME,2175,CASH PAID
GUILDFORD BOROUGH COUNCIL,OTHER ST DEBTORS,REEDS RAINS LTD,N/A,27-Aug-19,1035100,-2621.54,0,CASH PAID,THIRD PARTY SUPPLIER,POINT OF SALE,CARD,GPC,27-Aug-19,2019,5,,J01064,HOUSING H4U SCHEME,2175,CASH PAID
GUILDFORD BOROUGH COUNCIL,OTHER ST DEBTORS,SPICERHAART RESIDENTIAL,N/A,27-Aug-19,1035100,841.16,0,CASH PAID,THIRD PARTY SUPPLIER,POINT OF SALE,CARD,GPC,27-Aug-19,2019,5,,J01064,HOUSING H4U SCHEME,2175,CASH PAID
GUILDFORD BOROUGH COUNCIL,BUILDING CONTROL SUMMARY,OFFICE DEPOT UK LTD,N/A,31-Jul-19,1035100,20,0,STATIONERY & OFFICE SUPPLIES,THIRD PARTY SUPPLIER,POINT OF SALE,CARD,GPC,31-Jul-19,2019,5,8882019072,D5700,BUILDING CONTROL - FEE,D3472,STATIONERY & OFFICE SUPPLIES
GUILDFORD BOROUGH COUNCIL,BUILDING CONTROL SUMMARY,OFFICE DEPOT UK LTD,N/A,27-Aug-19,1035100,33.13,0,STATIONERY & OFFICE SUPPLIES,THIRD PARTY SUPPLIER,POINT OF SALE,CARD,GPC,27-Aug-19,2019,5,8882019082,D5700,BUILDING CONTROL - FEE,D3472,STATIONERY & OFFICE SUPPLIES
GUILDFORD BOROUGH COUNCIL,BUILDING CONTROL SUMMARY,OFFICE DEPOT UK LTD,N/A,31-Jul-19,1035100,20,0,STATIONERY & OFFICE SUPPLIES,THIRD PARTY SUPPLIER,POINT OF SALE,CARD,GPC,31-Jul-19,2019,5,8882019072,D5700,BUILDING CONTROL - FEE,D3472,STATIONERY & OFFICE SUPPLIES
GUILDFORD BOROUGH COUNCIL,CUSTOMER SERVICE CENTRE,OFFICE DEPOT UK LTD,N/A,30-Jul-19,1035100,55.69,0,STATIONERY & OFFICE SUPPLIES,THIRD PARTY SUPPLIER,POINT OF SALE,CARD,GPC,30-Jul-19,2019,5,8932019072,G3544,CUSTOMER SERVICE CENTRE,D3472,STATIONERY & OFFICE SUPPLIES
GUILDFORD BOROUGH COUNCIL,PUBLIC HEALTH,HIGHSTREETVOUCHERS,N/A,22-Aug-19,1035100,131.5,0,CONSULTANTS (PROJECTS),THIRD PARTY SUPPLIER,POINT OF SALE,CARD,GPC,22-Aug-19,2019,5,,C1210,PUBLIC HEALTH,D4511,CONSULTANTS (PROJECTS)
GUILDFORD BOROUGH COUNCIL,PUBLIC HEALTH,AMZNMKTPLACE AMAZON.CO.UK,N/A,20-Aug-19,1035100,24.97,0,CONSULTANTS (PROJECTS),THIRD PARTY SUPPLIER,POINT OF SALE,CARD,GPC,20-Aug-19,2019,5,206-962906,C1210,PUBLIC HEALTH,D4511,CONSULTANTS (PROJECTS)
GUILDFORD BOROUGH COUNCIL,PUBLIC HEALTH,AMZNMKTPLACE AMAZON.CO.UK,N/A,21-Aug-19,1035100,0.98,0,CONSULTANTS (PROJECTS),THIRD PARTY SUPPLIER,POINT OF SALE,CARD,GPC,21-Aug-19,2019,5,206-792886,C1210,PUBLIC HEALTH,D4511,CONSULTANTS (PROJECTS)
GUILDFORD BOROUGH COUNCIL,PUBLIC HEALTH,AMZNMKTPLACE AMAZON.CO.UK,N/A,22-Aug-19,1035100,1.06,0,CONSULTANTS (PROJECTS),THIRD PARTY SUPPLIER,POINT OF SALE,CARD,GPC,22-Aug-19,2019,5,206-168109,C1210,PUBLIC HEALTH,D4511,CONSULTANTS (PROJECTS)
GUILDFORD BOROUGH COUNCIL,SURREY FAMILY SUPPORT PROG,THE CLARKS SHOP,N/A,23-Aug-19,1035100,166.05,0,DONATIONS EXPENDITURE,THIRD PARTY SUPPLIER,POINT OF SALE,CARD,GPC,23-Aug-19,2019,5,,C3320,SURREY FAMILY SUPPORT PROG,D1406,DONATIONS EXPENDITURE
GUILDFORD BOROUGH COUNCIL,LA ST CREDITORS,AWS EMEA,N/A,02-Aug-19,1035100,181.89,0,PAYMENTS,THIRD PARTY SUPPLIER,POINT OF SALE,CARD,GPC,02-Aug-19,2019,5,251545914,L12105,SURREY GIS FORUM,2489,PAYMENTS
GUILDFORD BOROUGH COUNCIL,MAJOR PROJECTS,STATIONERY OFFICE BOOK,N/A,01-Aug-19,1035100,190,0,BOOKS AND PUBLICATIONS,THIRD PARTY SUPPLIER,POINT OF SALE,CARD,GPC,01-Aug-19,2019,5,,F5530,MAJOR PROJECTS,D3411,BOOKS AND PUBLICATIONS
GUILDFORD BOROUGH COUNCIL,FLEET MANAGEMENT,DVLA VEHICLE TAX,N/A,01-Aug-19,1035100,617.5,0,LICENCES - VEHICLES,THIRD PARTY SUPPLIER,POINT OF SALE,CARD,GPC,01-Aug-19,2019,5,,VRR31,MERC REFUSE FREIGHTER GX16 OBA,C1326,LICENCES - VEHICLES
GUILDFORD BOROUGH COUNCIL,PARKS & COUNTRYSIDE,FULCRUMAPP.COM,N/A,27-Aug-19,1035100,7291.36,0,COMPUTER SOFTWARE LICENCE COST,THIRD PARTY SUPPLIER,POINT OF SALE,CARD,GPC,27-Aug-19,2019,5,,A1209,PARKS AND OPEN SPACES GENERAL,D5445,COMPUTER SOFTWARE LICENCE COST
GUILDFORD BOROUGH COUNCIL,IT RENEWALS,WWW.ESENDEX.CO.UK,N/A,19-Aug-19,1035100,90,0,SOFTWARE,THIRD PARTY SUPPLIER,POINT OF SALE,CARD,GPC,19-Aug-19,2019,5,,P81034,ICT INFRASTRUCTURE IMPROVEMENT,1296,SOFTWARE
GUILDFORD BOROUGH COUNCIL,RENOVATIONS,SURREY CC CARD PAY,N/A,07-Aug-19,1035100,1810,0,CONTRACT PYTS-MAIN CONTRACTOR,THIRD PARTY SUPPLIER,POINT OF SALE,CARD,GPC,07-Aug-19,2019,5,,N40272,DISABLED ADAPTS 2019-20,1233,CONTRACT PYTS-MAIN CONTRACTOR
GUILDFORD BOROUGH COUNCIL,RENOVATIONS,SURREY CC CARD PAY,N/A,02-Aug-19,1035100,80,0,CONTRACT PYTS-MAIN CONTRACTOR,THIRD PARTY SUPPLIER,POINT OF SALE,CARD,GPC,02-Aug-19,2019,5,,N40272,DISABLED ADAPTS 2019-20,1233,CONTRACT PYTS-MAIN CONTRACTOR
GUILDFORD BOROUGH COUNCIL,MANAGEMENT POLICY STRATEGY,ISO/CS,N/A,12-Aug-19,1035100,156.96,0,INFORMATION SECURITY SYSTEMS,THIRD PARTY SUPPLIER,POINT OF SALE,CARD,GPC,12-Aug-19,2019,5,,G3545,"ICT MANAGEMENT, POLICY & STRAT",D5443,INFORMATION SECURITY SYSTEMS
GUILDFORD BOROUGH COUNCIL,OPERATIONS TECHNICAL SERVICES,DIGICERT INC,N/A,17-Aug-19,1035100,353.03,0,NEW / REPLACE EQUIP. & TOOLS;,THIRD PARTY SUPPLIER,POINT OF SALE,CARD,GPC,17-Aug-19,2019,5,AC0O1E9320,G3546,ICT SERVICE DESK,D1428,NEW / REPLACE EQUIP. & TOOLS;
GUILDFORD BOROUGH COUNCIL,EXECUTIVE - MISCELLANEOUS,WWW.PARAMOUNTPLANTS.CO,N/A,07-Aug-19,1035100,-130,0,MISCELLANEOUS EXPENSES,THIRD PARTY SUPPLIER,POINT OF SALE,CARD,GPC,07-Aug-19,2019,5,,P79032,SMC(WEST) PHASE 1,1444,MISCELLANEOUS EXPENSES
GUILDFORD BOROUGH COUNCIL,WOKING ROAD DEPOT,TVLICENSING.CO.UK,N/A,17-Sep-19,1035252,128.75,0,TV LICENSES,THIRD PARTY SUPPLIER,POINT OF SALE,CARD,GPC,17-Sep-19,2019,6,,B4452,WOKING ROAD DEPOT,D9468,TV LICENSES
GUILDFORD BOROUGH COUNCIL,WOKING ROAD DEPOT,PAYPAL WOLVERINEEU,N/A,19-Sep-19,1035252,45.83,0,CLOTHING & UNIFORM,THIRD PARTY SUPPLIER,POINT OF SALE,CARD,GPC,19-Sep-19,2019,6,,B4452,WOKING ROAD DEPOT,D2421,CLOTHING & UNIFORM
GUILDFORD BOROUGH COUNCIL,WOKING ROAD DEPOT,PAYPAL MUSICMAGPIE,N/A,29-Aug-19,1035252,132.48,0,NEW / REPLACE EQUIP. & TOOLS;,THIRD PARTY SUPPLIER,POINT OF SALE,CARD,GPC,29-Aug-19,2019,6,,B4452,WOKING ROAD DEPOT,D1428,NEW / REPLACE EQUIP. & TOOLS;
GUILDFORD BOROUGH COUNCIL,WOKING ROAD DEPOT,WWW.UK.NESTLE.COM,N/A,18-Sep-19,1035252,272.57,0,NEW / REPLACE EQUIP. & TOOLS;,THIRD PARTY SUPPLIER,POINT OF SALE,CARD,GPC,18-Sep-19,2019,6,,B4452,WOKING ROAD DEPOT,D1428,NEW / REPLACE EQUIP. & TOOLS;
GUILDFORD BOROUGH COUNCIL,WOKING ROAD DEPOT,CARTRIDGE SAVE,N/A,02-Sep-19,1035252,156.58,0,NEW / REPLACE EQUIP. & TOOLS;,THIRD PARTY SUPPLIER,POINT OF SALE,CARD,GPC,02-Sep-19,2019,6,,B4452,WOKING ROAD DEPOT,D1428,NEW / REPLACE EQUIP. & TOOLS;
GUILDFORD BOROUGH COUNCIL,WOKING ROAD DEPOT,NOTCUTTS GARDEN CE,N/A,30-Aug-19,1035252,91.55,0,GROUNDS - MISCELLANEOUS,THIRD PARTY SUPPLIER,POINT OF SALE,CARD,GPC,30-Aug-19,2019,6,,B4452,WOKING ROAD DEPOT,B1275,GROUNDS - MISCELLANEOUS
GUILDFORD BOROUGH COUNCIL,PRIVATE SECTOR HOUSING,OFFICE DEPOT UK LTD,N/A,05-Sep-19,1035252,96.33,0,STATIONERY & OFFICE SUPPLIES,THIRD PARTY SUPPLIER,POINT OF SALE,CARD,GPC,05-Sep-19,2019,6,2412019082,C5132,CARE & REPAIR (DETR),D3472,STATIONERY & OFFICE SUPPLIES
GUILDFORD BOROUGH COUNCIL,CORP SERVICES,WWW.PARAGON.NET.UK RT,N/A,26-Sep-19,1035252,5.99,0,WEBSITE HOSTING COSTS,THIRD PARTY SUPPLIER,POINT OF SALE,CARD,GPC,26-Sep-19,2019,6,,F1111,CORPORATE SERVICES,D5457,WEBSITE HOSTING COSTS
GUILDFORD BOROUGH COUNCIL,CIVIC EXPENSES,SILENT POOL DISTIL,N/A,28-Aug-19,1035252,55.83,0,BOROUGH PROMOTIONAL EXPENSES,THIRD PARTY SUPPLIER,POINT OF SALE,CARD,GPC,28-Aug-19,2019,6,,F2131,CIVIC EXPENSES,D9421,BOROUGH PROMOTIONAL EXPENSES
GUILDFORD BOROUGH COUNCIL,CIVIC EXPENSES,MARKSSPENCER PLC,N/A,05-Sep-19,1035252,10,0,BOROUGH PROMOTIONAL EXPENSES,THIRD PARTY SUPPLIER,POINT OF SALE,CARD,GPC,05-Sep-19,2019,6,,F2131,CIVIC EXPENSES,D9421,BOROUGH PROMOTIONAL EXPENSES
GUILDFORD BOROUGH COUNCIL,CIVIC EXPENSES,THE IVY COLLECTION,N/A,05-Sep-19,1035252,32.25,0,BOROUGH PROMOTIONAL EXPENSES,THIRD PARTY SUPPLIER,POINT OF SALE,CARD,GPC,05-Sep-19,2019,6,,F2131,CIVIC EXPENSES,D9421,BOROUGH PROMOTIONAL EXPENSES
GUILDFORD BOROUGH COUNCIL,CIVIC EXPENSES,GIFT SEARCH,N/A,05-Sep-19,1035252,9.56,0,BOROUGH PROMOTIONAL EXPENSES,THIRD PARTY SUPPLIER,POINT OF SALE,CARD,GPC,05-Sep-19,2019,6,,F2131,CIVIC EXPENSES,D9421,BOROUGH PROMOTIONAL EXPENSES
GUILDFORD BOROUGH COUNCIL,CIVIC EXPENSES,THE IVY COLLECTION,N/A,29-Aug-19,1035252,1744.38,0,BOROUGH PROMOTIONAL EXPENSES,THIRD PARTY SUPPLIER,POINT OF SALE,CARD,GPC,29-Aug-19,2019,6,,F2131,CIVIC EXPENSES,D9421,BOROUGH PROMOTIONAL EXPENSES
GUILDFORD BOROUGH COUNCIL,GUILDHALL,SAINSBURYS S/MKTS,N/A,25-Sep-19,1035252,8.5,0,FOOD PURCHASES,THIRD PARTY SUPPLIER,POINT OF SALE,CARD,GPC,25-Sep-19,2019,6,,F3311,GUILDHALL,D1832,FOOD PURCHASES
GUILDFORD BOROUGH COUNCIL,WOKING ROAD DEPOT,TOOLSTATION LTD,N/A,24-Sep-19,1035252,83.42,0,GROUNDS - MISCELLANEOUS,THIRD PARTY SUPPLIER,POINT OF SALE,CARD,GPC,24-Sep-19,2019,6,,B4452,WOKING ROAD DEPOT,B1275,GROUNDS - MISCELLANEOUS
GUILDFORD BOROUGH COUNCIL,WOKING ROAD DEPOT,WWW.DARCY.CO.UK,N/A,24-Sep-19,1035252,469.22,0,GROUNDS - MISCELLANEOUS,THIRD PARTY SUPPLIER,POINT OF SALE,CARD,GPC,24-Sep-19,2019,6,IRIDI00140,B4452,WOKING ROAD DEPOT,B1275,GROUNDS - MISCELLANEOUS
GUILDFORD BOROUGH COUNCIL,WOKING ROAD DEPOT,SELCO BUILDERS,N/A,09-Sep-19,1035252,65.03,0,GROUNDS - MISCELLANEOUS,THIRD PARTY SUPPLIER,POINT OF SALE,CARD,GPC,09-Sep-19,2019,6,,B4452,WOKING ROAD DEPOT,B1275,GROUNDS - MISCELLANEOUS
GUILDFORD BOROUGH COUNCIL,REFUSE AND RECYCLING,DRICLARO SOFTWARE LTD,N/A,13-Sep-19,1035252,126,0,NEW / REPLACE EQUIP. & TOOLS;,THIRD PARTY SUPPLIER,POINT OF SALE,CARD,GPC,13-Sep-19,2019,6,,B7711,RECYCLING ADMINISTRATION,D1428,NEW / REPLACE EQUIP. & TOOLS;
GUILDFORD BOROUGH COUNCIL,REFUSE AND RECYCLING,ARGOS LTD,N/A,03-Sep-19,1035252,13.32,0,NEW / REPLACE EQUIP. & TOOLS;,THIRD PARTY SUPPLIER,POINT OF SALE,CARD,GPC,03-Sep-19,2019,6,,B7711,RECYCLING ADMINISTRATION,D1428,NEW / REPLACE EQUIP. & TOOLS;
GUILDFORD BOROUGH COUNCIL,ENVIRONMENTAL CONTROL,OFFICE DEPOT UK LTD,N/A,05-Sep-19,1035252,10.26,0,STATIONERY & OFFICE SUPPLIES,THIRD PARTY SUPPLIER,POINT OF SALE,CARD,GPC,05-Sep-19,2019,6,2412019082,C1113,ENVIRONMENTAL CONTROL,D3472,STATIONERY & OFFICE SUPPLIES
GUILDFORD BOROUGH COUNCIL,ENVIRONMENTAL CONTROL,OFFICE DEPOT UK LTD,N/A,28-Aug-19,1035252,8.27,0,STATIONERY & OFFICE SUPPLIES,THIRD PARTY SUPPLIER,POINT OF SALE,CARD,GPC,28-Aug-19,2019,6,2412019082,C1115,ENVIRONMENTAL PROTECTION,D3472,STATIONERY & OFFICE SUPPLIES
GUILDFORD BOROUGH COUNCIL,HOMELESSNESS,TRAVELODGE GB0000,N/A,28-Aug-19,1035252,275.77,0,ACCOMMODATION: EMERGENCY B&B,THIRD PARTY SUPPLIER,POINT OF SALE,CARD,GPC,28-Aug-19,2019,6,,C3316,EMERGENCY ACCOMMODATION,D4401,ACCOMMODATION: EMERGENCY B&B
GUILDFORD BOROUGH COUNCIL,HOMELESSNESS,TRAVELODGE GB0000,N/A,28-Aug-19,1035252,594.88,0,ACCOMMODATION: EMERGENCY B&B,THIRD PARTY SUPPLIER,POINT OF SALE,CARD,GPC,28-Aug-19,2019,6,,C3316,EMERGENCY ACCOMMODATION,D4401,ACCOMMODATION: EMERGENCY B&B
GUILDFORD BOROUGH COUNCIL,HOMELESSNESS,TRAVELODGE GB0000,N/A,03-Sep-19,1035252,380.77,0,ACCOMMODATION: EMERGENCY B&B,THIRD PARTY SUPPLIER,POINT OF SALE,CARD,GPC,03-Sep-19,2019,6,,C3316,EMERGENCY ACCOMMODATION,D4401,ACCOMMODATION: EMERGENCY B&B
GUILDFORD BOROUGH COUNCIL,HOMELESSNESS,TRAVELODGE GB0000,N/A,04-Sep-19,1035252,225.78,0,ACCOMMODATION: EMERGENCY B&B,THIRD PARTY SUPPLIER,POINT OF SALE,CARD,GPC,04-Sep-19,2019,6,,C3316,EMERGENCY ACCOMMODATION,D4401,ACCOMMODATION: EMERGENCY B&B
GUILDFORD BOROUGH COUNCIL,HOMELESSNESS,TRAVELODGE GB0000,N/A,04-Sep-19,1035252,305.77,0,ACCOMMODATION: EMERGENCY B&B,THIRD PARTY SUPPLIER,POINT OF SALE,CARD,GPC,04-Sep-19,2019,6,,C3316,EMERGENCY ACCOMMODATION,D4401,ACCOMMODATION: EMERGENCY B&B
GUILDFORD BOROUGH COUNCIL,HOMELESSNESS,TRAVELODGE GB0000,N/A,05-Sep-19,1035252,77.48,0,ACCOMMODATION: EMERGENCY B&B,THIRD PARTY SUPPLIER,POINT OF SALE,CARD,GPC,05-Sep-19,2019,6,,C3316,EMERGENCY ACCOMMODATION,D4401,ACCOMMODATION: EMERGENCY B&B
GUILDFORD BOROUGH COUNCIL,HOMELESSNESS,ACACIA VILLAS GUEST HOUS,N/A,06-Sep-19,1035252,420,0,ACCOMMODATION: EMERGENCY B&B,THIRD PARTY SUPPLIER,POINT OF SALE,CARD,GPC,06-Sep-19,2019,6,,C3316,EMERGENCY ACCOMMODATION,D4401,ACCOMMODATION: EMERGENCY B&B
GUILDFORD BOROUGH COUNCIL,HOMELESSNESS,TRAVELODGE GB0000,N/A,10-Sep-19,1035252,469.94,0,ACCOMMODATION: EMERGENCY B&B,THIRD PARTY SUPPLIER,POINT OF SALE,CARD,GPC,10-Sep-19,2019,6,,C3316,EMERGENCY ACCOMMODATION,D4401,ACCOMMODATION: EMERGENCY B&B
GUILDFORD BOROUGH COUNCIL,HOMELESSNESS,ACACIA VILLAS GUEST HOUS,N/A,21-Sep-19,1035252,300,0,ACCOMMODATION: EMERGENCY B&B,THIRD PARTY SUPPLIER,POINT OF SALE,CARD,GPC,21-Sep-19,2019,6,,C3316,EMERGENCY ACCOMMODATION,D4401,ACCOMMODATION: EMERGENCY B&B
GUILDFORD BOROUGH COUNCIL,HOMELESSNESS,ACACIA VILLAS GUEST HOUS,N/A,14-Sep-19,1035252,420,0,ACCOMMODATION: EMERGENCY B&B,THIRD PARTY SUPPLIER,POINT OF SALE,CARD,GPC,14-Sep-19,2019,6,,C3316,EMERGENCY ACCOMMODATION,D4401,ACCOMMODATION: EMERGENCY B&B
GUILDFORD BOROUGH COUNCIL,HOMELESSNESS,TRAVELODGE GB0000,N/A,17-Sep-19,1035252,64.99,0,ACCOMMODATION: EMERGENCY B&B,THIRD PARTY SUPPLIER,POINT OF SALE,CARD,GPC,17-Sep-19,2019,6,,C3316,EMERGENCY ACCOMMODATION,D4401,ACCOMMODATION: EMERGENCY B&B
GUILDFORD BOROUGH COUNCIL,HOMELESSNESS,711 CARS LIMITED,N/A,16-Sep-19,1035252,65,0,USE OF PUB TRANSP; OFFICERS,THIRD PARTY SUPPLIER,POINT OF SALE,CARD,GPC,16-Sep-19,2019,6,,C3316,EMERGENCY ACCOMMODATION,C5343,USE OF PUB TRANSP; OFFICERS
GUILDFORD BOROUGH COUNCIL,HOMELESSNESS,711 CARS LIMITED,N/A,24-Sep-19,1035252,50,0,USE OF PUB TRANSP; OFFICERS,THIRD PARTY SUPPLIER,POINT OF SALE,CARD,GPC,24-Sep-19,2019,6,,C3316,EMERGENCY ACCOMMODATION,C5343,USE OF PUB TRANSP; OFFICERS
GUILDFORD BOROUGH COUNCIL,PUBLIC RELATIONS,ANIMAKER INC,N/A,23-Sep-19,1035252,15.76,0,COMPUTER SOFTWARE LICENCE COST,THIRD PARTY SUPPLIER,POINT OF SALE,CARD,GPC,23-Sep-19,2019,6,,F5551,PUBLIC RELATIONS & MARKETING,D5445,COMPUTER SOFTWARE LICENCE COST
GUILDFORD BOROUGH COUNCIL,COMMUNITY WELLBEING,OFFICE DEPOT UK LTD,N/A,28-Aug-19,1035252,21.5,0,STATIONERY & OFFICE SUPPLIES,THIRD PARTY SUPPLIER,POINT OF SALE,CARD,GPC,28-Aug-19,2019,6,2232019081,F5713,COMMUNITY WELLBEING,D3472,STATIONERY & OFFICE SUPPLIES
GUILDFORD BOROUGH COUNCIL,OTHER EMPLOYEE COSTS,CHARTERED INSTITUTE OF EN,N/A,19-Sep-19,1035252,222,0,CORPORATE TRAINING PLAN,THIRD PARTY SUPPLIER,POINT OF SALE,CARD,GPC,19-Sep-19,2019,6,,G1121,ORGANISATION DEVELOPMENT,A7195,CORPORATE TRAINING PLAN
GUILDFORD BOROUGH COUNCIL,ACCOUNTANCY,THE FINANCIAL TIMES,N/A,28-Aug-19,1035252,40,0,GENERAL SUBSCRIPTIONS,THIRD PARTY SUPPLIER,POINT OF SALE,CARD,GPC,28-Aug-19,2019,6,,G3565,ACCOUNTANCY SERVICES,D7497,GENERAL SUBSCRIPTIONS
GUILDFORD BOROUGH COUNCIL,OFFICE SERVICES TEAM,OFFICE DEPOT UK LTD,N/A,25-Sep-19,1035252,10.94,0,PAPER & BOARD (RECH),THIRD PARTY SUPPLIER,POINT OF SALE,CARD,GPC,25-Sep-19,2019,6,8952019092,G4545,REPROGRAPHICS UNIT,D3480,PAPER & BOARD (RECH)
GUILDFORD BOROUGH COUNCIL,OFFICE SERVICES TEAM,OFFICE DEPOT UK LTD,N/A,05-Sep-19,1035252,91.2,0,STATIONERY & OFFICE SUPPLIES,THIRD PARTY SUPPLIER,POINT OF SALE,CARD,GPC,05-Sep-19,2019,6,8952019082,G4545,REPROGRAPHICS UNIT,D3472,STATIONERY & OFFICE SUPPLIES
GUILDFORD BOROUGH COUNCIL,OFFICE SERVICES TEAM,OFFICE DEPOT UK LTD,N/A,24-Sep-19,1035252,85.77,0,STATIONERY & OFFICE SUPPLIES,THIRD PARTY SUPPLIER,POINT OF SALE,CARD,GPC,24-Sep-19,2019,6,8952019092,G4545,REPROGRAPHICS UNIT,D3472,STATIONERY & OFFICE SUPPLIES
GUILDFORD BOROUGH COUNCIL,CORPORATE PROPERTY SERVICES,OFFICE DEPOT UK LTD,N/A,19-Sep-19,1035252,33.98,0,STATIONERY & OFFICE SUPPLIES,THIRD PARTY SUPPLIER,POINT OF SALE,CARD,GPC,19-Sep-19,2019,6,8921209201,G4575,CORPORATE PROPERTY SERVICES,D3472,STATIONERY & OFFICE SUPPLIES
GUILDFORD BOROUGH COUNCIL,CORPORATE PROPERTY SERVICES,OFFICE DEPOT UK LTD,N/A,13-Sep-19,1035252,16.66,0,STATIONERY & OFFICE SUPPLIES,THIRD PARTY SUPPLIER,POINT OF SALE,CARD,GPC,13-Sep-19,2019,6,8921209201,G4575,CORPORATE PROPERTY SERVICES,D3472,STATIONERY & OFFICE SUPPLIES
GUILDFORD BOROUGH COUNCIL,HOUSING SURVEYING SERVICES,PAYPAL *EUROPEANENE,N/A,16-Sep-19,1035252,594,0,TRAINING,THIRD PARTY SUPPLIER,POINT OF SALE,CARD,GPC,16-Sep-19,2019,6,,G6525,HOUSING SURVEYING SERVICES,A7161,TRAINING
GUILDFORD BOROUGH COUNCIL,LICENSING SERVICES,OFFICE DEPOT UK LTD,N/A,05-Sep-19,1035252,86,0,STATIONERY & OFFICE SUPPLIES,THIRD PARTY SUPPLIER,POINT OF SALE,CARD,GPC,05-Sep-19,2019,6,2412019082,H2100,LICENSING SERVICES,D3472,STATIONERY & OFFICE SUPPLIES
GUILDFORD BOROUGH COUNCIL,BUILDING MAINTENANCE,CARTRIDGE SAVE,N/A,02-Sep-19,1035252,156.58,0,NEW / REPLACE EQUIP. & TOOLS;,THIRD PARTY SUPPLIER,POINT OF SALE,CARD,GPC,02-Sep-19,2019,6,,K1515,BUILDING MAINTENANCE,D1428,NEW / REPLACE EQUIP. & TOOLS;
GUILDFORD BOROUGH COUNCIL,OPERATIONAL SERVS OVERHEAD AC,RINGGO PARKING,N/A,10-Sep-19,1035252,8.99,0,CAR PARKING CHARGES,THIRD PARTY SUPPLIER,POINT OF SALE,CARD,GPC,10-Sep-19,2019,6,,K1519,OPERATIONAL SERVS OVERHEAD AC,D9409,CAR PARKING CHARGES
GUILDFORD BOROUGH COUNCIL,OPERATIONAL SERVS OVERHEAD AC,AMAZON.CO.UKMA0444I94,N/A,25-Sep-19,1035252,41.52,0,STATIONERY & OFFICE SUPPLIES,THIRD PARTY SUPPLIER,POINT OF SALE,CARD,GPC,25-Sep-19,2019,6,204-217962,K1519,OPERATIONAL SERVS OVERHEAD AC,D3472,STATIONERY & OFFICE SUPPLIES
GUILDFORD BOROUGH COUNCIL,OPERATIONAL SERVS OVERHEAD AC,WWW.PRINTERLAND.CO,N/A,02-Sep-19,1035252,247.3,0,STATIONERY & OFFICE SUPPLIES,THIRD PARTY SUPPLIER,POINT OF SALE,CARD,GPC,02-Sep-19,2019,6,,K1519,OPERATIONAL SERVS OVERHEAD AC,D3472,STATIONERY & OFFICE SUPPLIES
GUILDFORD BOROUGH COUNCIL,OPERATIONAL SERVS OVERHEAD AC,CURRYS S/S,N/A,02-Sep-19,1035252,9.99,0,STATIONERY & OFFICE SUPPLIES,THIRD PARTY SUPPLIER,POINT OF SALE,CARD,GPC,02-Sep-19,2019,6,,K1519,OPERATIONAL SERVS OVERHEAD AC,D3472,STATIONERY & OFFICE SUPPLIES
GUILDFORD BOROUGH COUNCIL,OPERATIONAL SERVS OVERHEAD AC,OFFICE DEPOT UK LTD,N/A,25-Sep-19,1035252,110.77,0,STATIONERY & OFFICE SUPPLIES,THIRD PARTY SUPPLIER,POINT OF SALE,CARD,GPC,25-Sep-19,2019,6,2612019092,K1519,OPERATIONAL SERVS OVERHEAD AC,D3472,STATIONERY & OFFICE SUPPLIES
GUILDFORD BOROUGH COUNCIL,OPERATIONAL SERVS OVERHEAD AC,OFFICE DEPOT UK LTD,N/A,13-Sep-19,1035252,55.06,0,STATIONERY & OFFICE SUPPLIES,THIRD PARTY SUPPLIER,POINT OF SALE,CARD,GPC,13-Sep-19,2019,6,2612019091,K1519,OPERATIONAL SERVS OVERHEAD AC,D3472,STATIONERY & OFFICE SUPPLIES
GUILDFORD BOROUGH COUNCIL,OPERATIONAL SERVS OVERHEAD AC,SELFSERVE TICKET,N/A,10-Sep-19,1035252,29.17,0,USE OF PUB TRANSP; OFFICERS,THIRD PARTY SUPPLIER,POINT OF SALE,CARD,GPC,10-Sep-19,2019,6,,K1519,OPERATIONAL SERVS OVERHEAD AC,C5343,USE OF PUB TRANSP; OFFICERS
GUILDFORD BOROUGH COUNCIL,OPERATIONAL SERVS OVERHEAD AC,WWW.W-P.CO.UK,N/A,03-Sep-19,1035252,55.04,0,CLEANING MATERIALS,THIRD PARTY SUPPLIER,POINT OF SALE,CARD,GPC,03-Sep-19,2019,6,SIN241508V,K1519,OPERATIONAL SERVS OVERHEAD AC,B6231,CLEANING MATERIALS
GUILDFORD BOROUGH COUNCIL,PARKS & COUNTRYSIDE,TOOLSTATION LTD,N/A,26-Sep-19,1035252,31.45,0,MATERIALS,THIRD PARTY SUPPLIER,POINT OF SALE,CARD,GPC,26-Sep-19,2019,6,,A1300,TREES & COUNTRYSIDE,D1545,MATERIALS
GUILDFORD BOROUGH COUNCIL,PARKS & COUNTRYSIDE,HALFORDS 0763,N/A,05-Sep-19,1035252,104.17,0,MATERIALS,THIRD PARTY SUPPLIER,POINT OF SALE,CARD,GPC,05-Sep-19,2019,6,,A1300,TREES & COUNTRYSIDE,D1545,MATERIALS
GUILDFORD BOROUGH COUNCIL,PARKS & COUNTRYSIDE,GUILDFORD1125,N/A,05-Sep-19,1035252,41.47,0,MATERIALS,THIRD PARTY SUPPLIER,POINT OF SALE,CARD,GPC,05-Sep-19,2019,6,,A1300,TREES & COUNTRYSIDE,D1545,MATERIALS
GUILDFORD BOROUGH COUNCIL,PARKS & COUNTRYSIDE,HONEY BROTHERS LTD,N/A,25-Sep-19,1035252,16.38,0,NEW / REPLACE EQUIP. & TOOLS;,THIRD PARTY SUPPLIER,POINT OF SALE,CARD,GPC,25-Sep-19,2019,6,,A1300,TREES & COUNTRYSIDE,D1428,NEW / REPLACE EQUIP. & TOOLS;
GUILDFORD BOROUGH COUNCIL,PARKS & COUNTRYSIDE,HONEY BROTHERS LTD,N/A,25-Sep-19,1035252,240.7,0,NEW / REPLACE EQUIP. & TOOLS;,THIRD PARTY SUPPLIER,POINT OF SALE,CARD,GPC,25-Sep-19,2019,6,,A1300,TREES & COUNTRYSIDE,D1428,NEW / REPLACE EQUIP. & TOOLS;
GUILDFORD BOROUGH COUNCIL,PARKS & COUNTRYSIDE,WWW.W-P.CO.UK,N/A,06-Sep-19,1035252,119.16,0,CLEANING MATERIALS,THIRD PARTY SUPPLIER,POINT OF SALE,CARD,GPC,06-Sep-19,2019,6,SIN242253V,A1600,STOKE NURSERY DEPOT,B6231,CLEANING MATERIALS
GUILDFORD BOROUGH COUNCIL,LEISURE RANGERS,URBAN CARZY,N/A,12-Sep-19,1035252,87.07,0,EQUIP. & TOOLS REPAIRS,THIRD PARTY SUPPLIER,POINT OF SALE,CARD,GPC,12-Sep-19,2019,6,2284551547,A1700,PARKS RANGER SERVICE,D1429,EQUIP. & TOOLS REPAIRS
GUILDFORD BOROUGH COUNCIL,PARKS & COUNTRYSIDE,PAYPAL BESPOKECRAF,N/A,30-Aug-19,1035252,115,0,MATERIALS,THIRD PARTY SUPPLIER,POINT OF SALE,CARD,GPC,30-Aug-19,2019,6,,A1850,PARKS EVENTS AND BOOKINGS,D1545,MATERIALS
GUILDFORD BOROUGH COUNCIL,PARKS & COUNTRYSIDE,DARTINGTON CRYSTAL TORRIN,N/A,28-Aug-19,1035252,94.8,0,MATERIALS,THIRD PARTY SUPPLIER,POINT OF SALE,CARD,GPC,28-Aug-19,2019,6,,A1850,PARKS EVENTS AND BOOKINGS,D1545,MATERIALS
GUILDFORD BOROUGH COUNCIL,PARKS & COUNTRYSIDE,OFFICE DEPOT UK LTD,N/A,05-Sep-19,1035252,47.68,0,STATIONERY & OFFICE SUPPLIES,THIRD PARTY SUPPLIER,POINT OF SALE,CARD,GPC,05-Sep-19,2019,6,2692019083,A1900,PARKS MANAGEMENT AND ADMIN,D3472,STATIONERY & OFFICE SUPPLIES
GUILDFORD BOROUGH COUNCIL,LEISURE ART DEVELOPMENT,AMZNMKTPLACE,N/A,10-Sep-19,1035252,557.16,0,INITIATIVES,THIRD PARTY SUPPLIER,POINT OF SALE,CARD,GPC,10-Sep-19,2019,6,204-992116,A3511,ARTS DEVELOPMENT,D9478,INITIATIVES
GUILDFORD BOROUGH COUNCIL,GUILDFORD HOUSE,MARKSSPENCER PLC,N/A,12-Sep-19,1035252,149,0,LOCAL EVENTS,THIRD PARTY SUPPLIER,POINT OF SALE,CARD,GPC,12-Sep-19,2019,6,,A4511,GUILDFORD HOUSE ADMINISTRATION,D9475,LOCAL EVENTS
GUILDFORD BOROUGH COUNCIL,GUILDFORD HOUSE,SAINSBURYS S/MKTS,N/A,17-Sep-19,1035252,72.25,0,LOCAL EVENTS,THIRD PARTY SUPPLIER,POINT OF SALE,CARD,GPC,17-Sep-19,2019,6,,A4511,GUILDFORD HOUSE ADMINISTRATION,D9475,LOCAL EVENTS
GUILDFORD BOROUGH COUNCIL,GUILDFORD HOUSE,OFFICE DEPOT UK LTD,N/A,17-Sep-19,1035252,55.12,0,STATIONERY & OFFICE SUPPLIES,THIRD PARTY SUPPLIER,POINT OF SALE,CARD,GPC,17-Sep-19,2019,6,5782019091,A4511,GUILDFORD HOUSE ADMINISTRATION,D3472,STATIONERY & OFFICE SUPPLIES
GUILDFORD BOROUGH COUNCIL,GUILDFORD HOUSE,B  Q 1029,N/A,14-Sep-19,1035252,120,0,NEW / REPLACE EQUIP. & TOOLS;,THIRD PARTY SUPPLIER,POINT OF SALE,CARD,GPC,14-Sep-19,2019,6,,A4511,GUILDFORD HOUSE ADMINISTRATION,D1428,NEW / REPLACE EQUIP. & TOOLS;
GUILDFORD BOROUGH COUNCIL,GUILDFORD HOUSE,ROBERT DYAS HOLDNG LTD,N/A,13-Sep-19,1035252,23.97,0,NEW / REPLACE EQUIP. & TOOLS;,THIRD PARTY SUPPLIER,POINT OF SALE,CARD,GPC,13-Sep-19,2019,6,,A4511,GUILDFORD HOUSE ADMINISTRATION,D1428,NEW / REPLACE EQUIP. & TOOLS;
GUILDFORD BOROUGH COUNCIL,GUILDFORD HOUSE,B  Q 1029,N/A,06-Sep-19,1035252,28.49,0,NEW / REPLACE EQUIP. & TOOLS;,THIRD PARTY SUPPLIER,POINT OF SALE,CARD,GPC,06-Sep-19,2019,6,,A4511,GUILDFORD HOUSE ADMINISTRATION,D1428,NEW / REPLACE EQUIP. & TOOLS;
GUILDFORD BOROUGH COUNCIL,GUILDFORD HOUSE,B  Q 1029,N/A,06-Sep-19,1035252,196.47,0,NEW / REPLACE EQUIP. & TOOLS;,THIRD PARTY SUPPLIER,POINT OF SALE,CARD,GPC,06-Sep-19,2019,6,,A4511,GUILDFORD HOUSE ADMINISTRATION,D1428,NEW / REPLACE EQUIP. & TOOLS;
GUILDFORD BOROUGH COUNCIL,GUILDFORD HOUSE,WWW.W-P.CO.UK,N/A,06-Sep-19,1035252,39.12,0,JANITORIAL SUPPLIES,THIRD PARTY SUPPLIER,POINT OF SALE,CARD,GPC,06-Sep-19,2019,6,SIN242132V,A4511,GUILDFORD HOUSE ADMINISTRATION,B6259,JANITORIAL SUPPLIES
GUILDFORD BOROUGH COUNCIL,MUSEUM,OFFICE DEPOT UK LTD,N/A,10-Sep-19,1035252,25.95,0,STATIONERY & OFFICE SUPPLIES,THIRD PARTY SUPPLIER,POINT OF SALE,CARD,GPC,10-Sep-19,2019,6,2362019060,A5511,MUSEUM,D3472,STATIONERY & OFFICE SUPPLIES
GUILDFORD BOROUGH COUNCIL,MUSEUM,WWW.W-P.CO.UK,N/A,06-Sep-19,1035252,73.72,0,JANITORIAL SUPPLIES,THIRD PARTY SUPPLIER,POINT OF SALE,CARD,GPC,06-Sep-19,2019,6,SIN242131V,A5511,MUSEUM,B6259,JANITORIAL SUPPLIES
GUILDFORD BOROUGH COUNCIL,LEISURE PLAY DEVELOPMENT,WWW.TTS-GROUPS.CO.UK,N/A,12-Sep-19,1035252,22.98,0,PLAY RANGERS,THIRD PARTY SUPPLIER,POINT OF SALE,CARD,GPC,12-Sep-19,2019,6,190514286,A7211,PLAY DEVELOPMENT,D4526,PLAY RANGERS
GUILDFORD BOROUGH COUNCIL,LEISURE PLAY DEVELOPMENT,AMZNMKTPLACE,N/A,01-Sep-19,1035252,36.77,0,PLAY RANGERS,THIRD PARTY SUPPLIER,POINT OF SALE,CARD,GPC,01-Sep-19,2019,6,204-571905,A7211,PLAY DEVELOPMENT,D4526,PLAY RANGERS
GUILDFORD BOROUGH COUNCIL,LEISURE PLAY DEVELOPMENT,MASTERS TRADITIONAL,N/A,11-Sep-19,1035252,26.65,0,PLAY RANGERS,THIRD PARTY SUPPLIER,POINT OF SALE,CARD,GPC,11-Sep-19,2019,6,1909111322,A7211,PLAY DEVELOPMENT,D4526,PLAY RANGERS
GUILDFORD BOROUGH COUNCIL,LEISURE PLAY DEVELOPMENT,AMAZON.CO.UKMA6DN58M4 AM,N/A,15-Sep-19,1035252,29.24,0,PLAY RANGERS,THIRD PARTY SUPPLIER,POINT OF SALE,CARD,GPC,15-Sep-19,2019,6,204-945195,A7211,PLAY DEVELOPMENT,D4526,PLAY RANGERS
GUILDFORD BOROUGH COUNCIL,LEISURE PLAY DEVELOPMENT,WWW.W-P.CO.UK,N/A,16-Sep-19,1035252,39.71,0,PLAY RANGERS,THIRD PARTY SUPPLIER,POINT OF SALE,CARD,GPC,16-Sep-19,2019,6,SIN243586V,A7211,PLAY DEVELOPMENT,D4526,PLAY RANGERS
GUILDFORD BOROUGH COUNCIL,LEISURE PLAY DEVELOPMENT,WWW.THEGLOWCOMPANY.CO.UK,N/A,12-Sep-19,1035252,110.73,0,PLAY RANGERS,THIRD PARTY SUPPLIER,POINT OF SALE,CARD,GPC,12-Sep-19,2019,6,,A7211,PLAY DEVELOPMENT,D4526,PLAY RANGERS
GUILDFORD BOROUGH COUNCIL,OFF STREET PARKING,WWW.W-P.CO.UK,N/A,06-Sep-19,1035252,126.07,0,CLEANING MATERIALS,THIRD PARTY SUPPLIER,POINT OF SALE,CARD,GPC,06-Sep-19,2019,6,SIN242174V,B2216,GENERAL UPKEEP- URBAN CAR PKS,B6231,CLEANING MATERIALS
GUILDFORD BOROUGH COUNCIL,ON STREET PARKING,OFFICE DEPOT UK LTD,N/A,18-Sep-19,1035252,63.2,0,STATIONERY & OFFICE SUPPLIES,THIRD PARTY SUPPLIER,POINT OF SALE,CARD,GPC,18-Sep-19,2019,6,2642019170,B2217,GUILDFORD ON-STREET,D3472,STATIONERY & OFFICE SUPPLIES
GUILDFORD BOROUGH COUNCIL,ON STREET PARKING,OFFICE DEPOT UK LTD,N/A,11-Sep-19,1035252,56.14,0,STATIONERY & OFFICE SUPPLIES,THIRD PARTY SUPPLIER,POINT OF SALE,CARD,GPC,11-Sep-19,2019,6,2642019091,B2217,GUILDFORD ON-STREET,D3472,STATIONERY & OFFICE SUPPLIES
GUILDFORD BOROUGH COUNCIL,GOVERNMENT ST DEBTORS,PC CARD VAT,N/A,28-Sep-19,1035252,0,0,VAT INPUT TAX,THIRD PARTY SUPPLIER,POINT OF SALE,CARD,GPC,28-Sep-19,2019,6,O,J02040,VAT,2736,VAT INPUT TAX
GUILDFORD BOROUGH COUNCIL,GOVERNMENT ST DEBTORS,PC CARD VAT,N/A,28-Sep-19,1035252,0,0,VAT INPUT TAX,THIRD PARTY SUPPLIER,POINT OF SALE,CARD,GPC,28-Sep-19,2019,6,Z,J02040,VAT,2736,VAT INPUT TAX
GUILDFORD BOROUGH COUNCIL,GOVERNMENT ST DEBTORS,PC CARD VAT,N/A,28-Sep-19,1035252,1956.05,0,VAT INPUT TAX,THIRD PARTY SUPPLIER,POINT OF SALE,CARD,GPC,28-Sep-19,2019,6,20,J02040,VAT,2736,VAT INPUT TAX
GUILDFORD BOROUGH COUNCIL,RESPONSIVE & PLANNED MAINTENAN,OFFICE DEPOT UK LTD,N/A,05-Sep-19,1035252,8.72,0,STATIONERY & OFFICE SUPPLIES,THIRD PARTY SUPPLIER,POINT OF SALE,CARD,GPC,05-Sep-19,2019,6,2232019082,M5111,REPAIRS-ADMIN (BHS),D3472,STATIONERY & OFFICE SUPPLIES
GUILDFORD BOROUGH COUNCIL,RESPONSIVE & PLANNED MAINTENAN,OFFICE DEPOT UK LTD,N/A,23-Sep-19,1035252,26.14,0,STATIONERY & OFFICE SUPPLIES,THIRD PARTY SUPPLIER,POINT OF SALE,CARD,GPC,23-Sep-19,2019,6,2232019092,M5111,REPAIRS-ADMIN (BHS),D3472,STATIONERY & OFFICE SUPPLIES
GUILDFORD BOROUGH COUNCIL,RESPONSIVE & PLANNED MAINTENAN,CAPITA GAS REG,N/A,26-Sep-19,1035252,6,0,HEATING; REPAIRS WATER/CENTRAL,THIRD PARTY SUPPLIER,POINT OF SALE,CARD,GPC,26-Sep-19,2019,6,,M5114,REPAIRS-CYCLICAL (BHS),B1351,HEATING; REPAIRS WATER/CENTRAL
GUILDFORD BOROUGH COUNCIL,REFUSE AND RECYCLING,TIMPSON LTD,N/A,18-Sep-19,1035252,17.5,0,NEW / REPLACE EQUIP. & TOOLS;,THIRD PARTY SUPPLIER,POINT OF SALE,CARD,GPC,18-Sep-19,2019,6,,K3551,REFUSE COLLECTION,D1428,NEW / REPLACE EQUIP. & TOOLS;
GUILDFORD BOROUGH COUNCIL,REFUSE AND RECYCLING,ARGOS BURPHAM,N/A,18-Sep-19,1035252,33.32,0,NEW / REPLACE EQUIP. & TOOLS;,THIRD PARTY SUPPLIER,POINT OF SALE,CARD,GPC,18-Sep-19,2019,6,,K3551,REFUSE COLLECTION,D1428,NEW / REPLACE EQUIP. & TOOLS;
GUILDFORD BOROUGH COUNCIL,REFUSE AND RECYCLING,PAYPAL FASTKEYSERV,N/A,16-Sep-19,1035252,8.53,0,NEW / REPLACE EQUIP. & TOOLS;,THIRD PARTY SUPPLIER,POINT OF SALE,CARD,GPC,16-Sep-19,2019,6,,K3551,REFUSE COLLECTION,D1428,NEW / REPLACE EQUIP. & TOOLS;
GUILDFORD BOROUGH COUNCIL,REFUSE AND RECYCLING,PAYPAL FASTKEYSERV,N/A,10-Sep-19,1035252,14.2,0,NEW / REPLACE EQUIP. & TOOLS;,THIRD PARTY SUPPLIER,POINT OF SALE,CARD,GPC,10-Sep-19,2019,6,,K3551,REFUSE COLLECTION,D1428,NEW / REPLACE EQUIP. & TOOLS;
GUILDFORD BOROUGH COUNCIL,REFUSE AND RECYCLING,SPRAYSTER - SPRAY TIME,N/A,12-Sep-19,1035252,47.4,0,NEW / REPLACE EQUIP. & TOOLS;,THIRD PARTY SUPPLIER,POINT OF SALE,CARD,GPC,12-Sep-19,2019,6,,K3551,REFUSE COLLECTION,D1428,NEW / REPLACE EQUIP. & TOOLS;
GUILDFORD BOROUGH COUNCIL,REFUSE AND RECYCLING,WWW.SAFETYGLOVES.CO.UK,N/A,12-Sep-19,1035252,477.08,0,NEW / REPLACE EQUIP. & TOOLS;,THIRD PARTY SUPPLIER,POINT OF SALE,CARD,GPC,12-Sep-19,2019,6,190488341,K3551,REFUSE COLLECTION,D1428,NEW / REPLACE EQUIP. & TOOLS;
GUILDFORD BOROUGH COUNCIL,VEHICLE MAINTENANCE,HALFORDS 0763,N/A,03-Sep-19,1035252,47.5,0,NEW / REPLACE EQUIP. & TOOLS;,THIRD PARTY SUPPLIER,POINT OF SALE,CARD,GPC,03-Sep-19,2019,6,,K5551,VEHICLE MAINTENANCE,D1428,NEW / REPLACE EQUIP. & TOOLS;
GUILDFORD BOROUGH COUNCIL,VEHICLE MAINTENANCE,ORION AIR CONDITIONING,N/A,10-Sep-19,1035252,984.98,0,NEW / REPLACE EQUIP. & TOOLS;,THIRD PARTY SUPPLIER,POINT OF SALE,CARD,GPC,10-Sep-19,2019,6,,K5551,VEHICLE MAINTENANCE,D1428,NEW / REPLACE EQUIP. & TOOLS;
GUILDFORD BOROUGH COUNCIL,VEHICLE MAINTENANCE,RAPID RACKING,N/A,30-Aug-19,1035252,700.2,0,NEW / REPLACE EQUIP. & TOOLS;,THIRD PARTY SUPPLIER,POINT OF SALE,CARD,GPC,30-Aug-19,2019,6,,K5551,VEHICLE MAINTENANCE,D1428,NEW / REPLACE EQUIP. & TOOLS;
GUILDFORD BOROUGH COUNCIL,VEHICLE MAINTENANCE,WICKES GUILDFORD,N/A,16-Sep-19,1035252,35.35,0,NEW / REPLACE EQUIP. & TOOLS;,THIRD PARTY SUPPLIER,POINT OF SALE,CARD,GPC,16-Sep-19,2019,6,,K5551,VEHICLE MAINTENANCE,D1428,NEW / REPLACE EQUIP. & TOOLS;
GUILDFORD BOROUGH COUNCIL,INCOME COLLECTION,OFFICE DEPOT UK LTD,N/A,23-Sep-19,1035252,26.15,0,STATIONERY & OFFICE SUPPLIES,THIRD PARTY SUPPLIER,POINT OF SALE,CARD,GPC,23-Sep-19,2019,6,2232019092,M1121,INCOME COLLECTION (BHS),D3472,STATIONERY & OFFICE SUPPLIES
GUILDFORD BOROUGH COUNCIL,TENANT SELECTION,ELMBRIDGE BC CAR PARK,N/A,28-Aug-19,1035252,7,0,MISCELLANEOUS EXPENSES,THIRD PARTY SUPPLIER,POINT OF SALE,CARD,GPC,28-Aug-19,2019,6,,M1131,"ADVICE,REGS,TENANT SELECT(SHS)",D9483,MISCELLANEOUS EXPENSES
GUILDFORD BOROUGH COUNCIL,TENANT SELECTION,OFFICE DEPOT UK LTD,N/A,10-Sep-19,1035252,123.54,0,STATIONERY & OFFICE SUPPLIES,THIRD PARTY SUPPLIER,POINT OF SALE,CARD,GPC,10-Sep-19,2019,6,2162019090,M1131,"ADVICE,REGS,TENANT SELECT(SHS)",D3472,STATIONERY & OFFICE SUPPLIES
GUILDFORD BOROUGH COUNCIL,TENANTS' SERVICES,OFFICE DEPOT UK LTD,N/A,23-Sep-19,1035252,26.14,0,STATIONERY & OFFICE SUPPLIES,THIRD PARTY SUPPLIER,POINT OF SALE,CARD,GPC,23-Sep-19,2019,6,2232019092,M1151,TENANTS SERVICES (BHS),D3472,STATIONERY & OFFICE SUPPLIES
GUILDFORD BOROUGH COUNCIL,SHELTERED HOUSING,2CO.COMONETRAINI,N/A,23-Sep-19,1035252,12,0,MISCELLANEOUS EXPENSES,THIRD PARTY SUPPLIER,POINT OF SALE,CARD,GPC,23-Sep-19,2019,6,,M1515,SHELTERED ACCOMODATION,D9483,MISCELLANEOUS EXPENSES
GUILDFORD BOROUGH COUNCIL,SHELTERED HOUSING,WWW.W-P.CO.UK,N/A,06-Sep-19,1035252,48.36,0,CLEANING MATERIALS,THIRD PARTY SUPPLIER,POINT OF SALE,CARD,GPC,06-Sep-19,2019,6,SIN242256V,M1515,SHELTERED ACCOMODATION,B6231,CLEANING MATERIALS
GUILDFORD BOROUGH COUNCIL,SHELTERED HOUSING,WWW.W-P.CO.UK,N/A,06-Sep-19,1035252,66.23,0,CLEANING MATERIALS,THIRD PARTY SUPPLIER,POINT OF SALE,CARD,GPC,06-Sep-19,2019,6,SIN242254V,M1515,SHELTERED ACCOMODATION,B6231,CLEANING MATERIALS
GUILDFORD BOROUGH COUNCIL,SHELTERED HOUSING,WWW.W-P.CO.UK,N/A,06-Sep-19,1035252,48.36,0,CLEANING MATERIALS,THIRD PARTY SUPPLIER,POINT OF SALE,CARD,GPC,06-Sep-19,2019,6,SIN242257V,M1515,SHELTERED ACCOMODATION,B6231,CLEANING MATERIALS
GUILDFORD BOROUGH COUNCIL,OTHER ST CREDITORS,WWW.GUILDFORD-SHAKESPEAR,N/A,26-Sep-19,1035252,55.5,0,CURRENT YEARS EXPENDITURE,THIRD PARTY SUPPLIER,POINT OF SALE,CARD,GPC,26-Sep-19,2019,6,,L02133,MAYORS ALLOWANCE,2239,CURRENT YEARS EXPENDITURE
GUILDFORD BOROUGH COUNCIL,OFF STREET PARKING,WWW.W-P.CO.UK,N/A,16-Sep-19,1035252,15.84,0,CLEANING MATERIALS,THIRD PARTY SUPPLIER,POINT OF SALE,CARD,GPC,16-Sep-19,2019,6,SIN243550V,B2115,PARKING OFFICE ACCOMM COSTS,B6231,CLEANING MATERIALS
GUILDFORD BOROUGH COUNCIL,LEISURE PLAY DEVELOPMENT,AMZNMKTPLACE,N/A,29-Aug-19,1035252,25.85,0,NEW / REPLACE EQUIP. & TOOLS;,THIRD PARTY SUPPLIER,POINT OF SALE,CARD,GPC,29-Aug-19,2019,6,204-796867,A4126,FISH,D1428,NEW / REPLACE EQUIP. & TOOLS;
GUILDFORD BOROUGH COUNCIL,LEISURE PLAY DEVELOPMENT,AMZNMKTPLACE AMAZON.CO.UK,N/A,30-Aug-19,1035252,66.66,0,NEW / REPLACE EQUIP. & TOOLS;,THIRD PARTY SUPPLIER,POINT OF SALE,CARD,GPC,30-Aug-19,2019,6,204-825256,A4126,FISH,D1428,NEW / REPLACE EQUIP. & TOOLS;
GUILDFORD BOROUGH COUNCIL,OTHER ST CREDITORS,PC CARD CONTRA,N/A,28-Sep-19,1035252,-38471.6,0,T/FR TO REVENUE,THIRD PARTY SUPPLIER,POINT OF SALE,CARD,GPC,28-Sep-19,2019,6,,L02006,GOVT PROCUREMENT CARDS,2940,T/FR TO REVENUE
GUILDFORD BOROUGH COUNCIL,PRIVATE SECTOR HOUSING,GUILDFORD1125,N/A,02-Sep-19,1035252,14.75,0,MATERIALS,THIRD PARTY SUPPLIER,POINT OF SALE,CARD,GPC,02-Sep-19,2019,6,,C5136,HANDYPERSON SERVICE,D1545,MATERIALS
GUILDFORD BOROUGH COUNCIL,PRIVATE SECTOR HOUSING,WOLSELEY UK,N/A,03-Sep-19,1035252,36.07,0,MATERIALS,THIRD PARTY SUPPLIER,POINT OF SALE,CARD,GPC,03-Sep-19,2019,6,,C5136,HANDYPERSON SERVICE,D1545,MATERIALS
GUILDFORD BOROUGH COUNCIL,PRIVATE SECTOR HOUSING,JEWSON LTD,N/A,29-Aug-19,1035252,135.48,0,MATERIALS,THIRD PARTY SUPPLIER,POINT OF SALE,CARD,GPC,29-Aug-19,2019,6,2964264,C5136,HANDYPERSON SERVICE,D1545,MATERIALS
GUILDFORD BOROUGH COUNCIL,PRIVATE SECTOR HOUSING,TP GUILDFORD,N/A,28-Aug-19,1035252,103.57,0,MATERIALS,THIRD PARTY SUPPLIER,POINT OF SALE,CARD,GPC,28-Aug-19,2019,6,None,C5136,HANDYPERSON SERVICE,D1545,MATERIALS
GUILDFORD BOROUGH COUNCIL,PRIVATE SECTOR HOUSING,GUILDFORD1125,N/A,13-Sep-19,1035252,39.31,0,MATERIALS,THIRD PARTY SUPPLIER,POINT OF SALE,CARD,GPC,13-Sep-19,2019,6,,C5136,HANDYPERSON SERVICE,D1545,MATERIALS
GUILDFORD BOROUGH COUNCIL,PRIVATE SECTOR HOUSING,JEWSON LTD,N/A,25-Sep-19,1035252,71.84,0,MATERIALS,THIRD PARTY SUPPLIER,POINT OF SALE,CARD,GPC,25-Sep-19,2019,6,3277145,C5136,HANDYPERSON SERVICE,D1545,MATERIALS
GUILDFORD BOROUGH COUNCIL,PRIVATE SECTOR HOUSING,JEWSON LTD,N/A,06-Sep-19,1035252,28.22,0,MATERIALS,THIRD PARTY SUPPLIER,POINT OF SALE,CARD,GPC,06-Sep-19,2019,6,3061033,C5136,HANDYPERSON SERVICE,D1545,MATERIALS
GUILDFORD BOROUGH COUNCIL,PRIVATE SECTOR HOUSING,TP GUILDFORD,N/A,10-Sep-19,1035252,28.99,0,MATERIALS,THIRD PARTY SUPPLIER,POINT OF SALE,CARD,GPC,10-Sep-19,2019,6,None,C5136,HANDYPERSON SERVICE,D1545,MATERIALS
GUILDFORD BOROUGH COUNCIL,PRIVATE SECTOR HOUSING,TOOLSTATION LTD,N/A,25-Sep-19,1035252,18.22,0,MATERIALS,THIRD PARTY SUPPLIER,POINT OF SALE,CARD,GPC,25-Sep-19,2019,6,,C5136,HANDYPERSON SERVICE,D1545,MATERIALS
GUILDFORD BOROUGH COUNCIL,PRIVATE SECTOR HOUSING,CITY ELECTRICAL FA,N/A,23-Sep-19,1035252,2.88,0,MATERIALS,THIRD PARTY SUPPLIER,POINT OF SALE,CARD,GPC,23-Sep-19,2019,6,.,C5136,HANDYPERSON SERVICE,D1545,MATERIALS
GUILDFORD BOROUGH COUNCIL,PRIVATE SECTOR HOUSING,TP GUILDFORD,N/A,20-Sep-19,1035252,157.37,0,MATERIALS,THIRD PARTY SUPPLIER,POINT OF SALE,CARD,GPC,20-Sep-19,2019,6,None,C5136,HANDYPERSON SERVICE,D1545,MATERIALS
GUILDFORD BOROUGH COUNCIL,PRIVATE SECTOR HOUSING,TP GUILDFORD,N/A,16-Sep-19,1035252,89.62,0,MATERIALS,THIRD PARTY SUPPLIER,POINT OF SALE,CARD,GPC,16-Sep-19,2019,6,None,C5136,HANDYPERSON SERVICE,D1545,MATERIALS
GUILDFORD BOROUGH COUNCIL,PRIVATE SECTOR HOUSING,JEWSON LTD,N/A,12-Sep-19,1035252,38.4,0,MATERIALS,THIRD PARTY SUPPLIER,POINT OF SALE,CARD,GPC,12-Sep-19,2019,6,3128324,C5136,HANDYPERSON SERVICE,D1545,MATERIALS
GUILDFORD BOROUGH COUNCIL,OFFICE SERVICES TEAM,WWW.W-P.CO.UK,N/A,02-Sep-19,1035252,51.19,0,CLEANING MATERIALS,THIRD PARTY SUPPLIER,POINT OF SALE,CARD,GPC,02-Sep-19,2019,6,SIN241382V,G7510,OFFICE CLEANING,B6231,CLEANING MATERIALS
GUILDFORD BOROUGH COUNCIL,OFFICE SERVICES TEAM,WWW.W-P.CO.UK,N/A,03-Sep-19,1035252,522.13,0,CLEANING MATERIALS,THIRD PARTY SUPPLIER,POINT OF SALE,CARD,GPC,03-Sep-19,2019,6,SIN241573V,G7510,OFFICE CLEANING,B6231,CLEANING MATERIALS
GUILDFORD BOROUGH COUNCIL,OFFICE SERVICES TEAM,WWW.W-P.CO.UK,N/A,20-Sep-19,1035252,17.66,0,CLEANING MATERIALS,THIRD PARTY SUPPLIER,POINT OF SALE,CARD,GPC,20-Sep-19,2019,6,SIN244368V,G7510,OFFICE CLEANING,B6231,CLEANING MATERIALS
GUILDFORD BOROUGH COUNCIL,OFFICE SERVICES TEAM,WWW.W-P.CO.UK,N/A,05-Sep-19,1035252,83.75,0,CLEANING MATERIALS,THIRD PARTY SUPPLIER,POINT OF SALE,CARD,GPC,05-Sep-19,2019,6,SIN241879V,G7510,OFFICE CLEANING,B6231,CLEANING MATERIALS
GUILDFORD BOROUGH COUNCIL,OFFICE SERVICES TEAM,WWW.W-P.CO.UK,N/A,16-Sep-19,1035252,638.02,0,CLEANING MATERIALS,THIRD PARTY SUPPLIER,POINT OF SALE,CARD,GPC,16-Sep-19,2019,6,SIN243585V,G7510,OFFICE CLEANING,B6231,CLEANING MATERIALS
GUILDFORD BOROUGH COUNCIL,MUSEUM,OFFICE DEPOT UK LTD,N/A,09-Sep-19,1035252,25.94,0,STATIONERY & OFFICE SUPPLIES,THIRD PARTY SUPPLIER,POINT OF SALE,CARD,GPC,09-Sep-19,2019,6,2362019060,A5571,CASTLE KEEP,D3472,STATIONERY & OFFICE SUPPLIES
GUILDFORD BOROUGH COUNCIL,MUSEUM,OFFICE DEPOT UK LTD,N/A,05-Sep-19,1035252,17.8,0,STATIONERY & OFFICE SUPPLIES,THIRD PARTY SUPPLIER,POINT OF SALE,CARD,GPC,05-Sep-19,2019,6,2362019080,A5571,CASTLE KEEP,D3472,STATIONERY & OFFICE SUPPLIES
GUILDFORD BOROUGH COUNCIL,MUSEUM,OFFICE DEPOT UK LTD,N/A,12-Sep-19,1035252,-17.8,0,STATIONERY & OFFICE SUPPLIES,THIRD PARTY SUPPLIER,POINT OF SALE,CARD,GPC,12-Sep-19,2019,6,2362019080,A5571,CASTLE KEEP,D3472,STATIONERY & OFFICE SUPPLIES
GUILDFORD BOROUGH COUNCIL,MUSEUM,OFFICE DEPOT UK LTD,N/A,30-Aug-19,1035252,-30.13,0,STATIONERY & OFFICE SUPPLIES,THIRD PARTY SUPPLIER,POINT OF SALE,CARD,GPC,30-Aug-19,2019,6,2362019080,A5571,CASTLE KEEP,D3472,STATIONERY & OFFICE SUPPLIES
GUILDFORD BOROUGH COUNCIL,STREET CLEANSING,PAYPAL SAFE SHOP,N/A,02-Sep-19,1035252,91.75,0,NEW / REPLACE EQUIP. & TOOLS;,THIRD PARTY SUPPLIER,POINT OF SALE,CARD,GPC,02-Sep-19,2019,6,,B8512,ENVIRONMENTAL AND DOG CONTROL,D1428,NEW / REPLACE EQUIP. & TOOLS;
GUILDFORD BOROUGH COUNCIL,DAY SERVICES,AMZNMKTPLACE,N/A,18-Sep-19,1035252,24.46,0,DC ACTIVITIES COST,THIRD PARTY SUPPLIER,POINT OF SALE,CARD,GPC,18-Sep-19,2019,6,204-985330,C8189,CENTRAL HUB PARK BARN,D4509,DC ACTIVITIES COST
GUILDFORD BOROUGH COUNCIL,DAY SERVICES,OFFICE DEPOT UK LTD,N/A,13-Sep-19,1035252,95.78,0,STATIONERY & OFFICE SUPPLIES,THIRD PARTY SUPPLIER,POINT OF SALE,CARD,GPC,13-Sep-19,2019,6,3602019091,C8189,CENTRAL HUB PARK BARN,D3472,STATIONERY & OFFICE SUPPLIES
GUILDFORD BOROUGH COUNCIL,DAY SERVICES,WWW.W-P.CO.UK,N/A,06-Sep-19,1035252,263.93,0,CLEANING MATERIALS,THIRD PARTY SUPPLIER,POINT OF SALE,CARD,GPC,06-Sep-19,2019,6,SIN242225V,C8189,CENTRAL HUB PARK BARN,B6231,CLEANING MATERIALS
GUILDFORD BOROUGH COUNCIL,DAY SERVICES,WWW.W-P.CO.UK,N/A,12-Sep-19,1035252,35.66,0,CLEANING MATERIALS,THIRD PARTY SUPPLIER,POINT OF SALE,CARD,GPC,12-Sep-19,2019,6,SIN243005V,C8189,CENTRAL HUB PARK BARN,B6231,CLEANING MATERIALS
GUILDFORD BOROUGH COUNCIL,DEVELOPMENT CONTROL,OFFICE DEPOT UK LTD,N/A,30-Aug-19,1035252,40,0,STATIONERY & OFFICE SUPPLIES,THIRD PARTY SUPPLIER,POINT OF SALE,CARD,GPC,30-Aug-19,2019,6,8882019082,D5100,DEVELOPMENT CONTROL - FEE EARN,D3472,STATIONERY & OFFICE SUPPLIES
GUILDFORD BOROUGH COUNCIL,DEVELOPMENT CONTROL,AMZNMKTPLACE,N/A,22-Sep-19,1035252,20.48,0,STATIONERY & OFFICE SUPPLIES,THIRD PARTY SUPPLIER,POINT OF SALE,CARD,GPC,22-Sep-19,2019,6,204-884469,D5100,DEVELOPMENT CONTROL - FEE EARN,D3472,STATIONERY & OFFICE SUPPLIES
GUILDFORD BOROUGH COUNCIL,POLICY,OFFICE DEPOT UK LTD,N/A,30-Aug-19,1035252,29.76,0,STATIONERY & OFFICE SUPPLIES,THIRD PARTY SUPPLIER,POINT OF SALE,CARD,GPC,30-Aug-19,2019,6,8882019082,D5300,POLICY,D3472,STATIONERY & OFFICE SUPPLIES
GUILDFORD BOROUGH COUNCIL,PROPERTY,CONS EXC SURREY,N/A,02-Sep-19,1035252,10,0,LEGAL EXPENSES,THIRD PARTY SUPPLIER,POINT OF SALE,CARD,GPC,02-Sep-19,2019,6,,P74040,SARP - GBC OWN COSTS & SHARE,1395,LEGAL EXPENSES
GUILDFORD BOROUGH COUNCIL,SLYFIELD AREA REGENERATION,WWW.BIPSOLUTIONS.COM,N/A,12-Sep-19,1035252,195,0,TRAINING,THIRD PARTY SUPPLIER,POINT OF SALE,CARD,GPC,12-Sep-19,2019,6,,D7102,SLYFIELD AREA REGEN PRO (SARP),A7161,TRAINING
GUILDFORD BOROUGH COUNCIL,PUBLIC HEALTH,LOVECRAFTS,N/A,28-Aug-19,1035252,28.64,0,CONSULTANTS (PROJECTS),THIRD PARTY SUPPLIER,POINT OF SALE,CARD,GPC,28-Aug-19,2019,6,,C1210,PUBLIC HEALTH,D4511,CONSULTANTS (PROJECTS)
GUILDFORD BOROUGH COUNCIL,PUBLIC HEALTH,LOVECRAFTS,N/A,16-Sep-19,1035252,11.9,0,CONSULTANTS (PROJECTS),THIRD PARTY SUPPLIER,POINT OF SALE,CARD,GPC,16-Sep-19,2019,6,,C1210,PUBLIC HEALTH,D4511,CONSULTANTS (PROJECTS)
GUILDFORD BOROUGH COUNCIL,PUBLIC HEALTH,WWW.SIMPLYRIBBONS.COM,N/A,28-Aug-19,1035252,62.7,0,CONSULTANTS (PROJECTS),THIRD PARTY SUPPLIER,POINT OF SALE,CARD,GPC,28-Aug-19,2019,6,180747653,C1210,PUBLIC HEALTH,D4511,CONSULTANTS (PROJECTS)
GUILDFORD BOROUGH COUNCIL,FLEET MANAGEMENT,DVLA VEHICLE TAX,N/A,29-Aug-19,1035252,262.5,0,LICENCES - VEHICLES,THIRD PARTY SUPPLIER,POINT OF SALE,CARD,GPC,29-Aug-19,2019,6,,VV174,RF12 SVT FORD TRANSIT CONNECT,C1326,LICENCES - VEHICLES
GUILDFORD BOROUGH COUNCIL,FLEET MANAGEMENT,DVLA VEHICLE TAX,N/A,29-Aug-19,1035252,722.5,0,LICENCES - VEHICLES,THIRD PARTY SUPPLIER,POINT OF SALE,CARD,GPC,29-Aug-19,2019,6,,VRR01,DENNIS EAGLE 18T VN13 EUE,C1326,LICENCES - VEHICLES
GUILDFORD BOROUGH COUNCIL,FLEET MANAGEMENT,DVLA VEHICLE TAX,N/A,29-Aug-19,1035252,722.5,0,LICENCES - VEHICLES,THIRD PARTY SUPPLIER,POINT OF SALE,CARD,GPC,29-Aug-19,2019,6,,VRR02,DENNIS EAGLE 18T VN13 EUD,C1326,LICENCES - VEHICLES
GUILDFORD BOROUGH COUNCIL,FLEET MANAGEMENT,DVLA VEHICLE TAX,N/A,29-Aug-19,1035252,722.5,0,LICENCES - VEHICLES,THIRD PARTY SUPPLIER,POINT OF SALE,CARD,GPC,29-Aug-19,2019,6,,VRR03,DENNIS EAGLE 18T VN13 EUF,C1326,LICENCES - VEHICLES
GUILDFORD BOROUGH COUNCIL,FLEET MANAGEMENT,DVLA VEHICLE TAX,N/A,29-Aug-19,1035252,722.5,0,LICENCES - VEHICLES,THIRD PARTY SUPPLIER,POINT OF SALE,CARD,GPC,29-Aug-19,2019,6,,VRR04,DENNIS EAGLE 18T VN13 EUH,C1326,LICENCES - VEHICLES
GUILDFORD BOROUGH COUNCIL,FLEET MANAGEMENT,DVLA VEHICLE TAX,N/A,29-Aug-19,1035252,722.5,0,LICENCES - VEHICLES,THIRD PARTY SUPPLIER,POINT OF SALE,CARD,GPC,29-Aug-19,2019,6,,VRR06,DENNIS EAGLE 18T GX63 GHB,C1326,LICENCES - VEHICLES
GUILDFORD BOROUGH COUNCIL,FLEET MANAGEMENT,DVLA VEHICLE TAX,N/A,29-Aug-19,1035252,722.5,0,LICENCES - VEHICLES,THIRD PARTY SUPPLIER,POINT OF SALE,CARD,GPC,29-Aug-19,2019,6,,VRR07,DENNIS EAGLE 18T GX63 GHD,C1326,LICENCES - VEHICLES
GUILDFORD BOROUGH COUNCIL,FLEET MANAGEMENT,DVLA VEHICLE TAX,N/A,29-Aug-19,1035252,722.5,0,LICENCES - VEHICLES,THIRD PARTY SUPPLIER,POINT OF SALE,CARD,GPC,29-Aug-19,2019,6,,VRR08,DENNIS EAGLE 18T GX63 GHF,C1326,LICENCES - VEHICLES
GUILDFORD BOROUGH COUNCIL,FLEET MANAGEMENT,DVLA VEHICLE TAX,N/A,29-Aug-19,1035252,722.5,0,LICENCES - VEHICLES,THIRD PARTY SUPPLIER,POINT OF SALE,CARD,GPC,29-Aug-19,2019,6,,VRR09,DENNIS EAGLE 18T GX63 GHG,C1326,LICENCES - VEHICLES
GUILDFORD BOROUGH COUNCIL,FLEET MANAGEMENT,DVLA VEHICLE TAX,N/A,29-Aug-19,1035252,722.5,0,LICENCES - VEHICLES,THIRD PARTY SUPPLIER,POINT OF SALE,CARD,GPC,29-Aug-19,2019,6,,VRR10,DENNIS EAGLE 18T GX63 GHH,C1326,LICENCES - VEHICLES
GUILDFORD BOROUGH COUNCIL,FLEET MANAGEMENT,DVLA VEHICLE TAX,N/A,29-Aug-19,1035252,722.5,0,LICENCES - VEHICLES,THIRD PARTY SUPPLIER,POINT OF SALE,CARD,GPC,29-Aug-19,2019,6,,VRR11,DENNIS EAGLE 18T GX63 GHJ,C1326,LICENCES - VEHICLES
GUILDFORD BOROUGH COUNCIL,FLEET MANAGEMENT,DVLA VEHICLE TAX,N/A,29-Aug-19,1035252,722.5,0,LICENCES - VEHICLES,THIRD PARTY SUPPLIER,POINT OF SALE,CARD,GPC,29-Aug-19,2019,6,,VRR12,DENNIS EAGLE 18T GX63 GHK,C1326,LICENCES - VEHICLES
GUILDFORD BOROUGH COUNCIL,FLEET MANAGEMENT,DVLA VEHICLE TAX,N/A,29-Aug-19,1035252,722.5,0,LICENCES - VEHICLES,THIRD PARTY SUPPLIER,POINT OF SALE,CARD,GPC,29-Aug-19,2019,6,,VRR13,DENNIS EAGLE 18T GX63 GHN,C1326,LICENCES - VEHICLES
GUILDFORD BOROUGH COUNCIL,FLEET MANAGEMENT,DVLA VEHICLE TAX,N/A,29-Aug-19,1035252,167.5,0,LICENCES - VEHICLES,THIRD PARTY SUPPLIER,POINT OF SALE,CARD,GPC,29-Aug-19,2019,6,,VRR14,DENNIS EAGLE 18T GX63 GHO,C1326,LICENCES - VEHICLES
GUILDFORD BOROUGH COUNCIL,FLEET MANAGEMENT,DVLA VEHICLE TAX,N/A,02-Sep-19,1035252,722.5,0,LICENCES - VEHICLES,THIRD PARTY SUPPLIER,POINT OF SALE,CARD,GPC,02-Sep-19,2019,6,,VRR15,DENNIS EAGLE 18T GX63 GHU,C1326,LICENCES - VEHICLES
GUILDFORD BOROUGH COUNCIL,FLEET MANAGEMENT,DVLA VEHICLE TAX,N/A,02-Sep-19,1035252,722.5,0,LICENCES - VEHICLES,THIRD PARTY SUPPLIER,POINT OF SALE,CARD,GPC,02-Sep-19,2019,6,,VRR16,DENNIS EAGLE 18T GX63 GHV,C1326,LICENCES - VEHICLES
GUILDFORD BOROUGH COUNCIL,FLEET MANAGEMENT,DVLA VEHICLE TAX,N/A,02-Sep-19,1035252,722.5,0,LICENCES - VEHICLES,THIRD PARTY SUPPLIER,POINT OF SALE,CARD,GPC,02-Sep-19,2019,6,,VRR17,DENNIS EAGLE 18T GX63 GHY,C1326,LICENCES - VEHICLES
GUILDFORD BOROUGH COUNCIL,FLEET MANAGEMENT,DVLA VEHICLE TAX,N/A,02-Sep-19,1035252,722.5,0,LICENCES - VEHICLES,THIRD PARTY SUPPLIER,POINT OF SALE,CARD,GPC,02-Sep-19,2019,6,,VRR18,DENNIS EAGLE 18T GX63 GHZ,C1326,LICENCES - VEHICLES
GUILDFORD BOROUGH COUNCIL,FLEET MANAGEMENT,DVLA VEHICLE TAX,N/A,29-Aug-19,1035252,722.5,0,LICENCES - VEHICLES,THIRD PARTY SUPPLIER,POINT OF SALE,CARD,GPC,29-Aug-19,2019,6,,VRR19,FUSO CANTOR CN13 NUF,C1326,LICENCES - VEHICLES
GUILDFORD BOROUGH COUNCIL,SURREY FAMILY SUPPORT PROG,WH SMITH,N/A,18-Sep-19,1035252,32.39,0,STATIONERY & OFFICE SUPPLIES,THIRD PARTY SUPPLIER,POINT OF SALE,CARD,GPC,18-Sep-19,2019,6,,C3320,SURREY FAMILY SUPPORT PROG,D3472,STATIONERY & OFFICE SUPPLIES
GUILDFORD BOROUGH COUNCIL,SURREY FAMILY SUPPORT PROG,EB PERSONALITY DISORD,N/A,28-Aug-19,1035252,65,0,TRAINING,THIRD PARTY SUPPLIER,POINT OF SALE,CARD,GPC,28-Aug-19,2019,6,,C3320,SURREY FAMILY SUPPORT PROG,A7161,TRAINING
GUILDFORD BOROUGH COUNCIL,LA ST CREDITORS,AWS EMEA,N/A,03-Sep-19,1035252,205.58,0,PAYMENTS,THIRD PARTY SUPPLIER,POINT OF SALE,CARD,GPC,03-Sep-19,2019,6,257388875,L12105,SURREY GIS FORUM,2489,PAYMENTS
GUILDFORD BOROUGH COUNCIL,OTHER ST CREDITORS,WWW.ARGOS.CO.UK,N/A,30-Aug-19,1035252,254.99,0,PAYMENTS,THIRD PARTY SUPPLIER,POINT OF SALE,CARD,GPC,30-Aug-19,2019,6,,L02019,CHARITY GRANTS-HSG ADVICE,2489,PAYMENTS
GUILDFORD BOROUGH COUNCIL,FLEET MANAGEMENT,DVLA VEHICLE TAX,N/A,02-Sep-19,1035252,262.5,0,LICENCES - VEHICLES,THIRD PARTY SUPPLIER,POINT OF SALE,CARD,GPC,02-Sep-19,2019,6,,VV816,VAUX MOV 3.5T TIPPER LT66 UXK,C1326,LICENCES - VEHICLES
GUILDFORD BOROUGH COUNCIL,FLEET MANAGEMENT,DVLA VEHICLE TAX,N/A,02-Sep-19,1035252,262.5,0,LICENCES - VEHICLES,THIRD PARTY SUPPLIER,POINT OF SALE,CARD,GPC,02-Sep-19,2019,6,,VV817,VAUX MOV 3.5T TIPPER LT66 TUJ,C1326,LICENCES - VEHICLES
GUILDFORD BOROUGH COUNCIL,FLEET MANAGEMENT,DVLA VEHICLE TAX,N/A,02-Sep-19,1035252,262.5,0,LICENCES - VEHICLES,THIRD PARTY SUPPLIER,POINT OF SALE,CARD,GPC,02-Sep-19,2019,6,,VV818,VAUX MOV 3.5T TIPPER LT66 UEL,C1326,LICENCES - VEHICLES
GUILDFORD BOROUGH COUNCIL,FLEET MANAGEMENT,DVLA VEHICLE TAX,N/A,02-Sep-19,1035252,262.5,0,LICENCES - VEHICLES,THIRD PARTY SUPPLIER,POINT OF SALE,CARD,GPC,02-Sep-19,2019,6,,VV110,VAUXHALL COMBO LT66 TUP,C1326,LICENCES - VEHICLES
GUILDFORD BOROUGH COUNCIL,FLEET MANAGEMENT,BT FLEET WORKSHOP,N/A,18-Sep-19,1035252,157,0,LICENCES - VEHICLES,THIRD PARTY SUPPLIER,POINT OF SALE,CARD,GPC,18-Sep-19,2019,6,,VR067,FORD TRANSIT 4700TN LJ66 LKP,C1326,LICENCES - VEHICLES
GUILDFORD BOROUGH COUNCIL,FLEET MANAGEMENT,DVLA VEHICLE TAX,N/A,02-Sep-19,1035252,262.5,0,LICENCES - VEHICLES,THIRD PARTY SUPPLIER,POINT OF SALE,CARD,GPC,02-Sep-19,2019,6,,VV493,FORD TRANSIT TIPPER LG65 NXV,C1326,LICENCES - VEHICLES
GUILDFORD BOROUGH COUNCIL,FLEET MANAGEMENT,DVLA VEHICLE TAX,N/A,02-Sep-19,1035252,262.5,0,LICENCES - VEHICLES,THIRD PARTY SUPPLIER,POINT OF SALE,CARD,GPC,02-Sep-19,2019,6,,VV492,FORD TRANSIT PANELVAN LG65 GXT,C1326,LICENCES - VEHICLES
GUILDFORD BOROUGH COUNCIL,FLEET MANAGEMENT,DVLA VEHICLE TAX,N/A,02-Sep-19,1035252,262.5,0,LICENCES - VEHICLES,THIRD PARTY SUPPLIER,POINT OF SALE,CARD,GPC,02-Sep-19,2019,6,,VV491,FORD TRANSIT TIPPER LG65 GXR,C1326,LICENCES - VEHICLES
GUILDFORD BOROUGH COUNCIL,FLEET MANAGEMENT,DVLA VEHICLE TAX,N/A,02-Sep-19,1035252,262.5,0,LICENCES - VEHICLES,THIRD PARTY SUPPLIER,POINT OF SALE,CARD,GPC,02-Sep-19,2019,6,,VV490,FORD TRANSIT TIPPER LG65 GWE,C1326,LICENCES - VEHICLES
GUILDFORD BOROUGH COUNCIL,FLEET MANAGEMENT,DVLA VEHICLE TAX,N/A,02-Sep-19,1035252,262.5,0,LICENCES - VEHICLES,THIRD PARTY SUPPLIER,POINT OF SALE,CARD,GPC,02-Sep-19,2019,6,,VV489,FORD TRANSIT TIPPER LG65 GXM,C1326,LICENCES - VEHICLES
GUILDFORD BOROUGH COUNCIL,FLEET MANAGEMENT,DVLA VEHICLE TAX,N/A,02-Sep-19,1035252,262.5,0,LICENCES - VEHICLES,THIRD PARTY SUPPLIER,POINT OF SALE,CARD,GPC,02-Sep-19,2019,6,,VV488,FORD TRANSIT TIPPER LG65 GWZ,C1326,LICENCES - VEHICLES
GUILDFORD BOROUGH COUNCIL,FLEET MANAGEMENT,DVLA VEHICLE TAX,N/A,02-Sep-19,1035252,262.5,0,LICENCES - VEHICLES,THIRD PARTY SUPPLIER,POINT OF SALE,CARD,GPC,02-Sep-19,2019,6,,VV487,FORD TRANSIT TIPPER LG65 GVW,C1326,LICENCES - VEHICLES
GUILDFORD BOROUGH COUNCIL,FLEET MANAGEMENT,DVLA VEHICLE TAX,N/A,02-Sep-19,1035252,262.5,0,LICENCES - VEHICLES,THIRD PARTY SUPPLIER,POINT OF SALE,CARD,GPC,02-Sep-19,2019,6,,VV486,FORD TRANSIT TIPPER LG65 GVC,C1326,LICENCES - VEHICLES
GUILDFORD BOROUGH COUNCIL,FLEET MANAGEMENT,DVLA VEHICLE TAX,N/A,24-Sep-19,1035252,262.5,0,LICENCES - VEHICLES,THIRD PARTY SUPPLIER,POINT OF SALE,CARD,GPC,24-Sep-19,2019,6,,VV486,FORD TRANSIT TIPPER LG65 GVC,C1326,LICENCES - VEHICLES
GUILDFORD BOROUGH COUNCIL,SURREY FAMILY SUPPORT PROG,VOUCHER EXPRESS B2B MO,N/A,04-Sep-19,1035252,840,0,DONATIONS EXPENDITURE,THIRD PARTY SUPPLIER,POINT OF SALE,CARD,GPC,04-Sep-19,2019,6,,C3321,REFUGEE SUPPORT,D1406,DONATIONS EXPENDITURE
GUILDFORD BOROUGH COUNCIL,FLEET MANAGEMENT,DVLA VEHICLE TAX,N/A,02-Sep-19,1035252,262.5,0,LICENCES - VEHICLES,THIRD PARTY SUPPLIER,POINT OF SALE,CARD,GPC,02-Sep-19,2019,6,,VV485,CAGED TIPPER LG65 GXV,C1326,LICENCES - VEHICLES
GUILDFORD BOROUGH COUNCIL,FLEET MANAGEMENT,DVLA VEHICLE TAX,N/A,29-Aug-19,1035252,167.5,0,LICENCES - VEHICLES,THIRD PARTY SUPPLIER,POINT OF SALE,CARD,GPC,29-Aug-19,2019,6,,VR068,NISSAN NT400 CABSTAR,C1326,LICENCES - VEHICLES
GUILDFORD BOROUGH COUNCIL,RENOVATIONS,SURREY CC CARD PAY,N/A,17-Sep-19,1035252,150,0,CONTRACT PYTS-MAIN CONTRACTOR,THIRD PARTY SUPPLIER,POINT OF SALE,CARD,GPC,17-Sep-19,2019,6,,N40272,DISABLED ADAPTS 2019-20,1233,CONTRACT PYTS-MAIN CONTRACTOR
GUILDFORD BOROUGH COUNCIL,OPERATIONS TECHNICAL SERVICES,DNH*GODADDY.COM EUROPE,N/A,07-Sep-19,1035252,14.39,0,COMPUTER SOFTWARE LICENCE COST,THIRD PARTY SUPPLIER,POINT OF SALE,CARD,GPC,07-Sep-19,2019,6,1551614905,G3548,ICT TECHNICAL & INFRASTRUCTURE,D5445,COMPUTER SOFTWARE LICENCE COST
GUILDFORD BOROUGH COUNCIL,OPERATIONS TECHNICAL SERVICES,AMAZON.CO.UKMA2L32JP4 AM,N/A,28-Aug-19,1035252,23.99,0,NEW / REPLACE EQUIP. & TOOLS;,THIRD PARTY SUPPLIER,POINT OF SALE,CARD,GPC,28-Aug-19,2019,6,204-879740,G3548,ICT TECHNICAL & INFRASTRUCTURE,D1428,NEW / REPLACE EQUIP. & TOOLS;
GUILDFORD BOROUGH COUNCIL,OPERATIONS TECHNICAL SERVICES,AMAZON.CO.UKMA1T473O4,N/A,29-Aug-19,1035252,24.96,0,NEW / REPLACE EQUIP. & TOOLS;,THIRD PARTY SUPPLIER,POINT OF SALE,CARD,GPC,29-Aug-19,2019,6,204-277777,G3548,ICT TECHNICAL & INFRASTRUCTURE,D1428,NEW / REPLACE EQUIP. & TOOLS;
GUILDFORD BOROUGH COUNCIL,FUTURE GUILDFORD,DIGICERT INC,N/A,07-Sep-19,1035252,347.38,0,COMPUTER HARDWARE,THIRD PARTY SUPPLIER,POINT OF SALE,CARD,GPC,07-Sep-19,2019,6,AC0O1EE050,G3531,FUTURE GUILDFORD,D5427,COMPUTER HARDWARE
GUILDFORD BOROUGH COUNCIL,FUTURE GUILDFORD,OFFICE DEPOT UK LTD,N/A,05-Sep-19,1035252,29.85,0,OFFICE EQUIP. - PURCHASE,THIRD PARTY SUPPLIER,POINT OF SALE,CARD,GPC,05-Sep-19,2019,6,4142019082,G3531,FUTURE GUILDFORD,D3448,OFFICE EQUIP. - PURCHASE
GUILDFORD BOROUGH COUNCIL,FUTURE GUILDFORD,OFFICE DEPOT UK LTD,N/A,12-Sep-19,1035252,3.78,0,OFFICE EQUIP. - PURCHASE,THIRD PARTY SUPPLIER,POINT OF SALE,CARD,GPC,12-Sep-19,2019,6,4142019082,G3531,FUTURE GUILDFORD,D3448,OFFICE EQUIP. - PURCHASE
GUILDFORD BOROUGH COUNCIL,STOCKS,RIXONWAY KITCHENS LTD,69599,22-Aug-19,2016703,29.99,0,PURCHASES,KITCHEN FITTERS,Invoice,BACS,None,31-Jul-18,2019,5,OP/I085341,I06001,STORES,2591,PURCHASES
GUILDFORD BOROUGH COUNCIL,PAYROLL AND INSURANCE,DATA SOLUTIONS 2016 LTD T/A RESTORE DATASHRED,75332,10-Sep-19,2034776,78,0,STATIONERY & OFFICE SUPPLIES,CONFIDENTIAL WASTE DISPOSAL PROVIDERS,Invoice,BACS,None,30-Nov-18,2019,6,814611,G3595,SALARIES,D3472,STATIONERY & OFFICE SUPPLIES
GUILDFORD BOROUGH COUNCIL,PAYROLL AND INSURANCE,DATA SOLUTIONS 2016 LTD T/A RESTORE DATASHRED,75332,10-Sep-19,2039096,78,0,STATIONERY & OFFICE SUPPLIES,CONFIDENTIAL WASTE DISPOSAL PROVIDERS,Invoice,BACS,None,30-Dec-18,2019,6,836176,G3595,SALARIES,D3472,STATIONERY & OFFICE SUPPLIES
GUILDFORD BOROUGH COUNCIL,COUNCIL TAX,ROYAL MAIL GROUP PLC,15531,02-Jul-19,2041665,973.82,0,POSTAGE DIRECT USAGE,POSTAL AND COURIER SERVICE PROVIDERS,Invoice,BACS,None,16-Jan-19,2019,4,9058083680,F6141,COUNCIL TAX COLLECTN EXPENSES,D5466,POSTAGE DIRECT USAGE
GUILDFORD BOROUGH COUNCIL,OFF STREET PARKING,JC ELECTRICS (GUILDFORD) LTD,74836,11-Jul-19,2045097,291.5,0,ELECTRICAL EXCLUDING HEATING,ELECTRICAL WIRING AND PARTS SUPPLIERS,Invoice,BACS,None,21-Nov-18,2019,4,7179,B2281,TUNSGATE CAR PARK,B1331,ELECTRICAL EXCLUDING HEATING
GUILDFORD BOROUGH COUNCIL,EXECUTIVE - MISCELLANEOUS,SURREY COUNTY COUNCIL,23023,02-Jul-19,2047958,680,0,MISCELLANEOUS EXPENSES,LOCAL GOVERNMENT [UK ONLY],Invoice,BACS,None,25-Feb-19,2019,4,9500190790,P79032,SMC(WEST) PHASE 1,1444,MISCELLANEOUS EXPENSES
GUILDFORD BOROUGH COUNCIL,VEHICLE MAINTENANCE,GEESINK NORBA LTD,2145,06-Aug-19,2049619,550.72,0,SPARES FOR VEHICLES,WASTE DISPOSAL EQUIPMENT SUPPLIERS,Invoice,BACS,None,06-Mar-19,2019,5,90019035,K5551,VEHICLE MAINTENANCE,D1589,SPARES FOR VEHICLES
GUILDFORD BOROUGH COUNCIL,VEHICLE MAINTENANCE,FRM TRUCK & TRAILER SPARES LTD,2081,11-Jul-19,2052071,140.7,0,SPECIALIST VEHICLE REPAIRS,CAR AND VAN PARTS SUPPLIERS,Invoice,BACS,None,20-Mar-19,2019,4,341580,K5551,VEHICLE MAINTENANCE,D1596,SPECIALIST VEHICLE REPAIRS
GUILDFORD BOROUGH COUNCIL,STRUCTURAL REPAIRS,MELLISS LLP,82953,16-Jul-19,2052920,75,0,CONSULTANTS FEES - PROJECTS,OTHER CONSTRUCTION CONSULTANTS,Invoice,BACS,None,26-Mar-19,2019,4,008102,N48055,STRUCTURAL REPAIRS 2019-20,1221,CONSULTANTS FEES - PROJECTS
GUILDFORD BOROUGH COUNCIL,STRUCTURAL REPAIRS,MELLISS LLP,82953,16-Jul-19,2052921,100,0,CONSULTANTS FEES - PROJECTS,OTHER CONSTRUCTION CONSULTANTS,Invoice,BACS,None,26-Mar-19,2019,4,008101,N48055,STRUCTURAL REPAIRS 2019-20,1221,CONSULTANTS FEES - PROJECTS
GUILDFORD BOROUGH COUNCIL,STRUCTURAL REPAIRS,MELLISS LLP,82953,16-Jul-19,2052922,384.5,0,CONSULTANTS FEES - PROJECTS,OTHER CONSTRUCTION CONSULTANTS,Invoice,BACS,None,26-Mar-19,2019,4,008103,N48055,STRUCTURAL REPAIRS 2019-20,1221,CONSULTANTS FEES - PROJECTS
GUILDFORD BOROUGH COUNCIL,STRUCTURAL REPAIRS,MELLISS LLP,82953,16-Jul-19,2052923,100,0,CONSULTANTS FEES - PROJECTS,OTHER CONSTRUCTION CONSULTANTS,Invoice,BACS,None,26-Mar-19,2019,4,008104,N48055,STRUCTURAL REPAIRS 2019-20,1221,CONSULTANTS FEES - PROJECTS
GUILDFORD BOROUGH COUNCIL,STRUCTURAL REPAIRS,MELLISS LLP,82953,16-Jul-19,2052924,100,0,CONSULTANTS FEES - PROJECTS,OTHER CONSTRUCTION CONSULTANTS,Invoice,BACS,None,26-Mar-19,2019,4,008105,N48055,STRUCTURAL REPAIRS 2019-20,1221,CONSULTANTS FEES - PROJECTS
GUILDFORD BOROUGH COUNCIL,STOCKS,HSS HIRE SERVICE GROUP LIMITED,11131,15-Aug-19,2053172,61.05,0,PURCHASES,PLANT AND CONSTRUCTION EQUIPMENT SUPPLIERS,Invoice,BACS,None,27-Mar-19,2019,5,17032907,I06001,STORES,2591,PURCHASES
GUILDFORD BOROUGH COUNCIL,MOT BAY,SNAP ON DIAGNOSTICS LTD,7550,20-Aug-19,2053174,46.7,0,NEW / REPLACE EQUIP. & TOOLS;,OTHER RETAILERS,Invoice,BACS,None,26-Mar-19,2019,5,ARV/11622696,V8598,MOT STATION,D1428,NEW / REPLACE EQUIP. & TOOLS;
GUILDFORD BOROUGH COUNCIL,PAYMENTS AND PURCHASING,ST JOHN AMBULANCE,55336,03-Oct-19,2053268,140,0,STATIONERY & OFFICE SUPPLIES,HEALTH AND SAFETY TRAINING PROVIDERS,Invoice,BACS,None,20-Mar-19,2019,6,SP19004001,G3598,PURCHASING,D3472,STATIONERY & OFFICE SUPPLIES
GUILDFORD BOROUGH COUNCIL,BUILDING CONTROL SUMMARY,DISTRICT SURVEYORS ASSOCIATION LTD,13395,18-Jul-19,2053646,2245.9,0,GENERAL SUBSCRIPTIONS,TRADE ASSOCIATIONS AND REGULATORY BODIES,Invoice,BACS,None,05-Mar-19,2019,4,12295,D5700,BUILDING CONTROL - FEE,D7497,GENERAL SUBSCRIPTIONS
GUILDFORD BOROUGH COUNCIL,CREMATORIUM,THOMSON ECOLOGY LTD,49614,20-Aug-19,2054021,378,0,CONSULTANTS FEES - PROJECTS,ENVIRONMENTAL CONSULTANTS,Invoice,BACS,None,31-Mar-19,2019,5,INV012249,P05009,REFURBISH/REBUILD CREMATORIUM,1221,CONSULTANTS FEES - PROJECTS
GUILDFORD BOROUGH COUNCIL,REFUSE AND RECYCLING,SUEZ RECYCLING AND RECOVERY UK LTD,7370,04-Jul-19,2054166,206.6,0,RECYCLING - GATE FEES,OTHER WASTE DISPOSAL SUPPLIERS,Invoice,BACS,None,02-Apr-19,2019,4,80140516,B7766,KERBSIDE RECYCLING,D9590,RECYCLING - GATE FEES
GUILDFORD BOROUGH COUNCIL,PUBLIC RELATIONS,GRANT PRITCHARD PHOTOGRAPHY LTD,2209,29-Aug-19,2055080,180,0,PHOTOGRAPHY,PHOTOGRAPHY SERVICE PROVIDERS,Invoice,BACS,None,05-Apr-19,2019,5,1794,F5551,PUBLIC RELATIONS & MARKETING,D1561,PHOTOGRAPHY
GUILDFORD BOROUGH COUNCIL,CEMETERIES,HONEY BROTHERS LIMITED,2462,30-Jul-19,2055379,-26.66,0,NEW / REPLACE EQUIP. & TOOLS;,POWER AND HAND TOOL SUPPLIERS,Credit Note,,None,28-Mar-19,2019,4,CN904337,A1410,CEMETERIES ADMIN,D1428,NEW / REPLACE EQUIP. & TOOLS;
GUILDFORD BOROUGH COUNCIL,VEHICLE MAINTENANCE,MOTORMECH GFD LTD,41870,06-Aug-19,2055851,58,0,VEHICLE MOT TEST,CAR AND VAN PARTS SUPPLIERS,Invoice,BACS,None,12-Apr-19,2019,5,I007881,K5551,VEHICLE MAINTENANCE,C1384,VEHICLE MOT TEST
GUILDFORD BOROUGH COUNCIL,INDUSTRIAL ESTATES,CASTLE WATER LIMITED,89638,18-Jul-19,2055854,34.57,0,WATER BY METER,MAINS WATER SUPPLIERS,Invoice,BACS,None,11-Apr-19,2019,4,TW0000344196,B5331,LYSONS AVENUE SMALL UNITS,B4221,WATER BY METER
GUILDFORD BOROUGH COUNCIL,CORPORATE PROPERTY SERVICES,MELLISS LLP,82953,02-Jul-19,2055889,775,0,CONSULTANTS (ADVICE),OTHER CONSTRUCTION CONSULTANTS,Invoice,BACS,None,11-Apr-19,2019,4,008126,G4575,CORPORATE PROPERTY SERVICES,D4520,CONSULTANTS (ADVICE)
GUILDFORD BOROUGH COUNCIL,CREMATORIUM,FACULTATIEVE TECHNOLOGIES LTD,79805,02-Jul-19,2055955,1060,0,FIXED PLANT MTNCE AGREEMENTS,CREMATORIA CONTRACTORS,Invoice,BACS,None,09-Apr-19,2019,4,19101458,A1500,GUILDFORD CREMATORIUM,B1215,FIXED PLANT MTNCE AGREEMENTS
GUILDFORD BOROUGH COUNCIL,FLATS COMMUNAL SERVICES,CASTLE WATER LIMITED,89638,16-Jul-19,2056598,20.62,0,WATER BY METER,MAINS WATER SUPPLIERS,Invoice,BACS,None,06-Apr-19,2019,4,1895810,M2615,PRIMROSE CT SITE - COMM HALL,B4221,WATER BY METER
GUILDFORD BOROUGH COUNCIL,STOCKS,JEWSON LIMITED,2712,09-Jul-19,2056933,1936.86,0,PURCHASES,BUILDERS MERCHANTS,Invoice,BACS,None,14-Apr-19,2019,4,0652/00779304,I06001,STORES,2591,PURCHASES
GUILDFORD BOROUGH COUNCIL,MUSEUM,EUROSAFE SOLUTIONS LTD,44655,06-Aug-19,2056961,517,0,PS-R&M REACTIVE REPAIRS,PERSONAL PROTECTIVE EQUIPMENT (PPE) SUPPLIERS,Invoice,BACS,None,23-Apr-19,2019,5,31090(4004),A5571,CASTLE KEEP,B1627,PS-R&M REACTIVE REPAIRS
GUILDFORD BOROUGH COUNCIL,FLATS COMMUNAL SERVICES,CASTLE WATER LIMITED,89638,16-Jul-19,2057208,-28.75,0,WATER BY METER,MAINS WATER SUPPLIERS,Credit Note,,None,02-Mar-19,2019,4,01758921,M2615,PRIMROSE CT SITE - COMM HALL,B4221,WATER BY METER
GUILDFORD BOROUGH COUNCIL,STREET CLEANSING,CHAMBERS RUNFOLD PLC,1274,16-Jul-19,2058631,400,0,FLY TIPS,QUARRY AND AGGREGATES SUPPLIERS,Invoice,BACS,None,24-Apr-19,2019,4,146951,K4551,STREET CLEANSING,D4473,FLY TIPS
GUILDFORD BOROUGH COUNCIL,STREET CLEANSING,CHAMBERS RUNFOLD PLC,1274,16-Jul-19,2058632,400,0,FLY TIPS,QUARRY AND AGGREGATES SUPPLIERS,Invoice,BACS,None,24-Apr-19,2019,4,146952,K4551,STREET CLEANSING,D4473,FLY TIPS
GUILDFORD BOROUGH COUNCIL,STREET CLEANSING,CHAMBERS RUNFOLD PLC,1274,16-Jul-19,2058633,400,0,FLY TIPS,QUARRY AND AGGREGATES SUPPLIERS,Invoice,BACS,None,24-Apr-19,2019,4,146953,K4551,STREET CLEANSING,D4473,FLY TIPS
GUILDFORD BOROUGH COUNCIL,STREET CLEANSING,CHAMBERS RUNFOLD PLC,1274,16-Jul-19,2058652,200,0,FLY TIPS,QUARRY AND AGGREGATES SUPPLIERS,Invoice,BACS,None,30-Apr-19,2019,4,0000003693,K4551,STREET CLEANSING,D4473,FLY TIPS
GUILDFORD BOROUGH COUNCIL,STREET CLEANSING,CHAMBERS RUNFOLD PLC,1274,16-Jul-19,2058653,400,0,FLY TIPS,QUARRY AND AGGREGATES SUPPLIERS,Invoice,BACS,None,29-Apr-19,2019,4,147314,K4551,STREET CLEANSING,D4473,FLY TIPS
GUILDFORD BOROUGH COUNCIL,RESPONSIVE & PLANNED MAINTENAN,CRANLEIGH AERIALS LIMITED,69899,11-Jul-19,2058660,75,0,TV SYSTEM SERVICE & REPAIR,AUDIO AND VISUAL EQUIPMENT SUPPLIERS,Invoice,BACS,None,29-Apr-19,2019,4,704572,M5113,REPAIRS-RESPONSIVE (BHS),B1387,TV SYSTEM SERVICE & REPAIR
GUILDFORD BOROUGH COUNCIL,FLEET MANAGEMENT,ROSSETTS (UK) LTD,7209,09-Jul-19,2058694,91,0,VEHICLE MOT TEST,TRUCK AND BUS DEALERS,Invoice,BACS,None,30-Apr-19,2019,4,43685272,VRR19,FUSO CANTOR CN13 NUF,C1384,VEHICLE MOT TEST
GUILDFORD BOROUGH COUNCIL,FLEET MANAGEMENT,ROSSETTS (UK) LTD,7209,09-Jul-19,2058694,55,0,VEHICLE MOT TEST,TRUCK AND BUS DEALERS,Invoice,BACS,None,30-Apr-19,2019,4,43685272,VRR19,FUSO CANTOR CN13 NUF,C1384,VEHICLE MOT TEST
GUILDFORD BOROUGH COUNCIL,EXECUTIVE - MISCELLANEOUS,SURREY COUNTY COUNCIL,23023,02-Jul-19,2058975,163116.15,0,CONSULTANTS FEES - PROJECTS,LOCAL GOVERNMENT [UK ONLY],Invoice,BACS,None,17-Apr-19,2019,4,9500196170,P79026,INTERNAL ESTATE ROAD -CLLR PH1,1221,CONSULTANTS FEES - PROJECTS
GUILDFORD BOROUGH COUNCIL,EXECUTIVE - MISCELLANEOUS,PERFECT CIRCLE JV LTD,91901,22-Aug-19,2058984,25000,0,CONSULTANTS FEES - PROJECTS,CONSTRUCTION PROJECT MANAGEMENT CONSULTANTS,Invoice,BACS,None,08-May-19,2019,5,28387347,P79026,INTERNAL ESTATE ROAD -CLLR PH1,1221,CONSULTANTS FEES - PROJECTS
GUILDFORD BOROUGH COUNCIL,LEGAL SERVICES,ASHURST LLP,72284,02-Jul-19,2059021,1950,0,LEGAL EXPENSES,OTHER LEGAL SERVICE PROVIDERS,Invoice,BACS,None,22-Mar-19,2019,4,500025917,G4525,LEGAL SERVICES,D4457,LEGAL EXPENSES
GUILDFORD BOROUGH COUNCIL,STREET CLEANSING,CTG ENTERPRISES LTD,79580,02-Jul-19,2059036,280,0,PAYMENT TO CONTRACTORS,OTHER CLEANING AND JANITORIAL SERVICE PROVIDERS,Invoice,BACS,None,01-May-19,2019,4,GU1434GBC,K4551,STREET CLEANSING,D4468,PAYMENT TO CONTRACTORS
GUILDFORD BOROUGH COUNCIL,STREET CLEANSING,CTG ENTERPRISES LTD,79580,25-Jul-19,2059037,350,0,PAYMENT TO CONTRACTORS,OTHER CLEANING AND JANITORIAL SERVICE PROVIDERS,Invoice,BACS,None,01-May-19,2019,4,GU1435GBC,K4551,STREET CLEANSING,D4468,PAYMENT TO CONTRACTORS
GUILDFORD BOROUGH COUNCIL,CREMATORIUM,THOMSON ECOLOGY LTD,49614,20-Aug-19,2059399,323.7,0,CONSULTANTS FEES - ADVICE,ENVIRONMENTAL CONSULTANTS,Invoice,BACS,None,26-Apr-19,2019,5,INV012278,P05012,BROADWATER COTTAGE,1227,CONSULTANTS FEES - ADVICE
GUILDFORD BOROUGH COUNCIL,RE-ROOFING,EUROPEAN ASBESTOS SERVICES LIMITED,91991,11-Jul-19,2059488,105,0,CONTRACT PYTS-MAIN CONTRACTOR,ASBESTOS REMOVAL SERVICE PROVIDERS,Invoice,BACS,None,28-Feb-19,2019,4,IAS20181,N47030,ROOFING WESTBOR & PARK BARN,1233,CONTRACT PYTS-MAIN CONTRACTOR
GUILDFORD BOROUGH COUNCIL,COMMUNITY WELLBEING,CCS MEDIA,23943,06-Aug-19,2059507,174.4,0,MISCELLANEOUS EXPENSES,IT CONSUMABLES SUPPLIERS,Invoice,BACS,None,01-May-19,2019,5,3509463,F5713,COMMUNITY WELLBEING,D9483,MISCELLANEOUS EXPENSES
GUILDFORD BOROUGH COUNCIL,PROPERTY,HANNAFORD UPRIGHT LTD,2368,25-Jul-19,2059518,7910,0,CONSULTANTS FEES - ADVICE,OTHER CONSTRUCTION CONSULTANTS,Invoice,BACS,None,02-May-19,2019,4,3362/9938,P74071,STRUCTURAL WORKS 48 QUARRY ST,1227,CONSULTANTS FEES - ADVICE
GUILDFORD BOROUGH COUNCIL,LEGAL SERVICES,FREETHS LLP,84392,02-Jul-19,2059532,1810,0,LEGAL EXPENSES,SOLICITORS [UK ONLY],Invoice,BACS,None,28-Mar-19,2019,4,90320842,G4525,LEGAL SERVICES,D4457,LEGAL EXPENSES
GUILDFORD BOROUGH COUNCIL,LEGAL SERVICES,FREETHS LLP,84392,18-Jul-19,2059534,6386,0,LEGAL EXPENSES,SOLICITORS [UK ONLY],Invoice,BACS,None,28-Mar-19,2019,4,90320688,G4525,LEGAL SERVICES,D4457,LEGAL EXPENSES
GUILDFORD BOROUGH COUNCIL,LEGAL SERVICES,FREETHS LLP,84392,11-Jul-19,2059535,8959.5,0,LEGAL EXPENSES,SOLICITORS [UK ONLY],Invoice,BACS,None,29-Mar-19,2019,4,90321016,G4525,LEGAL SERVICES,D4457,LEGAL EXPENSES
GUILDFORD BOROUGH COUNCIL,LEGAL SERVICES,FREETHS LLP,84392,11-Jul-19,2059535,21,0,LEGAL EXPENSES,SOLICITORS [UK ONLY],Invoice,BACS,None,29-Mar-19,2019,4,90321016,G4525,LEGAL SERVICES,D4457,LEGAL EXPENSES
GUILDFORD BOROUGH COUNCIL,LEGAL SERVICES,FREETHS LLP,84392,08-Aug-19,2059536,36,0,LEGAL EXPENSES,SOLICITORS [UK ONLY],Invoice,BACS,None,31-Mar-19,2019,5,90322116,G4525,LEGAL SERVICES,D4457,LEGAL EXPENSES
GUILDFORD BOROUGH COUNCIL,LEGAL SERVICES,FREETHS LLP,84392,18-Jul-19,2059537,1500,0,LEGAL EXPENSES,SOLICITORS [UK ONLY],Invoice,BACS,None,31-Mar-19,2019,4,90322696,G4525,LEGAL SERVICES,D4457,LEGAL EXPENSES
GUILDFORD BOROUGH COUNCIL,LEGAL SERVICES,FREETHS LLP,84392,15-Aug-19,2059538,1524,0,LEGAL EXPENSES,SOLICITORS [UK ONLY],Invoice,BACS,None,31-Mar-19,2019,5,90321669,G4525,LEGAL SERVICES,D4457,LEGAL EXPENSES
GUILDFORD BOROUGH COUNCIL,PROCUREMENT,HAYS SPECIALIST RECRUITMENT LIMITED,15625,23-Jul-19,2059547,455.28,0,AGENCY STAFF,OTHER RECRUITMENT AGENCIES AND SERVICE PROVIDERS,Invoice,BACS,None,18-Apr-19,2019,4,1009595749,G3593,PROCUREMENT SERVICES,A5191,AGENCY STAFF
GUILDFORD BOROUGH COUNCIL,RESPONSIVE & PLANNED MAINTENAN,CRANLEIGH AERIALS LIMITED,69899,11-Jul-19,2059632,200,0,TV SYSTEM SERVICE & REPAIR,AUDIO AND VISUAL EQUIPMENT SUPPLIERS,Invoice,BACS,None,07-May-19,2019,4,704576,M5113,REPAIRS-RESPONSIVE (BHS),B1387,TV SYSTEM SERVICE & REPAIR
GUILDFORD BOROUGH COUNCIL,RESPONSIVE & PLANNED MAINTENAN,CRANLEIGH AERIALS LIMITED,69899,11-Jul-19,2059632,112.5,0,TV SYSTEM SERVICE & REPAIR,AUDIO AND VISUAL EQUIPMENT SUPPLIERS,Invoice,BACS,None,07-May-19,2019,4,704576,M5113,REPAIRS-RESPONSIVE (BHS),B1387,TV SYSTEM SERVICE & REPAIR
GUILDFORD BOROUGH COUNCIL,FLATS COMMUNAL SERVICES,CRANLEIGH AERIALS LIMITED,69899,11-Jul-19,2059666,16,0,R&M - DLO,AUDIO AND VISUAL EQUIPMENT SUPPLIERS,Invoice,BACS,None,03-May-19,2019,4,704574,M2871,THE RIDGES 5-6A (4),B1227,R&M - DLO
GUILDFORD BOROUGH COUNCIL,FLATS COMMUNAL SERVICES,CRANLEIGH AERIALS LIMITED,69899,11-Jul-19,2059666,200,0,R&M - DLO,AUDIO AND VISUAL EQUIPMENT SUPPLIERS,Invoice,BACS,None,03-May-19,2019,4,704574,M2871,THE RIDGES 5-6A (4),B1227,R&M - DLO
GUILDFORD BOROUGH COUNCIL,VEHICLE MAINTENANCE,LEX AUTOLEASE LTD,24892,09-Jul-19,2059940,400.13,0,HIRE OF VEHICLES,VEHICLE FINANCE AND LEASING COMPANIES,Invoice,BACS,None,25-Apr-19,2019,4,EX11279697,K5551,VEHICLE MAINTENANCE,C4341,HIRE OF VEHICLES
GUILDFORD BOROUGH COUNCIL,WOKING ROAD DEPOT,CONNECT VENDING LIMITED,89111,05-Sep-19,2060217,766.58,0,VENDING MACHINES - HIRE,OTHER VENDING SERVICES SUPPLIERS,Invoice,BACS,None,30-Apr-19,2019,6,5010204,B4452,WOKING ROAD DEPOT,D1842,VENDING MACHINES - HIRE
GUILDFORD BOROUGH COUNCIL,PROCUREMENT,HAYS SPECIALIST RECRUITMENT LIMITED,15625,23-Jul-19,2060283,455.28,0,AGENCY STAFF,OTHER RECRUITMENT AGENCIES AND SERVICE PROVIDERS,Invoice,BACS,None,06-May-19,2019,4,1009638679,G3593,PROCUREMENT SERVICES,A5191,AGENCY STAFF
GUILDFORD BOROUGH COUNCIL,PROCUREMENT,HAYS SPECIALIST RECRUITMENT LIMITED,15625,23-Jul-19,2060289,2276.4,0,AGENCY STAFF,OTHER RECRUITMENT AGENCIES AND SERVICE PROVIDERS,Invoice,BACS,None,30-Apr-19,2019,4,1009622058,G3593,PROCUREMENT SERVICES,A5191,AGENCY STAFF
GUILDFORD BOROUGH COUNCIL,TENANTS' SERVICES,ROYAL MAIL GROUP PLC,15531,23-Jul-19,2060462,30.65,0,POSTAGE DIRECT USAGE,POSTAL AND COURIER SERVICE PROVIDERS,Invoice,BACS,None,08-May-19,2019,4,9058764622,M1151,TENANTS SERVICES (BHS),D5466,POSTAGE DIRECT USAGE
GUILDFORD BOROUGH COUNCIL,RESPONSIVE & PLANNED MAINTENAN,ROYAL MAIL GROUP PLC,15531,23-Jul-19,2060462,30.66,0,POSTAGE DIRECT USAGE,POSTAL AND COURIER SERVICE PROVIDERS,Invoice,BACS,None,08-May-19,2019,4,9058764622,M5111,REPAIRS-ADMIN (BHS),D5466,POSTAGE DIRECT USAGE
GUILDFORD BOROUGH COUNCIL,INCOME COLLECTION,ROYAL MAIL GROUP PLC,15531,23-Jul-19,2060462,30.66,0,POSTAGE DIRECT USAGE,POSTAL AND COURIER SERVICE PROVIDERS,Invoice,BACS,None,08-May-19,2019,4,9058764622,M1121,INCOME COLLECTION (BHS),D5466,POSTAGE DIRECT USAGE
GUILDFORD BOROUGH COUNCIL,STREET CLEANSING,CHAMBERS RUNFOLD PLC,1274,16-Jul-19,2061035,10464,0,FLY TIPS,QUARRY AND AGGREGATES SUPPLIERS,Invoice,BACS,None,08-May-19,2019,4,147771,K4551,STREET CLEANSING,D4473,FLY TIPS
GUILDFORD BOROUGH COUNCIL,CREMATORIUM,TRESKE LTD,82914,25-Jul-19,2061141,13900,0,MISCELLANEOUS EXPENSES,OTHER FURNITURE SUPPLIERS,Invoice,BACS,None,13-May-19,2019,4,14155,P05009,REFURBISH/REBUILD CREMATORIUM,1444,MISCELLANEOUS EXPENSES
GUILDFORD BOROUGH COUNCIL,CREMATORIUM,TRESKE LTD,82914,25-Jul-19,2061186,6891.5,0,MISCELLANEOUS EXPENSES,OTHER FURNITURE SUPPLIERS,Invoice,BACS,None,13-May-19,2019,4,14157,P05009,REFURBISH/REBUILD CREMATORIUM,1444,MISCELLANEOUS EXPENSES
GUILDFORD BOROUGH COUNCIL,CREMATORIUM,TRESKE LTD,82914,25-Jul-19,2061187,320,0,MISCELLANEOUS EXPENSES,OTHER FURNITURE SUPPLIERS,Invoice,BACS,None,31-Jan-19,2019,4,13980,P05009,REFURBISH/REBUILD CREMATORIUM,1444,MISCELLANEOUS EXPENSES
GUILDFORD BOROUGH COUNCIL,CREMATORIUM,TRESKE LTD,82914,25-Jul-19,2061188,189,0,MISCELLANEOUS EXPENSES,OTHER FURNITURE SUPPLIERS,Invoice,BACS,None,31-Jan-19,2019,4,13986,P05009,REFURBISH/REBUILD CREMATORIUM,1444,MISCELLANEOUS EXPENSES
GUILDFORD BOROUGH COUNCIL,OFFICE SERVICES TEAM,C L C CONTRACTORS LIMITED,9829,02-Jul-19,2061601,16566,0,FURNITURE; GENERAL,PROPERTY MAINTENANCE CONTRACTORS,Invoice,BACS,None,13-May-19,2019,4,AP82127-001,G7515,OLD MILLMEAD HOUSE,D1444,FURNITURE; GENERAL
GUILDFORD BOROUGH COUNCIL,PARKS & COUNTRYSIDE,ANSTEY & STONE LTD,95043,08-Aug-19,2061607,476,0,CONDITION/SUITABILITY SURVEYS,OTHER CONSTRUCTION CONTRACTORS,Invoice,BACS,None,13-May-19,2019,5,0124,A1130,CASTLE GROUNDS,D5403,CONDITION/SUITABILITY SURVEYS
GUILDFORD BOROUGH COUNCIL,PROPERTY,PERFECT CIRCLE JV LTD,91901,02-Jul-19,2061626,12201.77,0,CONSULTANTS FEES - ADVICE,CONSTRUCTION PROJECT MANAGEMENT CONSULTANTS,Invoice,BACS,None,30-Apr-19,2019,4,LNMS0198/007,P74040,SARP - GBC OWN COSTS & SHARE,1227,CONSULTANTS FEES - ADVICE
GUILDFORD BOROUGH COUNCIL,PROPERTY,PERFECT CIRCLE JV LTD,91901,02-Jul-19,2061627,5338.29,0,CONSULTANTS FEES - ADVICE,CONSTRUCTION PROJECT MANAGEMENT CONSULTANTS,Invoice,BACS,None,30-Apr-19,2019,4,LNMS0179/007,P74040,SARP - GBC OWN COSTS & SHARE,1227,CONSULTANTS FEES - ADVICE
GUILDFORD BOROUGH COUNCIL,LEGAL SERVICES,SHARPE PRITCHARD LLP,41518,08-Aug-19,2062084,396,0,LEGAL EXPENSES,SOLICITORS [UK ONLY],Invoice,BACS,None,30-Apr-19,2019,5,98376,G4525,LEGAL SERVICES,D4457,LEGAL EXPENSES
GUILDFORD BOROUGH COUNCIL,PROPERTY,VIVID RESOURCING LIMITED,85680,11-Jul-19,2062198,412,0,SALARIES - GENERAL CAPITAL SAL,OTHER RECRUITMENT AGENCIES AND SERVICE PROVIDERS,Invoice,BACS,None,16-May-19,2019,4,36565,P74067,TUNSGATE PUBLIC REALM,1656,SALARIES - GENERAL CAPITAL SAL
GUILDFORD BOROUGH COUNCIL,MAJOR PROJECTS,VIVID RESOURCING LIMITED,85680,11-Jul-19,2062198,1153.6,0,AGENCY STAFF,OTHER RECRUITMENT AGENCIES AND SERVICE PROVIDERS,Invoice,BACS,None,16-May-19,2019,4,36565,F5620,GUILDFORD MUSEUM REDEVELOPMENT,A5191,AGENCY STAFF
GUILDFORD BOROUGH COUNCIL,EXECUTIVE - MISCELLANEOUS,VIVID RESOURCING LIMITED,85680,11-Jul-19,2062198,82.4,0,SALARIES - GENERAL CAPITAL SAL,OTHER RECRUITMENT AGENCIES AND SERVICE PROVIDERS,Invoice,BACS,None,16-May-19,2019,4,36565,P79035,BEDFORD WHARF LANDSCAPING,1656,SALARIES - GENERAL CAPITAL SAL
GUILDFORD BOROUGH COUNCIL,STOCKS,WOLSELEY UK LIMITED,8649,11-Jul-19,2062384,189.6,0,PURCHASES,OTHER GOODS AND SERVICES PROVIDERS,Invoice,BACS,None,03-May-19,2019,4,60332845,I06001,STORES,2591,PURCHASES
GUILDFORD BOROUGH COUNCIL,PARKS & COUNTRYSIDE,RIGBY TAYLOR LIMITED,7146,11-Jul-19,2062410,41.94,0,MATERIALS,GARDENING EQUIPMENT SUPPLIERS,Invoice,BACS,None,15-May-19,2019,4,RSIN0300549,A1209,PARKS AND OPEN SPACES GENERAL,D1545,MATERIALS
GUILDFORD BOROUGH COUNCIL,VEHICLE MAINTENANCE,LISTER WILDER LTD,2998,09-Jul-19,2062412,121.36,0,EXTERNAL VEHICLE REPAIR,EMERGENCY AND OTHER SPECIALIST VEHICLE DEALERS,Invoice,BACS,None,16-May-19,2019,4,581516,K5551,VEHICLE MAINTENANCE,D1593,EXTERNAL VEHICLE REPAIR
GUILDFORD BOROUGH COUNCIL,MUSEUM,BRITISH GAS TRADING LTD,34127,22-Aug-19,2062432,16.38,0,GAS,MAINS UTILITY MULTIPLE SERVICE PROVIDERS,Invoice,BACS,None,16-Apr-19,2019,5,850030398783,A5512,48 QUARRY STREET,B2221,GAS
GUILDFORD BOROUGH COUNCIL,LEISURE COMMUNITY CENTRES,ASL LTD,667,02-Jul-19,2062461,500,0,PS - R&M PLANNED WORKS,SEWERAGE AND DRAINAGE SERVICE PROVIDERS,Invoice,BACS,None,16-May-19,2019,4,64411,A8141,PARK BARN YOUTH & COMMUNITY CE,B1610,PS - R&M PLANNED WORKS
GUILDFORD BOROUGH COUNCIL,FLATS COMMUNAL SERVICES,CASTLE WATER LIMITED,89638,16-Jul-19,2062487,20.75,0,WATER BY METER,MAINS WATER SUPPLIERS,Invoice,BACS,None,08-May-19,2019,4,1945969,M2615,PRIMROSE CT SITE - COMM HALL,B4221,WATER BY METER
GUILDFORD BOROUGH COUNCIL,VEHICLE MAINTENANCE,FULLER TYRES LIMITED,88222,22-Aug-19,2062548,62,0,PURCHASE OF TYRES,OTHER VEHICLE EQUIPMENT PROVIDERS,Invoice,BACS,None,07-Jan-19,2019,5,FTI-14747,K5551,VEHICLE MAINTENANCE,D1591,PURCHASE OF TYRES
GUILDFORD BOROUGH COUNCIL,VEHICLE MAINTENANCE,FULLER TYRES LIMITED,88222,20-Aug-19,2062624,20,0,PURCHASE OF TYRES,OTHER VEHICLE EQUIPMENT PROVIDERS,Invoice,BACS,None,08-Mar-19,2019,5,FTI-16125,K5551,VEHICLE MAINTENANCE,D1591,PURCHASE OF TYRES
GUILDFORD BOROUGH COUNCIL,VEHICLE MAINTENANCE,FULLER TYRES LIMITED,88222,20-Aug-19,2062635,256,0,PURCHASE OF TYRES,OTHER VEHICLE EQUIPMENT PROVIDERS,Invoice,BACS,None,05-Mar-19,2019,5,FTI-16063,K5551,VEHICLE MAINTENANCE,D1591,PURCHASE OF TYRES
GUILDFORD BOROUGH COUNCIL,PARKS & COUNTRYSIDE,RIGBY TAYLOR LIMITED,7146,11-Jul-19,2062823,22.5,0,MATERIALS,GARDENING EQUIPMENT SUPPLIERS,Invoice,BACS,None,17-May-19,2019,4,RSIN0300943,A1245,STOKE RECREATION GROUND,D1545,MATERIALS
GUILDFORD BOROUGH COUNCIL,PARKS & COUNTRYSIDE,RIGBY TAYLOR LIMITED,7146,11-Jul-19,2062823,22.5,0,MATERIALS,GARDENING EQUIPMENT SUPPLIERS,Invoice,BACS,None,17-May-19,2019,4,RSIN0300943,A1250,STOKE PARK,D1545,MATERIALS
GUILDFORD BOROUGH COUNCIL,STOCKS,MOORES FURNITURE GROUP LTD,3668,11-Jul-19,2062824,115.48,0,PURCHASES,OTHER FITTINGS AND FURNISHINGS SUPPLIERS,Invoice,BACS,None,18-May-19,2019,4,749262,I06001,STORES,2591,PURCHASES
GUILDFORD BOROUGH COUNCIL,EXECUTIVE - MISCELLANEOUS,PINSENT MASONS LLP,9929,02-Jul-19,2063087,45289.09,0,LEGAL CONSULTANTS - FEES,OTHER LEGAL SERVICE PROVIDERS,Invoice,BACS,None,30-Apr-19,2019,4,6459796,P79037,ASH ROAD BRIDGE,1228,LEGAL CONSULTANTS - FEES
GUILDFORD BOROUGH COUNCIL,EXECUTIVE - MISCELLANEOUS,PINSENT MASONS LLP,9929,02-Jul-19,2063092,-45289.09,0,LEGAL CONSULTANTS - FEES,OTHER LEGAL SERVICE PROVIDERS,Credit Note,,None,20-May-19,2019,4,CN6459796,P79037,ASH ROAD BRIDGE,1228,LEGAL CONSULTANTS - FEES
GUILDFORD BOROUGH COUNCIL,SLYFIELD AREA REGENERATION,SCOTT BROWNRIGG LTD,24376,01-Aug-19,2063094,1950,0,CONSULTANTS (PROJECTS),ARCHITECTS AND DESIGN CONSULTANTS,Invoice,BACS,None,31-May-19,2019,5,166816490,D7102,SLYFIELD AREA REGEN PRO (SARP),D4511,CONSULTANTS (PROJECTS)
GUILDFORD BOROUGH COUNCIL,STREET CLEANSING,CHAMBERS RUNFOLD PLC,1274,16-Jul-19,2063100,-10464,0,FLY TIPS,QUARRY AND AGGREGATES SUPPLIERS,Credit Note,,None,17-May-19,2019,4,0000003705,K4551,STREET CLEANSING,D4473,FLY TIPS
GUILDFORD BOROUGH COUNCIL,STREET CLEANSING,CHAMBERS RUNFOLD PLC,1274,16-Jul-19,2063101,800,0,FLY TIPS,QUARRY AND AGGREGATES SUPPLIERS,Invoice,BACS,None,17-May-19,2019,4,148166,K4551,STREET CLEANSING,D4473,FLY TIPS
GUILDFORD BOROUGH COUNCIL,EQUITY SHARE ADMINISTRATION,CHRISTOPHER WINSER CHARTERED SURVEYORS,97059,03-Sep-19,2063113,240,0,VALUERS FEES,SURVEYORS AND INSPECTORS,Invoice,BACS,None,21-May-19,2019,6,07344,M1182,EQUITY SHARE ADMIN (BHS),D4493,VALUERS FEES
GUILDFORD BOROUGH COUNCIL,PARKS & COUNTRYSIDE,BRACKNELL AND WOKINGHAM COMMUNITY BAND,88703,11-Jul-19,2063115,127,0,BAND CONCERTS,ENTERTAINERS,Invoice,BACS,None,20-May-19,2019,4,BWCB19/5/19,A1850,PARKS EVENTS AND BOOKINGS,D4419,BAND CONCERTS
GUILDFORD BOROUGH COUNCIL,PROPERTY,PLANTS LIMITED,6683,09-Jul-19,2063125,493.5,0,MISCELLANEOUS EXPENSES,GARDEN CENTRES AND NURSERIES,Invoice,BACS,None,18-May-19,2019,4,66131,P74060,1-3 BRIDGE STREET (ARMOUR BUI),1444,MISCELLANEOUS EXPENSES
GUILDFORD BOROUGH COUNCIL,PROGRAMME SUPPORT,PARALOGIC LTD,34643,04-Jul-19,2063140,398,0,SOFTWARE,COMPUTER HARDWARE SUPPLIERS,Invoice,BACS,None,21-May-19,2019,4,S449121,N50018,SORTWARE SYSTEMS 2019-20,1296,SOFTWARE
GUILDFORD BOROUGH COUNCIL,MAJOR PROJECTS,AMAZON PAYMENTS EUROPE S.C.A.,95133,27-Aug-19,2063154,5.16,0,TELECOMMS; MOBILE PHONES,OTHER RETAILERS,Invoice,BACS,None,20-May-19,2019,5,7977812019-5387,F5530,MAJOR PROJECTS,D5487,TELECOMMS; MOBILE PHONES
GUILDFORD BOROUGH COUNCIL,INDUSTRIAL ESTATES,HARPERS DOOR SPECIALISTS,75911,09-Jul-19,2063159,910,0,PS-R&M REACTIVE REPAIRS,"SECURITY SHUTTER, DOOR AND GATE CONTRACTORS",Invoice,BACS,None,21-May-19,2019,4,3294,B5331,LYSONS AVENUE SMALL UNITS,B1627,PS-R&M REACTIVE REPAIRS
GUILDFORD BOROUGH COUNCIL,INDUSTRIAL ESTATES,HARPERS DOOR SPECIALISTS,75911,09-Jul-19,2063159,500,0,PS-R&M REACTIVE REPAIRS,"SECURITY SHUTTER, DOOR AND GATE CONTRACTORS",Invoice,BACS,None,21-May-19,2019,4,3294,B5331,LYSONS AVENUE SMALL UNITS,B1627,PS-R&M REACTIVE REPAIRS
GUILDFORD BOROUGH COUNCIL,PAYROLL AND INSURANCE,DATA SOLUTIONS 2016 LTD T/A RESTORE DATASHRED,75332,10-Sep-19,2063375,78,0,STATIONERY & OFFICE SUPPLIES,CONFIDENTIAL WASTE DISPOSAL PROVIDERS,Invoice,BACS,None,28-Apr-19,2019,6,919187,G3595,SALARIES,D3472,STATIONERY & OFFICE SUPPLIES
GUILDFORD BOROUGH COUNCIL,CREMATORIUM,GUILDFORD LOCK AND SAFE LIMITED,2294,02-Jul-19,2063383,99.5,0,SECURITY SERVICES,KEYS AND LOCKSMITHS,Invoice,BACS,None,10-May-19,2019,4,33018,A1500,GUILDFORD CREMATORIUM,D4477,SECURITY SERVICES
GUILDFORD BOROUGH COUNCIL,SHELTERED HOUSING,CASTLE WATER LIMITED,89638,02-Jul-19,2063486,-91.98,0,WATER BY METER,MAINS WATER SUPPLIERS,Credit Note,,None,24-Apr-19,2019,4,00361271,M1515,SHELTERED ACCOMODATION,B4221,WATER BY METER
GUILDFORD BOROUGH COUNCIL,SHELTERED HOUSING,CASTLE WATER LIMITED,89638,02-Jul-19,2063491,-100.19,0,WATER BY METER,MAINS WATER SUPPLIERS,Credit Note,,None,24-Apr-19,2019,4,00361268,M1515,SHELTERED ACCOMODATION,B4221,WATER BY METER
GUILDFORD BOROUGH COUNCIL,DAY SERVICES,CARELINE THE AGENCY FOR CARESTAFF LIMITED,23629,11-Jul-19,2063504,278.03,0,AGENCY STAFF,NURSING AND MEDICAL RECRUITMENT AGENCIES,Invoice,BACS,None,08-May-19,2019,4,PI80176,C8189,CENTRAL HUB PARK BARN,A5191,AGENCY STAFF
GUILDFORD BOROUGH COUNCIL,SHELTERED HOUSING,CREED MILES & COMPANY LTD,65396,11-Jul-19,2063664,3800,0,FIXTURES & FITTINGS - H&H DEPT,INTERIOR DESIGNERS,Invoice,BACS,None,22-May-19,2019,4,105665,M1515,SHELTERED ACCOMODATION,B5227,FIXTURES & FITTINGS - H&H DEPT
GUILDFORD BOROUGH COUNCIL,REFUSE AND RECYCLING,MAUSER UK LTD,1615,02-Jul-19,2063696,574.1,0,NEW / REPLACE EQUIP. & TOOLS;,HOSPITAL FURNITURE AND EQUIPMENT SUPPLIERS,Invoice,BACS,None,22-May-19,2019,4,19/INV007378,K3551,REFUSE COLLECTION,D1428,NEW / REPLACE EQUIP. & TOOLS;
GUILDFORD BOROUGH COUNCIL,EXECUTIVE - MISCELLANEOUS,THE OYSTER PARTNERSHIP LTD,81422,27-Aug-19,2063718,2060,0,SALARIES - GENERAL CAPITAL SAL,OTHER RECRUITMENT AGENCIES AND SERVICE PROVIDERS,Invoice,BACS,None,22-May-19,2019,5,1052895,P79026,INTERNAL ESTATE ROAD -CLLR PH1,1656,SALARIES - GENERAL CAPITAL SAL
GUILDFORD BOROUGH COUNCIL,EXECUTIVE - MISCELLANEOUS,THE OYSTER PARTNERSHIP LTD,81422,27-Aug-19,2063719,617.65,0,SALARIES - GENERAL CAPITAL SAL,OTHER RECRUITMENT AGENCIES AND SERVICE PROVIDERS,Invoice,BACS,None,22-May-19,2019,5,1052894,P79027,WALNUT TREE BRIDGE REPLACEMENT,1656,SALARIES - GENERAL CAPITAL SAL
GUILDFORD BOROUGH COUNCIL,MAJOR PROJECTS,THE OYSTER PARTNERSHIP LTD,81422,27-Aug-19,2063719,264.71,0,AGENCY STAFF,OTHER RECRUITMENT AGENCIES AND SERVICE PROVIDERS,Invoice,BACS,None,22-May-19,2019,5,1052894,F5607,TOWN CENTRE PARKING STRATEGY,A5191,AGENCY STAFF
GUILDFORD BOROUGH COUNCIL,MAJOR PROJECTS,THE OYSTER PARTNERSHIP LTD,81422,27-Aug-19,2063719,352.94,0,AGENCY STAFF,OTHER RECRUITMENT AGENCIES AND SERVICE PROVIDERS,Invoice,BACS,None,22-May-19,2019,5,1052894,F5609,GUILDFORD WEST RAILWAY STATION,A5191,AGENCY STAFF
GUILDFORD BOROUGH COUNCIL,EXECUTIVE - MISCELLANEOUS,THE OYSTER PARTNERSHIP LTD,81422,27-Aug-19,2063719,529.42,0,SALARIES - GENERAL CAPITAL SAL,OTHER RECRUITMENT AGENCIES AND SERVICE PROVIDERS,Invoice,BACS,None,22-May-19,2019,5,1052894,P79032,SMC(WEST) PHASE 1,1656,SALARIES - GENERAL CAPITAL SAL
GUILDFORD BOROUGH COUNCIL,STOCKS,RIXONWAY KITCHENS LTD,69599,15-Aug-19,2063903,178.46,0,PURCHASES,KITCHEN FITTERS,Invoice,BACS,None,07-May-19,2019,5,OP/1147472,I06001,STORES,2591,PURCHASES
GUILDFORD BOROUGH COUNCIL,STOCKS,RIXONWAY KITCHENS LTD,69599,04-Jul-19,2063904,46.97,0,PURCHASES,KITCHEN FITTERS,Invoice,BACS,None,07-May-19,2019,4,OP/1147471,I06001,STORES,2591,PURCHASES
GUILDFORD BOROUGH COUNCIL,STOCKS,RIXONWAY KITCHENS LTD,69599,15-Aug-19,2063905,711.05,0,PURCHASES,KITCHEN FITTERS,Invoice,BACS,None,07-May-19,2019,5,OP/1147403,I06001,STORES,2591,PURCHASES
GUILDFORD BOROUGH COUNCIL,IT RENEWALS,SOFTCAT LIMITED,66814,02-Jul-19,2063906,256.4,0,SOFTWARE,IT SUPPORT SERVICE PROVIDERS,Invoice,BACS,None,20-May-19,2019,4,INV02240378,P81034,ICT INFRASTRUCTURE IMPROVEMENT,1296,SOFTWARE
GUILDFORD BOROUGH COUNCIL,FLEET MANAGEMENT,ROSSETTS (UK) LTD,7209,09-Jul-19,2063909,55,0,VEHICLE MOT TEST,TRUCK AND BUS DEALERS,Invoice,BACS,None,16-May-19,2019,4,43685402,VRR25,MERCEDES ECONIC 26T GD16 CWk,C1384,VEHICLE MOT TEST
GUILDFORD BOROUGH COUNCIL,FLEET MANAGEMENT,ROSSETTS (UK) LTD,7209,09-Jul-19,2063909,49,0,VEHICLE MOT TEST,TRUCK AND BUS DEALERS,Invoice,BACS,None,16-May-19,2019,4,43685402,VRR25,MERCEDES ECONIC 26T GD16 CWk,C1384,VEHICLE MOT TEST
GUILDFORD BOROUGH COUNCIL,FLEET MANAGEMENT,ROSSETTS (UK) LTD,7209,09-Jul-19,2063910,55,0,VEHICLE MOT TEST,TRUCK AND BUS DEALERS,Invoice,BACS,None,17-May-19,2019,4,43685412,VRR29,MERC REFUSE FREIGHTER GX16 OBT,C1384,VEHICLE MOT TEST
GUILDFORD BOROUGH COUNCIL,FLEET MANAGEMENT,ROSSETTS (UK) LTD,7209,09-Jul-19,2063910,113,0,VEHICLE MOT TEST,TRUCK AND BUS DEALERS,Invoice,BACS,None,17-May-19,2019,4,43685412,VRR29,MERC REFUSE FREIGHTER GX16 OBT,C1384,VEHICLE MOT TEST
GUILDFORD BOROUGH COUNCIL,DAY SERVICES,CHAMBERS WASTE MANAGEMENT PLC,1275,16-Jul-19,2063914,326,0,R&M - GENERAL,OTHER WASTE DISPOSAL SUPPLIERS,Invoice,BACS,None,18-May-19,2019,4,P340865,C8189,CENTRAL HUB PARK BARN,B1231,R&M - GENERAL
GUILDFORD BOROUGH COUNCIL,STOCKS,CHAMBERS WASTE MANAGEMENT PLC,1275,09-Jul-19,2063915,500,0,PURCHASES,OTHER WASTE DISPOSAL SUPPLIERS,Invoice,BACS,None,18-May-19,2019,4,P340866,I06001,STORES,2591,PURCHASES
GUILDFORD BOROUGH COUNCIL,BUILDING MAINTENANCE,CHAMBERS WASTE MANAGEMENT PLC,1275,09-Jul-19,2063916,1968.42,0,TIPPING FEES,OTHER WASTE DISPOSAL SUPPLIERS,Invoice,BACS,None,18-May-19,2019,4,P340864,K1515,BUILDING MAINTENANCE,D4489,TIPPING FEES
GUILDFORD BOROUGH COUNCIL,REFUSE AND RECYCLING,EGBERT H TAYLOR & COMPANY LTD,1840,02-Jul-19,2063957,480,0,REFUSE CONTAINERS PURCHASE,BINS AND WASTE CONTAINER SUPPLIERS,Invoice,BACS,None,22-May-19,2019,4,INV000013009,K3551,REFUSE COLLECTION,D1485,REFUSE CONTAINERS PURCHASE
GUILDFORD BOROUGH COUNCIL,OFFICE SERVICES TEAM,ASL LTD,667,01-Aug-19,2063958,780,0,PS-R&M REACTIVE REPAIRS,SEWERAGE AND DRAINAGE SERVICE PROVIDERS,Invoice,BACS,None,23-May-19,2019,5,64467,G7511,MILLMEAD HOUSE,B1627,PS-R&M REACTIVE REPAIRS
GUILDFORD BOROUGH COUNCIL,LEISURE SPORT DEVELOPMENT,SURREY COUNTY COUNCIL,23023,02-Jul-19,2064006,4000,0,GENERAL SUBSCRIPTIONS,LOCAL GOVERNMENT [UK ONLY],Invoice,BACS,None,22-May-19,2019,4,9500198839,A7311,SPORTS DEVELOPMENT OFFICER,D7497,GENERAL SUBSCRIPTIONS
GUILDFORD BOROUGH COUNCIL,STOCKS,GRAHAM,2204,18-Jul-19,2064028,1676.11,0,PURCHASES,"PLUMBING, HEATING AND AC (HVAC) EQUIPMENT SUPPLIERS",Invoice,BACS,None,19-May-19,2019,4,0357/00779821,I06001,STORES,2591,PURCHASES
GUILDFORD BOROUGH COUNCIL,GUILDFORD HOUSE,CASPARI LTD,71679,11-Jul-19,2064030,564.74,0,SOUVENIRS;POSTCARDS FOR RESALE,PAPER PRODUCTS SUPPLIERS,Invoice,BACS,None,23-May-19,2019,4,00866148,A4511,GUILDFORD HOUSE ADMINISTRATION,D1588,SOUVENIRS;POSTCARDS FOR RESALE
GUILDFORD BOROUGH COUNCIL,AFFORDABLE HOUSING DEVELOPMENT,VIVID RESOURCING LIMITED,85680,11-Jul-19,2064032,1202.5,0,AGENCY STAFF,OTHER RECRUITMENT AGENCIES AND SERVICE PROVIDERS,Invoice,BACS,None,23-May-19,2019,4,36734,C4111,AFFORDABLE HOUSING DEVELOPMENT,A5191,AGENCY STAFF
GUILDFORD BOROUGH COUNCIL,DEVELOPMENT CONTROL,VIVID RESOURCING LIMITED,85680,11-Jul-19,2064032,647.5,0,AGENCY STAFF,OTHER RECRUITMENT AGENCIES AND SERVICE PROVIDERS,Invoice,BACS,None,23-May-19,2019,4,36734,D5100,DEVELOPMENT CONTROL - FEE EARN,A5191,AGENCY STAFF
GUILDFORD BOROUGH COUNCIL,EXECUTIVE - MISCELLANEOUS,VIVID RESOURCING LIMITED,85680,11-Jul-19,2064033,92.7,0,SALARIES - GENERAL CAPITAL SAL,OTHER RECRUITMENT AGENCIES AND SERVICE PROVIDERS,Invoice,BACS,None,23-May-19,2019,4,36733,P79035,BEDFORD WHARF LANDSCAPING,1656,SALARIES - GENERAL CAPITAL SAL
GUILDFORD BOROUGH COUNCIL,MAJOR PROJECTS,VIVID RESOURCING LIMITED,85680,11-Jul-19,2064033,1297.8,0,AGENCY STAFF,OTHER RECRUITMENT AGENCIES AND SERVICE PROVIDERS,Invoice,BACS,None,23-May-19,2019,4,36733,F5620,GUILDFORD MUSEUM REDEVELOPMENT,A5191,AGENCY STAFF
GUILDFORD BOROUGH COUNCIL,PROPERTY,VIVID RESOURCING LIMITED,85680,11-Jul-19,2064033,463.5,0,SALARIES - GENERAL CAPITAL SAL,OTHER RECRUITMENT AGENCIES AND SERVICE PROVIDERS,Invoice,BACS,None,23-May-19,2019,4,36733,P74067,TUNSGATE PUBLIC REALM,1656,SALARIES - GENERAL CAPITAL SAL
GUILDFORD BOROUGH COUNCIL,Other Property,OPUS ENERGY LIMITED,88447,16-Jul-19,2064040,10.18,0,ELECTRICITY,MAINS ELECTRICITY SUPPLIERS,Invoice,BACS,None,06-Dec-18,2019,4,65419588,B6550,"MULTIPLEX CINEMA, BEDFORD ROAD",B2215,ELECTRICITY
GUILDFORD BOROUGH COUNCIL,VEHICLE MAINTENANCE,INGERSOLL-RAND INTERNATIONAL LTD,71650,26-Sep-19,2064411,1046,0,MAINTENANCE AGREEMENTS,MACHINERY AND ENGINEERING PARTS SUPPLIERS,Invoice,BACS,None,20-May-19,2019,6,60090723,K5551,VEHICLE MAINTENANCE,D1431,MAINTENANCE AGREEMENTS
GUILDFORD BOROUGH COUNCIL,EXECUTIVE - MISCELLANEOUS,PINSENT MASONS LLP,9929,16-Jul-19,2064425,52132.4,0,LEGAL CONSULTANTS - FEES,OTHER LEGAL SERVICE PROVIDERS,Invoice,BACS,None,29-Mar-19,2019,4,6451138,P79037,ASH ROAD BRIDGE,1228,LEGAL CONSULTANTS - FEES
GUILDFORD BOROUGH COUNCIL,BUILDING MAINTENANCE,CHAMBERS WASTE MANAGEMENT PLC,1275,09-Jul-19,2064430,270.68,0,TIPPING FEES,OTHER WASTE DISPOSAL SUPPLIERS,Invoice,BACS,None,18-May-19,2019,4,P341290,K1515,BUILDING MAINTENANCE,D4489,TIPPING FEES
GUILDFORD BOROUGH COUNCIL,EXECUTIVE - MISCELLANEOUS,PINSENT MASONS LLP STG CLIENT A/C,97098,12-Jul-19,2064441,-34358.65,0,LEGAL CONSULTANTS - FEES,OTHER LEGAL SERVICE PROVIDERS,Credit Note,,None,20-May-19,2019,4,CN6445602,P79037,ASH ROAD BRIDGE,1228,LEGAL CONSULTANTS - FEES
GUILDFORD BOROUGH COUNCIL,EXECUTIVE - MISCELLANEOUS,PINSENT MASONS LLP STG CLIENT A/C,97098,12-Jul-19,2064442,-45289.09,0,LEGAL CONSULTANTS - FEES,OTHER LEGAL SERVICE PROVIDERS,Credit Note,,None,20-May-19,2019,4,CN6459796,P79037,ASH ROAD BRIDGE,1228,LEGAL CONSULTANTS - FEES
GUILDFORD BOROUGH COUNCIL,DEPOTS,STEAM & PRESSURE WASHER SERVICES LTD,64972,16-Jul-19,2064456,8894,0,PURCHASE OF EQUIPMENT,CLEANING AND JANITORIAL EQUIPMENT AND SUPPLIES PROVIDERS,Invoice,BACS,None,20-May-19,2019,4,119501,P56008,REPLACE VEHICLE WASHING SYSTEM,1593,PURCHASE OF EQUIPMENT
GUILDFORD BOROUGH COUNCIL,RESPONSIVE & PLANNED MAINTENAN,SDK ENVIRONMENTAL LTD,80011,18-Jul-19,2064457,100,0,DISINFESTATION,PEST AND VERMIN CONTROL SERVICE PROVIDERS,Invoice,BACS,None,24-May-19,2019,4,43908,M5113,REPAIRS-RESPONSIVE (BHS),B6246,DISINFESTATION
GUILDFORD BOROUGH COUNCIL,PARKS & COUNTRYSIDE,DIAMOND LOGISTICS LTD,1702,02-Jul-19,2064627,9.98,0,COMPUTER SOFTWARE LICENCE COST,GENERAL LOGISTICS CONTRACTORS,Invoice,BACS,None,17-May-19,2019,4,1105371,A1209,PARKS AND OPEN SPACES GENERAL,D5445,COMPUTER SOFTWARE LICENCE COST
GUILDFORD BOROUGH COUNCIL,LEISURE SPORT DEVELOPMENT,UCOACH LTD,84102,02-Jul-19,2064669,187.5,0,SURREY YOUTH GAMES,OTHER SPORTS SERVICE PROVIDERS,Invoice,BACS,None,12-Jun-19,2019,4,J10958/19,A7311,SPORTS DEVELOPMENT OFFICER,D9598,SURREY YOUTH GAMES
GUILDFORD BOROUGH COUNCIL,PARKS & COUNTRYSIDE,CONTRACT CLEANING & FACILITIES LTD,9748,01-Aug-19,2064672,111,0,CONTRACT CLEANING,COMMERCIAL CLEANERS,Invoice,BACS,None,22-May-19,2019,5,52419,A1243,STOKE REC PAVILLION,B6241,CONTRACT CLEANING
GUILDFORD BOROUGH COUNCIL,PARKS & COUNTRYSIDE,CONTRACT CLEANING & FACILITIES LTD,9748,01-Aug-19,2064672,140,0,CONTRACT CLEANING,COMMERCIAL CLEANERS,Invoice,BACS,None,22-May-19,2019,5,52419,A1320,GREEN ARK,B6241,CONTRACT CLEANING
GUILDFORD BOROUGH COUNCIL,PARKS & COUNTRYSIDE,CONTRACT CLEANING & FACILITIES LTD,9748,01-Aug-19,2064672,296,0,CONTRACT CLEANING,COMMERCIAL CLEANERS,Invoice,BACS,None,22-May-19,2019,5,52419,A1399,SHALFORD PARK PAVILION,B6241,CONTRACT CLEANING
GUILDFORD BOROUGH COUNCIL,PARKS & COUNTRYSIDE,CONTRACT CLEANING & FACILITIES LTD,9748,01-Aug-19,2064672,80,0,CONTRACT CLEANING,COMMERCIAL CLEANERS,Invoice,BACS,None,22-May-19,2019,5,52419,A1290,KINGSTON MEADOWS,B6241,CONTRACT CLEANING
GUILDFORD BOROUGH COUNCIL,PARKS & COUNTRYSIDE,CONTRACT CLEANING & FACILITIES LTD,9748,01-Aug-19,2064672,484,0,CONTRACT CLEANING,COMMERCIAL CLEANERS,Invoice,BACS,None,22-May-19,2019,5,52419,A1600,STOKE NURSERY DEPOT,B6241,CONTRACT CLEANING
GUILDFORD BOROUGH COUNCIL,PARKS & COUNTRYSIDE,CONTRACT CLEANING & FACILITIES LTD,9748,01-Aug-19,2064672,148,0,CONTRACT CLEANING,COMMERCIAL CLEANERS,Invoice,BACS,None,22-May-19,2019,5,52419,A1812,BURCHATTS FARM BARN CHNGING RM,B6241,CONTRACT CLEANING
GUILDFORD BOROUGH COUNCIL,PARKS & COUNTRYSIDE,CONTRACT CLEANING & FACILITIES LTD,9748,01-Aug-19,2064672,222,0,CONTRACT CLEANING,COMMERCIAL CLEANERS,Invoice,BACS,None,22-May-19,2019,5,52419,A1233,SUTH'LAND MEM PARK GBC,B6241,CONTRACT CLEANING
GUILDFORD BOROUGH COUNCIL,PARKS & COUNTRYSIDE,CONTRACT CLEANING & FACILITIES LTD,9748,01-Aug-19,2064672,80,0,CONTRACT CLEANING,COMMERCIAL CLEANERS,Invoice,BACS,None,22-May-19,2019,5,52419,A1266,CARDWELLS KEEP PAVILION,B6241,CONTRACT CLEANING
GUILDFORD BOROUGH COUNCIL,STOCKS,JEWSON LIMITED,2712,18-Jul-19,2064673,3554.56,0,PURCHASES,BUILDERS MERCHANTS,Invoice,BACS,None,19-May-19,2019,4,0652/00779866,I06001,STORES,2591,PURCHASES
GUILDFORD BOROUGH COUNCIL,PARKS & COUNTRYSIDE,RICHARD FOAKES,7116,02-Jul-19,2064681,180,0,CONTRACTOR-DRAINAGE/DITCHES,SEWERAGE AND DRAINAGE SERVICE PROVIDERS,Invoice,BACS,None,24-May-19,2019,4,9587,A1250,STOKE PARK,D4584,CONTRACTOR-DRAINAGE/DITCHES
GUILDFORD BOROUGH COUNCIL,PARKS & COUNTRYSIDE,RICHARD FOAKES,7116,02-Jul-19,2064681,670,0,CONTRACTOR-DRAINAGE/DITCHES,SEWERAGE AND DRAINAGE SERVICE PROVIDERS,Invoice,BACS,None,24-May-19,2019,4,9587,A1250,STOKE PARK,D4584,CONTRACTOR-DRAINAGE/DITCHES
GUILDFORD BOROUGH COUNCIL,STOCKS,AKW MEDI-CARE LIMITED,17840,18-Jul-19,2064697,28.16,0,PURCHASES,MOBILITY DISABILITY EQUIPMENT SUPPLIERS,Invoice,BACS,None,24-May-19,2019,4,1728701,I06001,STORES,2591,PURCHASES
GUILDFORD BOROUGH COUNCIL,STOCKS,AKW MEDI-CARE LIMITED,17840,18-Jul-19,2064698,154.63,0,PURCHASES,MOBILITY DISABILITY EQUIPMENT SUPPLIERS,Invoice,BACS,None,24-May-19,2019,4,1730143,I06001,STORES,2591,PURCHASES
GUILDFORD BOROUGH COUNCIL,VEHICLE MAINTENANCE,GEESINK NORBA LTD,2145,11-Jul-19,2064699,2411.94,0,SPARES FOR VEHICLES,WASTE DISPOSAL EQUIPMENT SUPPLIERS,Invoice,BACS,None,21-May-19,2019,4,90020092,K5551,VEHICLE MAINTENANCE,D1589,SPARES FOR VEHICLES
GUILDFORD BOROUGH COUNCIL,STOCKS,AKW MEDI-CARE LIMITED,17840,18-Jul-19,2064700,475.07,0,PURCHASES,MOBILITY DISABILITY EQUIPMENT SUPPLIERS,Invoice,BACS,None,24-May-19,2019,4,1728706,I06001,STORES,2591,PURCHASES
GUILDFORD BOROUGH COUNCIL,FLEET MANAGEMENT,ROSSETTS (UK) LTD,7209,09-Jul-19,2064701,55,0,VEHICLE MOT TEST,TRUCK AND BUS DEALERS,Invoice,BACS,None,24-May-19,2019,4,43685459,VRR04,DENNIS EAGLE 18T VN13 EUH,C1384,VEHICLE MOT TEST
GUILDFORD BOROUGH COUNCIL,FLEET MANAGEMENT,ROSSETTS (UK) LTD,7209,09-Jul-19,2064701,91,0,VEHICLE MOT TEST,TRUCK AND BUS DEALERS,Invoice,BACS,None,24-May-19,2019,4,43685459,VRR04,DENNIS EAGLE 18T VN13 EUH,C1384,VEHICLE MOT TEST
GUILDFORD BOROUGH COUNCIL,VEHICLE MAINTENANCE,GEESINK NORBA LTD,2145,11-Jul-19,2064702,175.08,0,SPARES FOR VEHICLES,WASTE DISPOSAL EQUIPMENT SUPPLIERS,Invoice,BACS,None,21-May-19,2019,4,90020091,K5551,VEHICLE MAINTENANCE,D1589,SPARES FOR VEHICLES
GUILDFORD BOROUGH COUNCIL,STOCKS,AKW MEDI-CARE LIMITED,17840,18-Jul-19,2064704,284.07,0,PURCHASES,MOBILITY DISABILITY EQUIPMENT SUPPLIERS,Invoice,BACS,None,23-May-19,2019,4,1729964,I06001,STORES,2591,PURCHASES
GUILDFORD BOROUGH COUNCIL,PARKS & COUNTRYSIDE,WINNER PLANT LTD,96787,04-Jul-19,2064711,243,0,HIRE OF VEHICLES,PLANT AND CONSTRUCTION EQUIPMENT SUPPLIERS,Invoice,BACS,None,28-May-19,2019,4,G201745,A1390,SHALFORD WATERMEADOWS,C4341,HIRE OF VEHICLES
GUILDFORD BOROUGH COUNCIL,ENVIRONMENTAL CONTROL,HERSHEY SYSTEMS,41044,09-Jul-19,2064715,216.65,0,COMPUTER SOFTWARE: UPGRADES,SOFTWARE DEVELOPERS,Invoice,BACS,None,25-May-19,2019,4,5332019,C1113,ENVIRONMENTAL CONTROL,D5446,COMPUTER SOFTWARE: UPGRADES
GUILDFORD BOROUGH COUNCIL,LICENSING SERVICES,HERSHEY SYSTEMS,41044,09-Jul-19,2064715,216.67,0,COMPUTER SOFTWARE: UPGRADES,SOFTWARE DEVELOPERS,Invoice,BACS,None,25-May-19,2019,4,5332019,H2100,LICENSING SERVICES,D5446,COMPUTER SOFTWARE: UPGRADES
GUILDFORD BOROUGH COUNCIL,TAXI LICENSING,HERSHEY SYSTEMS,41044,09-Jul-19,2064715,216.67,0,COMPUTER SOFTWARE: UPGRADES,SOFTWARE DEVELOPERS,Invoice,BACS,None,25-May-19,2019,4,5332019,H1104,HC PH DRIVERS,D5446,COMPUTER SOFTWARE: UPGRADES
GUILDFORD BOROUGH COUNCIL,FOOD AND SAFETY SERVICES,HERSHEY SYSTEMS,41044,09-Jul-19,2064715,216.67,0,COMPUTER SOFTWARE: UPGRADES,SOFTWARE DEVELOPERS,Invoice,BACS,None,25-May-19,2019,4,5332019,C1111,FOOD AND SAFETY SERVICES,D5446,COMPUTER SOFTWARE: UPGRADES
GUILDFORD BOROUGH COUNCIL,TAXI LICENSING,HERSHEY SYSTEMS,41044,09-Jul-19,2064715,216.67,0,COMPUTER SOFTWARE: UPGRADES,SOFTWARE DEVELOPERS,Invoice,BACS,None,25-May-19,2019,4,5332019,H1108,HC & PC VEHICLES,D5446,COMPUTER SOFTWARE: UPGRADES
GUILDFORD BOROUGH COUNCIL,TAXI LICENSING,HERSHEY SYSTEMS,41044,09-Jul-19,2064715,216.67,0,COMPUTER SOFTWARE: UPGRADES,SOFTWARE DEVELOPERS,Invoice,BACS,None,25-May-19,2019,4,5332019,H1107,PH OPERATORS,D5446,COMPUTER SOFTWARE: UPGRADES
GUILDFORD BOROUGH COUNCIL,TENANTS' SERVICES,TOWN AND COUNTRY CLEANERS LTD,69049,11-Jul-19,2064825,8346,0,CLEANING MATERIALS,COMMERCIAL CLEANERS,Invoice,BACS,None,29-May-19,2019,4,74165,M1151,TENANTS SERVICES (BHS),B6231,CLEANING MATERIALS
GUILDFORD BOROUGH COUNCIL,RENOVATIONS,WEALDEN SERVICES LTD,70149,11-Jul-19,2064847,1375.14,0,CONTRACT PYTS-MAIN CONTRACTOR,PROPERTY MAINTENANCE CONTRACTORS,Invoice,BACS,None,28-May-19,2019,4,INV-46606,N40272,DISABLED ADAPTS 2019-20,1233,CONTRACT PYTS-MAIN CONTRACTOR
GUILDFORD BOROUGH COUNCIL,RENOVATIONS,WEALDEN SERVICES LTD,70149,11-Jul-19,2064848,420.17,0,CONTRACT PYTS-MAIN CONTRACTOR,PROPERTY MAINTENANCE CONTRACTORS,Invoice,BACS,None,28-May-19,2019,4,INV-46608,N40272,DISABLED ADAPTS 2019-20,1233,CONTRACT PYTS-MAIN CONTRACTOR
GUILDFORD BOROUGH COUNCIL,RENOVATIONS,WEALDEN SERVICES LTD,70149,11-Jul-19,2064850,1296.85,0,CONTRACT PYTS-MAIN CONTRACTOR,PROPERTY MAINTENANCE CONTRACTORS,Invoice,BACS,None,28-May-19,2019,4,INV-46605,N40272,DISABLED ADAPTS 2019-20,1233,CONTRACT PYTS-MAIN CONTRACTOR
GUILDFORD BOROUGH COUNCIL,RENOVATIONS,WEALDEN SERVICES LTD,70149,11-Jul-19,2064851,3438.99,0,CONTRACT PYTS-MAIN CONTRACTOR,PROPERTY MAINTENANCE CONTRACTORS,Invoice,BACS,None,28-May-19,2019,4,INV-46604,N40272,DISABLED ADAPTS 2019-20,1233,CONTRACT PYTS-MAIN CONTRACTOR
GUILDFORD BOROUGH COUNCIL,TENANTS' SERVICES,MORGAN HUNT UK LIMITED,72942,11-Jul-19,2064865,541.88,0,AGENCY STAFF,OTHER RECRUITMENT AGENCIES AND SERVICE PROVIDERS,Invoice,BACS,None,26-May-19,2019,4,1119243,M1151,TENANTS SERVICES (BHS),A5191,AGENCY STAFF
GUILDFORD BOROUGH COUNCIL,HOMELESSNESS,CHASE INVENTORY SERVICES LTD,42781,03-Sep-19,2064884,85,0,BUILDING CONDITION SURVEYS,REMOVAL SERVICE PROVIDERS,Invoice,BACS,None,28-May-19,2019,6,97993,C3316,EMERGENCY ACCOMMODATION,D4420,BUILDING CONDITION SURVEYS
GUILDFORD BOROUGH COUNCIL,HOMELESSNESS,CHASE INVENTORY SERVICES LTD,42781,09-Jul-19,2064885,100,0,BUILDING CONDITION SURVEYS,REMOVAL SERVICE PROVIDERS,Invoice,BACS,None,28-May-19,2019,4,97995,C3316,EMERGENCY ACCOMMODATION,D4420,BUILDING CONDITION SURVEYS
GUILDFORD BOROUGH COUNCIL,HOMELESSNESS,CHASE INVENTORY SERVICES LTD,42781,09-Jul-19,2064886,75,0,BUILDING CONDITION SURVEYS,REMOVAL SERVICE PROVIDERS,Invoice,BACS,None,28-May-19,2019,4,97994,C3316,EMERGENCY ACCOMMODATION,D4420,BUILDING CONDITION SURVEYS
GUILDFORD BOROUGH COUNCIL,SPA AVOIDANCE STRATEGY,MARSHALL SURFACING CONTRACTS LTD`,88377,04-Jul-19,2064888,14447,0,CONTRACT PYTS-MAIN CONTRACTOR,BITUMEN AND SURFACE DRESSING SUPPLIERS,Invoice,BACS,None,15-May-19,2019,4,14995/SM2253,P20001,PRE SANG COSTS,1233,CONTRACT PYTS-MAIN CONTRACTOR
GUILDFORD BOROUGH COUNCIL,PARKS & COUNTRYSIDE,BRENNTAG UK LTD,97080,04-Jul-19,2064889,117.6,0,SWIMMING POOL CHEMICALS,OTHER CHEMICAL SUPPLIERS,Invoice,BACS,None,28-May-19,2019,4,41SI4180451,A1248,STOKE PARK PADD POOL PLANT RM,B6271,SWIMMING POOL CHEMICALS
GUILDFORD BOROUGH COUNCIL,PARKS & COUNTRYSIDE,BRENNTAG UK LTD,97080,04-Jul-19,2064890,159,0,SWIMMING POOL CHEMICALS,OTHER CHEMICAL SUPPLIERS,Invoice,BACS,None,28-May-19,2019,4,41SI4180452,A1248,STOKE PARK PADD POOL PLANT RM,B6271,SWIMMING POOL CHEMICALS
GUILDFORD BOROUGH COUNCIL,MAJOR PROJECTS,PERFECT CIRCLE JV LTD,91901,01-Aug-19,2064894,3587.46,0,CONSULTANTS (ADVICE),CONSTRUCTION PROJECT MANAGEMENT CONSULTANTS,Invoice,BACS,None,24-May-19,2019,4,28389369,F5620,GUILDFORD MUSEUM REDEVELOPMENT,D4520,CONSULTANTS (ADVICE)
GUILDFORD BOROUGH COUNCIL,EXECUTIVE - MISCELLANEOUS,VIVID RESOURCING LIMITED,85680,11-Jul-19,2065099,103,0,SALARIES - GENERAL CAPITAL SAL,OTHER RECRUITMENT AGENCIES AND SERVICE PROVIDERS,Invoice,BACS,None,30-May-19,2019,4,36869,P79035,BEDFORD WHARF LANDSCAPING,1656,SALARIES - GENERAL CAPITAL SAL
GUILDFORD BOROUGH COUNCIL,MAJOR PROJECTS,VIVID RESOURCING LIMITED,85680,11-Jul-19,2065099,1442,0,AGENCY STAFF,OTHER RECRUITMENT AGENCIES AND SERVICE PROVIDERS,Invoice,BACS,None,30-May-19,2019,4,36869,F5620,GUILDFORD MUSEUM REDEVELOPMENT,A5191,AGENCY STAFF
GUILDFORD BOROUGH COUNCIL,PROPERTY,VIVID RESOURCING LIMITED,85680,11-Jul-19,2065099,515,0,SALARIES - GENERAL CAPITAL SAL,OTHER RECRUITMENT AGENCIES AND SERVICE PROVIDERS,Invoice,BACS,None,30-May-19,2019,4,36869,P74067,TUNSGATE PUBLIC REALM,1656,SALARIES - GENERAL CAPITAL SAL
GUILDFORD BOROUGH COUNCIL,DEVELOPMENT CONTROL,VIVID RESOURCING LIMITED,85680,15-Aug-19,2065100,641.55,0,AGENCY STAFF,OTHER RECRUITMENT AGENCIES AND SERVICE PROVIDERS,Invoice,BACS,None,30-May-19,2019,5,36870,D5100,DEVELOPMENT CONTROL - FEE EARN,A5191,AGENCY STAFF
GUILDFORD BOROUGH COUNCIL,AFFORDABLE HOUSING DEVELOPMENT,VIVID RESOURCING LIMITED,85680,15-Aug-19,2065100,1191.45,0,AGENCY STAFF,OTHER RECRUITMENT AGENCIES AND SERVICE PROVIDERS,Invoice,BACS,None,30-May-19,2019,5,36870,C4111,AFFORDABLE HOUSING DEVELOPMENT,A5191,AGENCY STAFF
GUILDFORD BOROUGH COUNCIL,RESPONSIVE & PLANNED MAINTENAN,TUNSTALL HEALTHCARE (UK) LTD,10031,16-Jul-19,2065103,374.7,0,CECS  - GENERAL,COMMUNITY ALARM SUPPLIERS,Invoice,BACS,None,30-May-19,2019,4,3IN/10338274,M5106,REPAIRS-SHELT-RESPONSIVE (BHS),B1334,CECS  - GENERAL
GUILDFORD BOROUGH COUNCIL,HOMELESSNESS,REDACTED,0,09-Jul-19,2065106,90,0,BONDS CLAIMED,PROPERTY LETTING AND ESTATE AGENTS,Invoice,BACS,None,04-Apr-19,2019,4,REDACTED,C3316,EMERGENCY ACCOMMODATION,D4525,BONDS CLAIMED
GUILDFORD BOROUGH COUNCIL,HOMELESSNESS,REDACTED,0,09-Jul-19,2065107,380,0,BONDS CLAIMED,PROPERTY LETTING AND ESTATE AGENTS,Invoice,BACS,None,04-Apr-19,2019,4,REDACTED,C3316,EMERGENCY ACCOMMODATION,D4525,BONDS CLAIMED
GUILDFORD BOROUGH COUNCIL,HOMELESSNESS,REDACTED,0,09-Jul-19,2065109,1500,0,BONDS CLAIMED,PROPERTY LETTING AND ESTATE AGENTS,Invoice,BACS,None,22-Mar-19,2019,4,REDACTED,C3316,EMERGENCY ACCOMMODATION,D4525,BONDS CLAIMED
GUILDFORD BOROUGH COUNCIL,OTHER ST DEBTORS,REDACTED,0,09-Jul-19,2065112,1055,0,CASH PAID,PROPERTY LETTING AND ESTATE AGENTS,Invoice,BACS,None,21-May-19,2019,4,REDACTED,J01064,HOUSING H4U SCHEME,2175,CASH PAID
GUILDFORD BOROUGH COUNCIL,PARKS & COUNTRYSIDE,KERNOCK PARK PLANTS LTD,2854,11-Jul-19,2065118,295.85,0,BEDDING,GARDEN CENTRES AND NURSERIES,Invoice,BACS,None,30-May-19,2019,4,112150,A1130,CASTLE GROUNDS,D1550,BEDDING
GUILDFORD BOROUGH COUNCIL,PARKS & COUNTRYSIDE,KERNOCK PARK PLANTS LTD,2854,11-Jul-19,2065118,1324.35,0,BEDDING,GARDEN CENTRES AND NURSERIES,Invoice,BACS,None,30-May-19,2019,4,112150,A1130,CASTLE GROUNDS,D1550,BEDDING
GUILDFORD BOROUGH COUNCIL,REFUSE AND RECYCLING,CROMWELL POLYTHENE LTD,1538,16-Jul-19,2065127,713.56,0,NEW / REPLACE EQUIP. & TOOLS;,OTHER PLASTIC GOODS SUPPLIERS,Invoice,BACS,None,30-May-19,2019,4,INV0136106,B7512,REFUSE COLLECTION-TRADE,D1428,NEW / REPLACE EQUIP. & TOOLS;
GUILDFORD BOROUGH COUNCIL,OFFICE SERVICES TEAM,SALNOR ROOFING SERVICES LTD,83660,02-Jul-19,2065136,8253.15,0,PS - R&M PLANNED WORKS,ROOFERS,Invoice,BACS,None,31-May-19,2019,4,SB/R18679/01,G7511,MILLMEAD HOUSE,B1610,PS - R&M PLANNED WORKS
GUILDFORD BOROUGH COUNCIL,STOCKS,GRAHAM,2204,05-Sep-19,2065149,133.58,0,PURCHASES,"PLUMBING, HEATING AND AC (HVAC) EQUIPMENT SUPPLIERS",Invoice,BACS,None,26-May-19,2019,6,0357/00779903,I06001,STORES,2591,PURCHASES
GUILDFORD BOROUGH COUNCIL,STOCKS,JEWSON LIMITED,2712,08-Aug-19,2065150,508.98,0,PURCHASES,BUILDERS MERCHANTS,Invoice,BACS,None,26-May-19,2019,5,0652/00779948,I06001,STORES,2591,PURCHASES
GUILDFORD BOROUGH COUNCIL,CARELINE SERVICE,PPP TAKING CARE,97186,11-Jul-19,2065175,2659.33,0,ALARM MONITORING CONTRACT,HOME CARE SERVICE PROVIDERS,Invoice,BACS,None,10-May-19,2019,4,S1500064,C2511,CARELINE,D4541,ALARM MONITORING CONTRACT
GUILDFORD BOROUGH COUNCIL,BUILDING MAINTENANCE,CHAMBERS WASTE MANAGEMENT PLC,1275,09-Jul-19,2065184,125.96,0,TIPPING FEES,OTHER WASTE DISPOSAL SUPPLIERS,Invoice,BACS,None,25-May-19,2019,4,P341889,K1515,BUILDING MAINTENANCE,D4489,TIPPING FEES
GUILDFORD BOROUGH COUNCIL,OFFICE SERVICES TEAM,RAPID OFFICE SYSTEMS LIMITED,7066,02-Jul-19,2065185,166,0,NEW / REPLACE EQUIP. & TOOLS;,INTERIOR DESIGNERS,Invoice,BACS,None,31-May-19,2019,4,100902,G4585,OFFICE SERVICES,D1428,NEW / REPLACE EQUIP. & TOOLS;
GUILDFORD BOROUGH COUNCIL,BUILDING MAINTENANCE,CHAMBERS WASTE MANAGEMENT PLC,1275,09-Jul-19,2065193,799.56,0,TIPPING FEES,OTHER WASTE DISPOSAL SUPPLIERS,Invoice,BACS,None,25-May-19,2019,4,P341665,K1515,BUILDING MAINTENANCE,D4489,TIPPING FEES
GUILDFORD BOROUGH COUNCIL,BUILDING MAINTENANCE,CHAMBERS WASTE MANAGEMENT PLC,1275,09-Jul-19,2065194,52.3,0,TIPPING FEES,OTHER WASTE DISPOSAL SUPPLIERS,Invoice,BACS,None,25-May-19,2019,4,P341666,K1515,BUILDING MAINTENANCE,D4489,TIPPING FEES
GUILDFORD BOROUGH COUNCIL,GUILDFORD HOUSE,ALEX CLARK ART LTD,54691,11-Jul-19,2065207,357,0,SOUVENIRS;POSTCARDS FOR RESALE,OTHER RETAILERS,Invoice,BACS,None,23-May-19,2019,4,67044,A4511,GUILDFORD HOUSE ADMINISTRATION,D1588,SOUVENIRS;POSTCARDS FOR RESALE
GUILDFORD BOROUGH COUNCIL,OFFICE SERVICES TEAM,XEROX (UK) LIMITED,79663,02-Jul-19,2065208,712.71,0,CENTRAL COPIERS - LEASE COSTS,OTHER OFFICE EQUIPMENT SUPPLIERS,Invoice,BACS,None,01-Jun-19,2019,4,900186596,G4545,REPROGRAPHICS UNIT,D3414,CENTRAL COPIERS - LEASE COSTS
GUILDFORD BOROUGH COUNCIL,OFFICE SERVICES TEAM,XEROX (UK) LIMITED,79663,02-Jul-19,2065208,7819.51,0,COPY MACHINES - MFD,OTHER OFFICE EQUIPMENT SUPPLIERS,Invoice,BACS,None,01-Jun-19,2019,4,900186596,G4545,REPROGRAPHICS UNIT,D3415,COPY MACHINES - MFD
GUILDFORD BOROUGH COUNCIL,CIVIL EMERGENCIES,BRITISH TELECOM,1059,11-Jul-19,2065235,164,0,TELECOMMS; BUSINESS USE,FIXED TELECOMS SERVICE PROVIDERS,Invoice,BACS,None,23-May-19,2019,4,40863270Q053011,F1511,CIVIL EMERGENCIES ADMIN.,D5482,TELECOMMS; BUSINESS USE
GUILDFORD BOROUGH COUNCIL,CARELINE SERVICE,BRITISH TELECOM,1059,11-Jul-19,2065235,164,0,TELECOMMS; BUSINESS USE,FIXED TELECOMS SERVICE PROVIDERS,Invoice,BACS,None,23-May-19,2019,4,40863270Q053011,C2511,CARELINE,D5482,TELECOMMS; BUSINESS USE
GUILDFORD BOROUGH COUNCIL,ENVIRONMENTAL CONTROL,BRITISH TELECOM,1059,11-Jul-19,2065235,164.36,0,TELECOMMS; BUSINESS USE,FIXED TELECOMS SERVICE PROVIDERS,Invoice,BACS,None,23-May-19,2019,4,40863270Q053011,C1113,ENVIRONMENTAL CONTROL,D5482,TELECOMMS; BUSINESS USE
GUILDFORD BOROUGH COUNCIL,DAY SERVICES,CHEESMAN BROTHERS LIMITED,1291,20-Aug-19,2065238,369.18,0,FOOD PURCHASES,FRUIT AND VEGETABLE SUPPLIERS,Invoice,BACS,None,31-May-19,2019,5,800016,C8188,WEST HUB SHAWFIELD,D1832,FOOD PURCHASES
GUILDFORD BOROUGH COUNCIL,VEHICLE MAINTENANCE,IVECO RETAIL LTD,76605,08-Aug-19,2065259,33.16,0,SPARES FOR VEHICLES,TRUCK AND BUS DEALERS,Invoice,BACS,None,06-Jun-19,2019,5,01126641,K5551,VEHICLE MAINTENANCE,D1589,SPARES FOR VEHICLES
GUILDFORD BOROUGH COUNCIL,LEGAL SERVICES,BEVAN BRITTAN LLP,21805,18-Jul-19,2065263,2224,0,LEGAL EXPENSES,SOLICITORS [UK ONLY],Invoice,BACS,None,30-Apr-19,2019,4,10054384,G4525,LEGAL SERVICES,D4457,LEGAL EXPENSES
GUILDFORD BOROUGH COUNCIL,CORPORATE PROPERTY SERVICES,THOMAS FORD & PARTNERS,15230,02-Jul-19,2065277,480,0,CONSULTANTS (ADVICE),ARCHITECTS AND DESIGN CONSULTANTS,Invoice,BACS,None,30-May-19,2019,4,19/127,G4575,CORPORATE PROPERTY SERVICES,D4520,CONSULTANTS (ADVICE)
GUILDFORD BOROUGH COUNCIL,POLICY,GOSS INTERACTIVE LTD,57732,10-Sep-19,2065302,400,0,CONSULTANTS (ADVICE),DIGITAL MARKETING SERVICE PROVIDERS,Invoice,BACS,None,03-Jun-19,2019,6,18805,D5400,LOCAL PLAN 2013,D4520,CONSULTANTS (ADVICE)
GUILDFORD BOROUGH COUNCIL,STOCKS,JEWSON LIMITED,2712,09-Jul-19,2065322,-41.52,0,PURCHASES,BUILDERS MERCHANTS,Credit Note,,None,20-May-19,2019,4,0652/00165725,I06001,STORES,2591,PURCHASES
GUILDFORD BOROUGH COUNCIL,RESPONSIVE & PLANNED MAINTENAN,GUILDFORD FENCING CO,78890,11-Jul-19,2065326,748,0,GENERAL CARPENTRY,FENCING CONTRACTORS,Invoice,BACS,None,31-May-19,2019,4,12997,M5113,REPAIRS-RESPONSIVE (BHS),B1344,GENERAL CARPENTRY
GUILDFORD BOROUGH COUNCIL,RESPONSIVE & PLANNED MAINTENAN,GUILDFORD FENCING CO,78890,11-Jul-19,2065326,440,0,GENERAL CARPENTRY,FENCING CONTRACTORS,Invoice,BACS,None,31-May-19,2019,4,12997,M5113,REPAIRS-RESPONSIVE (BHS),B1344,GENERAL CARPENTRY
GUILDFORD BOROUGH COUNCIL,RESPONSIVE & PLANNED MAINTENAN,GUILDFORD FENCING CO,78890,11-Jul-19,2065327,1045,0,GENERAL CARPENTRY,FENCING CONTRACTORS,Invoice,BACS,None,31-May-19,2019,4,12998,M5115,REPAIRS-OTHER REPONSIVE (BHS),B1344,GENERAL CARPENTRY
GUILDFORD BOROUGH COUNCIL,RESPONSIVE & PLANNED MAINTENAN,GUILDFORD FENCING CO,78890,11-Jul-19,2065327,880,0,GENERAL CARPENTRY,FENCING CONTRACTORS,Invoice,BACS,None,31-May-19,2019,4,12998,M5115,REPAIRS-OTHER REPONSIVE (BHS),B1344,GENERAL CARPENTRY
GUILDFORD BOROUGH COUNCIL,PROPERTY,GIDDEN PLACE LTD,2159,29-Aug-19,2065337,450,0,MISCELLANEOUS EXPENSES,GRAPHIC DESIGN AND CREATIVE AGENCIES,Invoice,BACS,None,31-May-19,2019,5,83374,P74040,SARP - GBC OWN COSTS & SHARE,1444,MISCELLANEOUS EXPENSES
GUILDFORD BOROUGH COUNCIL,PROPERTY,GIDDEN PLACE LTD,2159,29-Aug-19,2065338,500,0,MISCELLANEOUS EXPENSES,GRAPHIC DESIGN AND CREATIVE AGENCIES,Invoice,BACS,None,31-May-19,2019,5,83334,P74040,SARP - GBC OWN COSTS & SHARE,1444,MISCELLANEOUS EXPENSES
GUILDFORD BOROUGH COUNCIL,CREMATORIUM,THE YABOO CO LTD,79287,02-Jul-19,2065341,30,0,VISUAL TRIBUTES/DVD REC,MEDIA PRODUCTION AGENCIES,Invoice,BACS,None,31-May-19,2019,4,44325,A1500,GUILDFORD CREMATORIUM,D1450,VISUAL TRIBUTES/DVD REC
GUILDFORD BOROUGH COUNCIL,NEW BUILD,BAQUS GROUP,80736,02-Jul-19,2065346,3410.76,0,CONSULTANTS FEES - PROJECTS,QUANTITY SURVEYORS,Invoice,BACS,None,20-May-19,2019,4,30504,N30019,LADYMEAD/FIRE STATION SITE,1221,CONSULTANTS FEES - PROJECTS
GUILDFORD BOROUGH COUNCIL,GUILDFORD HOUSE,ALTRADES PACKAGING SUPPLIES,540,11-Jul-19,2065351,94.32,0,SHOP SUNDRIES,OTHER RETAILERS,Invoice,BACS,None,29-May-19,2019,4,38927,A4511,GUILDFORD HOUSE ADMINISTRATION,D3478,SHOP SUNDRIES
GUILDFORD BOROUGH COUNCIL,RESPONSIVE & PLANNED MAINTENAN,THOMAS DOOR & WINDOW CONTROLS LTD,18353,11-Jul-19,2065354,685,0,GENERAL CARPENTRY,"SECURITY SHUTTER, DOOR AND GATE CONTRACTORS",Invoice,BACS,None,01-Jun-19,2019,4,174867,M5113,REPAIRS-RESPONSIVE (BHS),B1344,GENERAL CARPENTRY
GUILDFORD BOROUGH COUNCIL,CREMATORIUM,THE YABOO CO LTD,79287,02-Jul-19,2065355,42.99,0,VISUAL TRIBUTES/DVD REC,MEDIA PRODUCTION AGENCIES,Invoice,BACS,None,31-May-19,2019,4,44324,A1500,GUILDFORD CREMATORIUM,D1450,VISUAL TRIBUTES/DVD REC
GUILDFORD BOROUGH COUNCIL,LEISURE MANAGEMENT CONTRACT,DATA SOLUTIONS 2016 LTD T/A RESTORE DATASHRED,75332,12-Sep-19,2065366,122.7,0,REMOVAL OF REFUSE,CONFIDENTIAL WASTE DISPOSAL PROVIDERS,Invoice,BACS,None,31-May-19,2019,6,926063,A7540,SPECTRUM CLIENT,B6261,REMOVAL OF REFUSE
GUILDFORD BOROUGH COUNCIL,HOUSING OUTSIDE THE HRA,ALLPAY LTD,91422,11-Jul-19,2065370,17.15,0,ALLPAY CHARGES,OTHER FINANCIAL SERVICE PROVIDERS,Invoice,BACS,None,31-May-19,2019,4,0000599250 NDDD,C3313,HOUSING COMPANY,D4400,ALLPAY CHARGES
GUILDFORD BOROUGH COUNCIL,INCOME COLLECTION,ALLPAY LTD,91422,11-Jul-19,2065371,1472.6,0,ALLPAY CHARGES,OTHER FINANCIAL SERVICE PROVIDERS,Invoice,BACS,None,31-May-19,2019,4,0000599249 GBDD,M1121,INCOME COLLECTION (BHS),D4400,ALLPAY CHARGES
GUILDFORD BOROUGH COUNCIL,PROPERTY,THAMES WATER UTILITIES LTD,17192,02-Jul-19,2065372,1358179.4,0,CONSULTANTS FEES - PROJECTS,MAINS WATER SUPPLIERS,Invoice,BACS,None,29-May-19,2019,4,CBA1901427,P74040,SARP - GBC OWN COSTS & SHARE,1221,CONSULTANTS FEES - PROJECTS
GUILDFORD BOROUGH COUNCIL,VEHICLE MAINTENANCE,ROSSETTS (UK) LTD,7209,09-Jul-19,2065373,149.96,0,SPARES FOR VEHICLES,TRUCK AND BUS DEALERS,Invoice,BACS,None,03-Jun-19,2019,4,42518330,K5551,VEHICLE MAINTENANCE,D1589,SPARES FOR VEHICLES
GUILDFORD BOROUGH COUNCIL,PARKS & COUNTRYSIDE,HAMPSHIRE COUNTY COUNCIL,2362,02-Jul-19,2065404,39076,0,BASINGSTOKE CANAL GRANT,LOCAL GOVERNMENT [UK ONLY],Invoice,BACS,None,03-Jun-19,2019,4,3650006064,A1822,PARKS SLA,D7414,BASINGSTOKE CANAL GRANT
GUILDFORD BOROUGH COUNCIL,CREMATORIUM,THE YABOO CO LTD,79287,06-Aug-19,2065405,367,0,VISUAL TRIBUTES/DVD REC,MEDIA PRODUCTION AGENCIES,Invoice,BACS,None,31-May-19,2019,5,44323,A1500,GUILDFORD CREMATORIUM,D1450,VISUAL TRIBUTES/DVD REC
GUILDFORD BOROUGH COUNCIL,VEHICLE MAINTENANCE,LISTER WILDER LTD,2998,09-Jul-19,2065407,191.5,0,SPARES FOR VEHICLES,EMERGENCY AND OTHER SPECIALIST VEHICLE DEALERS,Invoice,BACS,None,31-May-19,2019,4,581899,K5551,VEHICLE MAINTENANCE,D1589,SPARES FOR VEHICLES
GUILDFORD BOROUGH COUNCIL,VEHICLE MAINTENANCE,WEX EUROPE SERVICES (UK) LIMITED,1934,02-Jul-19,2065408,21,0,FUEL & OIL,OIL FUEL SUPPLIERS,Invoice,BACS,None,31-May-19,2019,4,GBW020197320,K5551,VEHICLE MAINTENANCE,C1321,FUEL & OIL
GUILDFORD BOROUGH COUNCIL,STOCKS,RIXONWAY KITCHENS LTD,69599,09-Jul-19,2065410,671.05,0,PURCHASES,KITCHEN FITTERS,Invoice,BACS,None,21-May-19,2019,4,OP/1150072,I06001,STORES,2591,PURCHASES
GUILDFORD BOROUGH COUNCIL,DAY SERVICES,SOUTHERN ELECTRIC,7601,11-Jul-19,2065418,59.42,0,ELECTRICITY,MAINS ELECTRICITY SUPPLIERS,Invoice,BACS,None,26-Mar-19,2019,4,5210170070031,C8188,WEST HUB SHAWFIELD,B2215,ELECTRICITY
GUILDFORD BOROUGH COUNCIL,STOCKS,SWIFT INDUSTRIAL SUPPLIES LTD,7838,27-Aug-19,2065422,11330.2,0,PURCHASES,PERSONAL PROTECTIVE EQUIPMENT (PPE) SUPPLIERS,Invoice,BACS,None,31-May-19,2019,5,CI00469,I06001,STORES,2591,PURCHASES
GUILDFORD BOROUGH COUNCIL,PRIVATE SECTOR HOUSING,SHAW TRUST LIMITED,7490,02-Jul-19,2065428,85,0,TRAINING,OTHER RECRUITMENT AGENCIES AND SERVICE PROVIDERS,Invoice,BACS,None,29-May-19,2019,4,210773,C5122,PRIVATE SECTOR HOUSING STANDAR,A7161,TRAINING
GUILDFORD BOROUGH COUNCIL,PARKS & COUNTRYSIDE,THE NATIONAL TRUST,8123,17-Sep-19,2065429,102.55,0,MISCELLANEOUS EXPENSES,CHARITIES AND VOLUNTARY ORGANISATIONS,Invoice,BACS,None,31-May-19,2019,6,51365,A1300,TREES & COUNTRYSIDE,D9483,MISCELLANEOUS EXPENSES
GUILDFORD BOROUGH COUNCIL,PARK & RIDE SERVICES,CENTREWIRE LTD,51726,12-Sep-19,2065430,4356.86,0,SITE MTNCE,"SECURITY SHUTTER, DOOR AND GATE CONTRACTORS",Invoice,BACS,None,30-May-19,2019,6,OP/1022326,B5205,MERROW PARK AND RIDE,B1201,SITE MTNCE
GUILDFORD BOROUGH COUNCIL,PROPERTY,NEWSQUEST MEDIA GROUP LTD,88515,02-Jul-19,2065432,35,0,MISCELLANEOUS EXPENSES,OTHER INFORMATION SERVICE PROVIDERS,Invoice,BACS,None,19-May-19,2019,4,CPD43604020451,P74040,SARP - GBC OWN COSTS & SHARE,1444,MISCELLANEOUS EXPENSES
GUILDFORD BOROUGH COUNCIL,VEHICLE MAINTENANCE,CONNECTIONS UK,1450,09-Jul-19,2065433,230.2,0,SPARES FOR VEHICLES,EVENT MANAGEMENT AGENCIES,Invoice,BACS,None,31-May-19,2019,4,3587,K5551,VEHICLE MAINTENANCE,D1589,SPARES FOR VEHICLES
GUILDFORD BOROUGH COUNCIL,OFF STREET PARKING,NILFISK LTD,23273,16-Jul-19,2065439,164,0,PARKING GENERAL MTCE,CLEANING AND JANITORIAL EQUIPMENT AND SUPPLIES PROVIDERS,Invoice,BACS,None,28-May-19,2019,4,3024416276/,B2291,YORK ROAD MSCP,B1218,PARKING GENERAL MTCE
GUILDFORD BOROUGH COUNCIL,STOCKS,EDMUNDSON ELECTRICAL LIMITED,1832,16-Jul-19,2065442,18935.33,0,PURCHASES,ELECTRICAL WIRING AND PARTS SUPPLIERS,Invoice,BACS,None,24-May-19,2019,4,201-171536,I06001,STORES,2591,PURCHASES
GUILDFORD BOROUGH COUNCIL,SPA SITES,FITZPATRICK WOOLMER DESIGN & PUBLISHING,70213,02-Jul-19,2065444,2376.5,0,SPA ENDOWMENT EXP.,BUILDING SIGNAGE SUPPLIERS,Invoice,BACS,None,04-Jun-19,2019,4,INV52797,A1020,SPA - LAKESIDE,E5000,SPA ENDOWMENT EXP.
GUILDFORD BOROUGH COUNCIL,NEW BUILD,THE OYSTER PARTNERSHIP LTD,81422,02-Jul-19,2065448,280,0,AGENCY STAFF,OTHER RECRUITMENT AGENCIES AND SERVICE PROVIDERS,Invoice,BACS,None,01-May-19,2019,4,1051788,N30019,LADYMEAD/FIRE STATION SITE,1222,AGENCY STAFF
GUILDFORD BOROUGH COUNCIL,NEW BUILD,THE OYSTER PARTNERSHIP LTD,81422,02-Jul-19,2065448,140,0,AGENCY STAFF,OTHER RECRUITMENT AGENCIES AND SERVICE PROVIDERS,Invoice,BACS,None,01-May-19,2019,4,1051788,N30017,GARAGE SITE - GT GOODWIN DRIVE,1222,AGENCY STAFF
GUILDFORD BOROUGH COUNCIL,NEW BUILD,THE OYSTER PARTNERSHIP LTD,81422,02-Jul-19,2065448,420,0,AGENCY STAFF,OTHER RECRUITMENT AGENCIES AND SERVICE PROVIDERS,Invoice,BACS,None,01-May-19,2019,4,1051788,N30012,APPLETREE PUB SITE,1222,AGENCY STAFF
GUILDFORD BOROUGH COUNCIL,OFFICE SERVICES TEAM,HARPERS DOOR SPECIALISTS,75911,23-Jul-19,2065450,125,0,PS-R&M REACTIVE REPAIRS,"SECURITY SHUTTER, DOOR AND GATE CONTRACTORS",Invoice,BACS,None,03-Jun-19,2019,4,3304,G7515,OLD MILLMEAD HOUSE,B1627,PS-R&M REACTIVE REPAIRS
GUILDFORD BOROUGH COUNCIL,OFFICE SERVICES TEAM,HARPERS DOOR SPECIALISTS,75911,23-Jul-19,2065450,100,0,PS-R&M REACTIVE REPAIRS,"SECURITY SHUTTER, DOOR AND GATE CONTRACTORS",Invoice,BACS,None,03-Jun-19,2019,4,3304,G7515,OLD MILLMEAD HOUSE,B1627,PS-R&M REACTIVE REPAIRS
GUILDFORD BOROUGH COUNCIL,GUILDFORD HOUSE,TYNE CARPETS & FLOORING LTD,85761,02-Jul-19,2065452,956,0,PS-R&M REACTIVE REPAIRS,FLOOR COVERING SUPPLIERS,Invoice,BACS,None,01-Apr-19,2019,4,3600,A4511,GUILDFORD HOUSE ADMINISTRATION,B1627,PS-R&M REACTIVE REPAIRS
GUILDFORD BOROUGH COUNCIL,STOCKS,AKW MEDI-CARE LIMITED,17840,18-Jul-19,2065458,115.01,0,PURCHASES,MOBILITY DISABILITY EQUIPMENT SUPPLIERS,Invoice,BACS,None,03-Jun-19,2019,4,1731781,I06001,STORES,2591,PURCHASES
GUILDFORD BOROUGH COUNCIL,CORP SERVICES,GOVERNMENT EVENTS,95255,02-Jul-19,2065459,322.15,0,TRAINING,OTHER PUBLIC SECTOR BODIES,Invoice,BACS,None,03-Jun-19,2019,4,37626,F1111,CORPORATE SERVICES,A7161,TRAINING
GUILDFORD BOROUGH COUNCIL,TENANT SELECTION,HML INDEPENDENT MEDICAL ADVICE LTD,37284,02-Jul-19,2065461,332.37,0,MEDICAL REFEREES FEES,OTHER MEDICAL PROFESSIONALS,Invoice,BACS,None,31-May-19,2019,4,GU/3330/19,M1131,"ADVICE,REGS,TENANT SELECT(SHS)",D4461,MEDICAL REFEREES FEES
GUILDFORD BOROUGH COUNCIL,VEHICLE MAINTENANCE,KENDALL CARS LIMITED,2847,09-Jul-19,2065466,186.06,0,HIRE OF VEHICLES,"CAR, VAN AND TRUCK HIRE COMPANIES",Invoice,BACS,None,31-May-19,2019,4,1863855,K5551,VEHICLE MAINTENANCE,C4341,HIRE OF VEHICLES
GUILDFORD BOROUGH COUNCIL,VEHICLE MAINTENANCE,KENDALL CARS LIMITED,2847,09-Jul-19,2065467,235.2,0,HIRE OF VEHICLES,"CAR, VAN AND TRUCK HIRE COMPANIES",Invoice,BACS,None,31-May-19,2019,4,1863854,K5551,VEHICLE MAINTENANCE,C4341,HIRE OF VEHICLES
GUILDFORD BOROUGH COUNCIL,VEHICLE MAINTENANCE,FULLER TYRES LIMITED,88222,08-Aug-19,2065490,76,0,PURCHASE OF TYRES,OTHER VEHICLE EQUIPMENT PROVIDERS,Invoice,BACS,None,03-Jun-19,2019,5,FTI-17749,K5551,VEHICLE MAINTENANCE,D1591,PURCHASE OF TYRES
GUILDFORD BOROUGH COUNCIL,WOKING ROAD DEPOT,BRAKES,1013,02-Jul-19,2065508,340.49,0,FOOD PURCHASES,OTHER FOOD SUPPLIERS,Invoice,BACS,None,29-May-19,2019,4,9283178171,B4452,WOKING ROAD DEPOT,D1832,FOOD PURCHASES
GUILDFORD BOROUGH COUNCIL,HR SERVICES,CIPD,23088,09-Jul-19,2065516,163,0,PROFESSIONAL SUBSCRIPTIONS,PROFESSIONAL ASSOCIATIONS,Invoice,BACS,None,01-Jun-19,2019,4,22810278/20A,G2555,HR SERVICES,A7136,PROFESSIONAL SUBSCRIPTIONS
GUILDFORD BOROUGH COUNCIL,HR SERVICES,CIPD,23088,09-Jul-19,2065518,190,0,PROFESSIONAL SUBSCRIPTIONS,PROFESSIONAL ASSOCIATIONS,Invoice,BACS,None,01-Jun-19,2019,4,22541644/20A,G2555,HR SERVICES,A7136,PROFESSIONAL SUBSCRIPTIONS
GUILDFORD BOROUGH COUNCIL,TOURIST INFORMATION CENTRE,NORFOLK CHINA LTD,34838,02-Jul-19,2065519,354.78,0,PURCHASES FOR RESALE,CATERING EQUIPMENT SUPPLIERS,Invoice,BACS,None,28-May-19,2019,4,95248,F5541,TOURIST INFORMATION CENTRE,D1579,PURCHASES FOR RESALE
GUILDFORD BOROUGH COUNCIL,LEGAL SERVICES,THE COLLEGE OF LAW SERVICES LTD,86778,02-Jul-19,2065566,1385,0,TRAINING,COLLEGES [UK ONLY],Invoice,BACS,None,04-Apr-19,2019,4,562875,G4525,LEGAL SERVICES,A7161,TRAINING
GUILDFORD BOROUGH COUNCIL,OFFICE SERVICES TEAM,BUSINESS CAREWARE LIMITED,1107,02-Jul-19,2066022,-1752.95,0,MAINTENANCE AGREEMENTS,SOFTWARE DEVELOPERS,Credit Note,,None,12-Jun-19,2019,4,965444,G4585,OFFICE SERVICES,D1431,MAINTENANCE AGREEMENTS
GUILDFORD BOROUGH COUNCIL,OFFICE SERVICES TEAM,BUSINESS CAREWARE LIMITED,1107,02-Jul-19,2066023,2629,0,MAINTENANCE AGREEMENTS,SOFTWARE DEVELOPERS,Invoice,BACS,None,12-Jun-19,2019,4,965445,G4585,OFFICE SERVICES,D1431,MAINTENANCE AGREEMENTS
GUILDFORD BOROUGH COUNCIL,CREMATORIUM,TILLS INNOVATIONS LTD.,97252,02-Jul-19,2066092,132,0,NEW / REPLACE EQUIP. & TOOLS;,OTHER GOODS AND SERVICES PROVIDERS,Invoice,BACS,None,31-May-19,2019,4,1570519,A1500,GUILDFORD CREMATORIUM,D1428,NEW / REPLACE EQUIP. & TOOLS;
GUILDFORD BOROUGH COUNCIL,OFF STREET PARKING,CONCRETE REPAIRS LTD,72288,11-Jul-19,2066139,630,0,MECHANICAL/ELECTRICAL MNTCE AG,"CONCRETE CUTTING, DRILLING AND MAINTENANCE CONTRACTORS",Invoice,BACS,None,30-Apr-19,2019,4,INV/015185,B2216,GENERAL UPKEEP- URBAN CAR PKS,B1221,MECHANICAL/ELECTRICAL MNTCE AG
GUILDFORD BOROUGH COUNCIL,VEHICLE & PLANTS ACQS,DRIVE VAUXHALL,92843,04-Jul-19,2066145,24459.3,0,VEHICLE PURCHASE,CAR AND VAN DEALERS,Invoice,BACS,None,04-Jun-19,2019,4,4052733,P58010,VEHICLE & PLANT ACQS 2018-19,1745,VEHICLE PURCHASE
GUILDFORD BOROUGH COUNCIL,VEHICLE & PLANTS ACQS,DRIVE VAUXHALL,92843,04-Jul-19,2066145,315,0,VEHICLE PURCHASE,CAR AND VAN DEALERS,Invoice,BACS,None,04-Jun-19,2019,4,4052733,P58010,VEHICLE & PLANT ACQS 2018-19,1745,VEHICLE PURCHASE
GUILDFORD BOROUGH COUNCIL,VEHICLE & PLANTS ACQS,DRIVE VAUXHALL,92843,04-Jul-19,2066146,315,0,VEHICLE PURCHASE,CAR AND VAN DEALERS,Invoice,BACS,None,05-Jun-19,2019,4,4052764,P58010,VEHICLE & PLANT ACQS 2018-19,1745,VEHICLE PURCHASE
GUILDFORD BOROUGH COUNCIL,VEHICLE & PLANTS ACQS,DRIVE VAUXHALL,92843,04-Jul-19,2066146,27684.3,0,VEHICLE PURCHASE,CAR AND VAN DEALERS,Invoice,BACS,None,05-Jun-19,2019,4,4052764,P58010,VEHICLE & PLANT ACQS 2018-19,1745,VEHICLE PURCHASE
GUILDFORD BOROUGH COUNCIL,VEHICLE & PLANTS ACQS,DRIVE VAUXHALL,92843,04-Jul-19,2066147,27684.3,0,VEHICLE PURCHASE,CAR AND VAN DEALERS,Invoice,BACS,None,06-Jun-19,2019,4,4052766,P58010,VEHICLE & PLANT ACQS 2018-19,1745,VEHICLE PURCHASE
GUILDFORD BOROUGH COUNCIL,VEHICLE & PLANTS ACQS,DRIVE VAUXHALL,92843,04-Jul-19,2066147,315,0,VEHICLE PURCHASE,CAR AND VAN DEALERS,Invoice,BACS,None,06-Jun-19,2019,4,4052766,P58010,VEHICLE & PLANT ACQS 2018-19,1745,VEHICLE PURCHASE
GUILDFORD BOROUGH COUNCIL,VEHICLE MAINTENANCE,MOTORMECH GFD LTD,41870,09-Jul-19,2066149,58,0,VEHICLE MOT TEST,CAR AND VAN PARTS SUPPLIERS,Invoice,BACS,None,05-Jun-19,2019,4,1008257,K5551,VEHICLE MAINTENANCE,C1384,VEHICLE MOT TEST
GUILDFORD BOROUGH COUNCIL,PARKS & COUNTRYSIDE,FOREST & GARDEN TIMBER SERVICES,2049,04-Jul-19,2066151,240,0,RISK MANAGEMENT TREE WORKS,TREE WORK CONTRACTORS,Invoice,BACS,None,05-Jun-19,2019,4,8337,A1386,RIVERSIDE PARK,B1244,RISK MANAGEMENT TREE WORKS
GUILDFORD BOROUGH COUNCIL,RESPONSIVE & PLANNED MAINTENAN,PAUL PHELAN,2614,11-Jul-19,2066153,59.5,0,DRAINAGE - UNDERGROUND,SEWERAGE AND DRAINAGE SERVICE PROVIDERS,Invoice,BACS,None,04-Jun-19,2019,4,80138,M5113,REPAIRS-RESPONSIVE (BHS),B1328,DRAINAGE - UNDERGROUND
GUILDFORD BOROUGH COUNCIL,VEHICLE MAINTENANCE,GEESINK NORBA LTD,2145,09-Jul-19,2066157,1441.88,0,SPECIALIST VEHICLE REPAIRS,WASTE DISPOSAL EQUIPMENT SUPPLIERS,Invoice,BACS,None,05-Jun-19,2019,4,90020269,K5551,VEHICLE MAINTENANCE,D1596,SPECIALIST VEHICLE REPAIRS
GUILDFORD BOROUGH COUNCIL,PROPERTY,LIFE ENVIRONMENTAL SERVICES LTD,72900,02-Jul-19,2066158,425,0,CONSULTANTS FEES - ADVICE,HEALTH AND SAFETY CONSULTANTS,Invoice,BACS,None,05-Jun-19,2019,4,125130,P74050,ASBESTOS REMOVAL,1227,CONSULTANTS FEES - ADVICE
GUILDFORD BOROUGH COUNCIL,CREMATORIUM,ANT STRUCTURES LTD,93376,09-Jul-19,2066159,1500,0,CONTRACT PYTS-MINOR CONTRACTOR,SCAFFOLDERS,Invoice,BACS,None,31-May-19,2019,4,3590,P05012,BROADWATER COTTAGE,1234,CONTRACT PYTS-MINOR CONTRACTOR
GUILDFORD BOROUGH COUNCIL,OFFICE SERVICES TEAM,XEROX (UK) LIMITED,79663,09-Jul-19,2066162,-1058.68,0,COPY MACHINES - MFD,OTHER OFFICE EQUIPMENT SUPPLIERS,Credit Note,,None,05-Jun-19,2019,4,900186905,G4545,REPROGRAPHICS UNIT,D3415,COPY MACHINES - MFD
GUILDFORD BOROUGH COUNCIL,VEHICLE MAINTENANCE,PPK SERVICES LTD,47238,09-Jul-19,2066163,435,0,SPECIALIST VEHICLE REPAIRS,PLANT AND CONSTRUCTION EQUIPMENT SUPPLIERS,Invoice,BACS,None,05-Jun-19,2019,4,35747,K5551,VEHICLE MAINTENANCE,D1596,SPECIALIST VEHICLE REPAIRS
GUILDFORD BOROUGH COUNCIL,RESPONSIVE & PLANNED MAINTENAN,CRANLEIGH AERIALS LIMITED,69899,11-Jul-19,2066176,75,0,TV SYSTEM SERVICE & REPAIR,AUDIO AND VISUAL EQUIPMENT SUPPLIERS,Invoice,BACS,None,05-Jun-19,2019,4,704609,M5106,REPAIRS-SHELT-RESPONSIVE (BHS),B1387,TV SYSTEM SERVICE & REPAIR
GUILDFORD BOROUGH COUNCIL,RESPONSIVE & PLANNED MAINTENAN,CRANLEIGH AERIALS LIMITED,69899,11-Jul-19,2066176,10.41,0,TV SYSTEM SERVICE & REPAIR,AUDIO AND VISUAL EQUIPMENT SUPPLIERS,Invoice,BACS,None,05-Jun-19,2019,4,704609,M5106,REPAIRS-SHELT-RESPONSIVE (BHS),B1387,TV SYSTEM SERVICE & REPAIR
GUILDFORD BOROUGH COUNCIL,RESPONSIVE & PLANNED MAINTENAN,CRANLEIGH AERIALS LIMITED,69899,11-Jul-19,2066177,225,0,TV SYSTEM SERVICE & REPAIR,AUDIO AND VISUAL EQUIPMENT SUPPLIERS,Invoice,BACS,None,05-Jun-19,2019,4,704608,M5106,REPAIRS-SHELT-RESPONSIVE (BHS),B1387,TV SYSTEM SERVICE & REPAIR
GUILDFORD BOROUGH COUNCIL,RESPONSIVE & PLANNED MAINTENAN,CRANLEIGH AERIALS LIMITED,69899,11-Jul-19,2066177,37.5,0,TV SYSTEM SERVICE & REPAIR,AUDIO AND VISUAL EQUIPMENT SUPPLIERS,Invoice,BACS,None,05-Jun-19,2019,4,704608,M5106,REPAIRS-SHELT-RESPONSIVE (BHS),B1387,TV SYSTEM SERVICE & REPAIR
GUILDFORD BOROUGH COUNCIL,WOKING ROAD DEPOT,REDACTED,0,05-Sep-19,2066178,-399.75,0,VENDING MACHINES SALES,OTHER VENDING SERVICES SUPPLIERS,Credit Note,,None,31-May-19,2019,6,REDACTED,B4452,WOKING ROAD DEPOT,K3994,VENDING MACHINES SALES
GUILDFORD BOROUGH COUNCIL,WOKING ROAD DEPOT,CONNECT VENDING LIMITED,89111,05-Sep-19,2066179,614.86,0,VENDING MACHINES - HIRE,OTHER VENDING SERVICES SUPPLIERS,Invoice,BACS,None,31-May-19,2019,6,5010623,B4452,WOKING ROAD DEPOT,D1842,VENDING MACHINES - HIRE
